Directorate,Department,Expenditure Type,Ref.Doc.1,Vendor Name,Expenditure Amount (exc VAT),Payment Date
Assurance,Assurance,Professional Services,60101019,ASSOCIATION OF ELECTORAL ADMINISTRA,495.00,26/03/2018
Assurance,Assurance,Consultants Fees,80015310,ANTHONY COLLINS SOLICITORS LLP,441.00,02/03/2018
Assurance,Assurance,Consultants Fees,80015861,JANE SCANNELLLTD,"4,172.60",07/03/2018
Assurance,Assurance,Rents,60098944,ROYAL AIR FORCE MUSEUM,"6,200.00",14/03/2018
Assurance,Assurance,Advertising,60101339,LONDON BOROUGH OF HACKNEY,"3,383.00",29/03/2018
Assurance,Assurance,Advertising,60099231,HINT MEDIA LTD,"2,300.00",22/03/2018
Assurance,Assurance,Service Charges,80016040,CASABLANCA MARQUEES LTD,800.00,16/03/2018
Assurance,Assurance,Rents,80016266,ALLIANCE DISPOSABLES LTD,617.80,22/03/2018
Assurance,Assurance,Equipment and Materials Purcha,80016415,ANCHORPOINT GROUP LTD,419.25,23/03/2018
Assurance,Assurance,Equipment and Materials Purcha,80016532,OFFICE STATIONERY,249.00,28/03/2018
Assurance,Assurance,Equipment and Materials Purcha,80016550,JUSTWIPE LTD,249.00,29/03/2018
Assurance,Assurance,Training,60099531,CIPFA BUSINESS LIMITED,"2,240.00",22/03/2018
Assurance,Assurance,Publications,10014011,CONFABULATE LTD,"3,900.00",19/03/2018
Assurance,Assurance,Other Indirect Employee Expens,80016140,THE MAYOR'S CHARITY,60.00,23/03/2018
Assurance,Assurance,Other Indirect Employee Expens,80016141,MAYOR'S CHARITY APPEAL AC'T  A,300.00,23/03/2018
Assurance,Assurance,Other Indirect Employee Expens,80016395,FRIENDSOFCHELSEACOMM'TYHOSPSCH,60.00,23/03/2018
Assurance,Assurance,Other Indirect Employee Expens,80016508,DEPUTY MAYOR'S RECEIPS FOR TRAVEL TO EVENTS,141.65,27/03/2018
Assurance,Assurance,Other Indirect Employee Expens,80016136,THE MAYOR OF WANDSWORTH CHARIT,60.00,23/03/2018
Assurance,Assurance,Other Indirect Employee Expens,80016224,MAYOR OF ENFIELD APPEAL FUND,30.00,23/03/2018
Assurance,Assurance,Professional Services,80016256,S7 CHAUFFEURS LTD,982.50,23/03/2018
Assurance,Assurance,Ttl IT & Comms,60100587,BRITISH TELECOM PLC,"6,133.88",20/03/2018
Assurance,Assurance,Printing-Contract,60098335,BARNARD &  WESTWOOD LTD,195.78,21/03/2018
Assurance,Assurance,Consultants Fees,60100576,ITS TRAINING (UK) LTD,"6,000.00",27/03/2018
Assurance,Assurance,Consultants Fees,60100674,ITS TRAINING (UK) LTD,"1,338.00",27/03/2018
Assurance,Assurance,Ttl IT & Comms,60100716,INTEC FOR BUSINESS LIMITED,"10,995.23",28/03/2018
Assurance,Assurance,Translation Exp / Interpret,60097640,REDACTED - PERSONAL DATA,"1,322.50",06/03/2018
Central Expenses,Central Expenses,Other Local Authorities - Thir,60099547,CITY OF LONDON,"83,918.00",01/03/2018
Central Expenses,Central Expenses,Bank Charges,80015911,PAYPOINT NETWORK LTD,563.50,05/03/2018
Central Expenses,Central Expenses,Bank Charges,80016047,PAYPOINT NETWORK LTD,544.41,12/03/2018
Central Expenses,Central Expenses,Bank Charges,80016362,PAYPOINT NETWORK LTD,574.08,23/03/2018
Central Expenses,Central Expenses,Debt management expenses,60100743,LINK TREASURY SERVICES T/AS,"1,500.00",21/03/2018
Central Expenses,Central Expenses,Insurance Claims,60098100,CITY SUBURBAN TREE SURGEONS LTD,214.50,08/03/2018
Central Expenses,Central Expenses,Insurance Claims,80016401,BRITISH TELECOM PLC,"1,796.19",27/03/2018
Central Expenses,Central Expenses,Insurance Claims,60088600,WEIGHTMANS LLP,230.00,09/03/2018
Central Expenses,Central Expenses,Insurance Claims,60089306,WEIGHTMANS LLP,85.00,27/03/2018
Central Expenses,Central Expenses,Insurance Claims,60099500,WEIGHTMANS LLP,"1,168.00",27/03/2018
Central Expenses,Central Expenses,Insurance Claims,60099503,WEIGHTMANS LLP,"1,184.00",27/03/2018
Central Expenses,Central Expenses,Insurance Claims,60100757,WEIGHTMANS LLP,600.00,23/03/2018
Central Expenses,Central Expenses,Insurance Claims,60101282,WEIGHTMANS LLP,917.30,28/03/2018
Central Expenses,Central Expenses,Insurance Claims,60101274,CLYDE & CO LLP,"17,491.11",28/03/2018
Central Expenses,Central Expenses,Insurance Claims,60101414,CLYDE & CO LLP,"8,938.85",28/03/2018
Central Expenses,Central Expenses,Insurance Claims,80016366,LEVENES SOLOCITORS,240.00,22/03/2018
Central Expenses,Central Expenses,Insurance Claims,80016253,DWP COMPENSATION RECOVERY UNIT,647.00,20/03/2018
Central Expenses,Central Expenses,Insurance Claims,80016367,DWP COMPENSATION RECOVERY UNIT,866.00,22/03/2018
Central Expenses,Central Expenses,Insurance Claims,80016369,DWP COMPENSATION RECOVERY UNIT,665.00,22/03/2018
Central Expenses,Central Expenses,Insurance Claims,80016442,DWP COMPENSATION RECOVERY UNIT,866.00,27/03/2018
Central Expenses,Central Expenses,Insurance Claims,80015942,HENDON WAY SURGERY,50.00,06/03/2018
Central Expenses,Central Expenses,Insurance Claims,80016165,THE STANMORE MEDICAL CENTRE,50.00,16/03/2018
Central Expenses,Central Expenses,Insurance Claims,80016334,SCOTT REES & CO SOLICITORS,786.00,23/03/2018
Central Expenses,Central Expenses,Insurance Claims,80016370,PRODDOW MACKAY,266.54,23/03/2018
Central Expenses,Central Expenses,Insurance Claims,80016487,BUPA,"1,895.00",27/03/2018
Central Expenses,Central Expenses,Insurance Claims,80015821,PLEXUS LAW,"32,000.00",01/03/2018
Central Expenses,Central Expenses,Insurance Claims,80015830,PLEXUS LAW,"9,500.00",01/03/2018
Central Expenses,Central Expenses,Insurance Claims,80015848,REDACTED - PERSONAL DATA,"1,485.56",26/03/2018
Central Expenses,Central Expenses,Insurance Claims,80015851,SOVEREIGN AUTOMOTIVE LTD,"3,090.05",06/03/2018
Central Expenses,Central Expenses,Insurance Claims,80015939,REDACTED - PERSONAL DATA,511.20,23/03/2018
Central Expenses,Central Expenses,Insurance Claims,80015940,REDACTED - PERSONAL DATA,224.40,23/03/2018
Central Expenses,Central Expenses,Insurance Claims,80015984,REDACTED - PERSONAL DATA,208.99,07/03/2018
Central Expenses,Central Expenses,Insurance Claims,80016009,REDACTED - PERSONAL DATA,887.93,13/03/2018
Central Expenses,Central Expenses,Insurance Claims,80016078,REDACTED - PERSONAL DATA,786.00,13/03/2018
Central Expenses,Central Expenses,Insurance Claims,80016205,RUSSELL WORTH CLIENT ACCOUNT,"1,500.00",16/03/2018
Central Expenses,Central Expenses,Insurance Claims,80016223,REDACTED - PERSONAL DATA,120.00,20/03/2018
Central Expenses,Central Expenses,Insurance Claims,80016243,REDACTED - PERSONAL DATA,"1,941.00",20/03/2018
Central Expenses,Central Expenses,Insurance Claims,80016244,KENNEDYS LAW LLP,"14,500.00",20/03/2018
Central Expenses,Central Expenses,Insurance Claims,80016248,BL CLAIMS SOLICITORS,"20,000.00",20/03/2018
Central Expenses,Central Expenses,Insurance Claims,80016252,HUTCHINS & CO SOLICITORS,"90,323.94",20/03/2018
Central Expenses,Central Expenses,Insurance Claims,80016288,CAMPBELL & CO SOLICITORS,"17,809.00",20/03/2018
Central Expenses,Central Expenses,Insurance Claims,80016300,HARWOODS SOLICITORS,"1,000.00",22/03/2018
Central Expenses,Central Expenses,Insurance Claims,80016304,REDACTED - PERSONAL DATA,900.00,22/03/2018
Central Expenses,Central Expenses,Insurance Claims,80016337,GREGORY ABRAMS DAVIDSON LLP,"17,500.00",27/03/2018
Central Expenses,Central Expenses,Insurance Claims,80016364,REDACTED - PERSONAL DATA,426.40,22/03/2018
Central Expenses,Central Expenses,Insurance Claims,80016373,AXA CLAIMS,679.70,22/03/2018
Central Expenses,Central Expenses,Insurance Claims,80016396,IAN GIBBS ESTATE MANAGEMENT,645.00,27/03/2018
Central Expenses,Central Expenses,Insurance Claims,80016441,RUSSELL WORTH CLIENT ACCOUNT,"4,187.00",27/03/2018
Central Expenses,Central Expenses,Insurance Claims,80016447,REDACTED - PERSONAL DATA,995.00,27/03/2018
Central Expenses,Central Expenses,Insurance Claims,80016464,REDACTED - PERSONAL DATA,"1,777.50",27/03/2018
Central Expenses,Central Expenses,Insurance Claims,80016474,REDACTED - PERSONAL DATA,"1,058.40",27/03/2018
Central Expenses,Central Expenses,Insurance Claims,80016481,ADMIRAL LAW,456.00,27/03/2018
Central Expenses,Central Expenses,Insurance Claims,80016484,LEIGH DAY CLIENT ACCOUNT,"6,717.15",27/03/2018
Central Expenses,Central Expenses,Insurance Claims,80016328,IRWIN MITCHELL LLP,360.00,22/03/2018
Central Expenses,Central Expenses,Insurance Claims,80016439,IRWIN MITCHELL LLP,"6,029.00",27/03/2018
Central Expenses,Central Expenses,Insurance Claims,80016113,DAC BEACHCROFT,"15,000.00",14/03/2018
Central Expenses,Central Expenses,Tax Deducted-Income Tax,80015826,HM REVENUE & CUSTOMS,161.32,01/03/2018
Central Expenses,Central Expenses,Other Services,80015891,SUMMERSIDE PRIMARY ACADEMY,"2,307.44",05/03/2018
Central Expenses,Central Expenses,Other Establishments - Third P,EBX0217047,LEE VALLEY REGIONAL PARK AUTH.,"30,430.52",15.3.18
Commercial,Customer Support Group,Building Repairs & Maintenance,60100749,ADAMS ENVIRONMENTAL LTD,550.00,28/03/2018
Commercial,Customer Support Group,Building Repairs & Maintenance,60101103,HERTEL (UK) LTD,34.91,28/03/2018
Commercial,Customer Support Group,Building Repairs & Maintenance,60101105,HERTEL (UK) LTD,34.91,28/03/2018
Commercial,Customer Support Group,Building Repairs & Maintenance,60101112,HERTEL (UK) LTD,34.91,28/03/2018
Commercial,Customer Support Group,Building Repairs & Maintenance,60101115,HERTEL (UK) LTD,34.91,28/03/2018
Commercial,Customer Support Group,Building Repairs & Maintenance,60101119,HERTEL (UK) LTD,34.91,28/03/2018
Commercial,Customer Support Group,Building Repairs & Maintenance,60101137,HERTEL (UK) LTD,34.91,27/03/2018
Commercial,Customer Support Group,Building Repairs & Maintenance,60101143,HERTEL (UK) LTD,34.91,27/03/2018
Commercial,Customer Support Group,Building Repairs & Maintenance,60101166,HERTEL (UK) LTD,34.91,27/03/2018
Commercial,Customer Support Group,Building Repairs & Maintenance,60101168,HERTEL (UK) LTD,34.91,27/03/2018
Commercial,Customer Support Group,Building Repairs & Maintenance,60101169,HERTEL (UK) LTD,34.91,27/03/2018
Commercial,Customer Support Group,Building Repairs & Maintenance,60101179,HERTEL (UK) LTD,34.91,27/03/2018
Commercial,Customer Support Group,Building Repairs & Maintenance,60101182,HERTEL (UK) LTD,34.91,27/03/2018
Commercial,Customer Support Group,Building Repairs & Maintenance,60101195,HERTEL (UK) LTD,34.91,27/03/2018
Commercial,Customer Support Group,Building Repairs & Maintenance,60101197,HERTEL (UK) LTD,34.91,27/03/2018
Commercial,Customer Support Group,Building Repairs & Maintenance,60101207,HERTEL (UK) LTD,34.91,27/03/2018
Commercial,Customer Support Group,Building Repairs & Maintenance,60101234,HERTEL (UK) LTD,34.91,27/03/2018
Commercial,Customer Support Group,Building Repairs & Maintenance,60097732,RGE SERVICES,47.03,01/03/2018
Commercial,Customer Support Group,Building Repairs & Maintenance,60097783,RGE SERVICES,64.13,01/03/2018
Commercial,Customer Support Group,Building Repairs & Maintenance,60097822,RGE SERVICES,115.47,22/03/2018
Commercial,Customer Support Group,Building Repairs & Maintenance,60098134,RGE SERVICES,363.41,01/03/2018
Commercial,Customer Support Group,Building Repairs & Maintenance,60098136,RGE SERVICES,154.03,01/03/2018
Commercial,Customer Support Group,Building Repairs & Maintenance,60098169,RGE SERVICES,301.10,01/03/2018
Commercial,Customer Support Group,Building Repairs & Maintenance,60098522,RGE SERVICES,415.93,08/03/2018
Commercial,Customer Support Group,Building Repairs & Maintenance,60098562,RGE SERVICES,241.39,14/03/2018
Commercial,Customer Support Group,Building Repairs & Maintenance,60099321,SECOM PLC,470.95,13/03/2018
Commercial,Customer Support Group,Cleaning and domestic material,60097466,CHURCHILL CONTRACT SERVICES,"1,032.37",01/03/2018
Commercial,Customer Support Group,Cleaning and domestic material,60099790,CHURCHILL CONTRACT SERVICES,"1,032.37",28/03/2018
Commercial,Customer Support Group,Publications,10014002,TV LICENSING,147.00,02/03/2018
Commercial,Customer Support Group,Electricity,10014016,KENT COUNTY COUNCIL (KCS),"(6,040.07)",28/03/2018
Commercial,Customer Support Group,Electricity,60098294,KENT COUNTY COUNCIL (KCS),"6,501.31",01/03/2018
Commercial,Customer Support Group,Gas,60098696,KENT COUNTY COUNCIL (KCS),"6,857.24",02/03/2018
Commercial,Customer Support Group,Gas,60100626,KENT COUNTY COUNCIL (KCS),"6,899.09",28/03/2018
Commercial,Customer Support Group,Electricity,60100739,KENT COUNTY COUNCIL (KCS),"5,910.14",28/03/2018
Commercial,Customer Support Group,Cleaning and domestic material,60099920,HERTFORDSHIRE SUPPLIES   COUNTY CO,"2,184.16",09/03/2018
Commercial,Customer Support Group,Cleaning and domestic material,60099924,HERTFORDSHIRE SUPPLIES   COUNTY CO,238.35,09/03/2018
Commercial,Customer Support Group,Building Repairs & Maintenance,60099290,SECOM PLC,"1,431.74",13/03/2018
Commercial,Customer Support Group,Building Repairs & Maintenance,60101202,HERTEL (UK) LTD,34.91,27/03/2018
Commercial,Customer Support Group,Training,60099865,SKILLS TRAINING CENTRE LTD,500.00,08/03/2018
Commercial,Customer Support Group,Rubbish Collection,60095844,PEARCE RECYCLING CO. LTD,25.00,01/03/2018
Commercial,Customer Support Group,Rubbish Collection,60097467,PEARCE RECYCLING CO. LTD,25.00,01/03/2018
Commercial,Customer Support Group,Rubbish Collection,60097965,PEARCE RECYCLING CO. LTD,22.50,01/03/2018
Commercial,Customer Support Group,Rubbish Collection,60100120,PEARCE RECYCLING CO. LTD,34.50,28/03/2018
Commercial,Customer Support Group,Building Repairs & Maintenance,60098603,RGE SERVICES,345.92,08/03/2018
Commercial,Customer Support Group,Building Repairs & Maintenance,60099007,RGE SERVICES,150.00,14/03/2018
Commercial,Customer Support Group,Other Services,60099792,BLUE 9 SECURITY LIMITED,"20,125.62",08/03/2018
Commercial,Customer Support Group,Cleaning and domestic material,60097439,CHURCHILL CONTRACT SERVICES,"11,562.54",01/03/2018
Commercial,Customer Support Group,Cleaning and domestic material,60099744,CHURCHILL CONTRACT SERVICES,"11,562.54",28/03/2018
Commercial,Customer Support Group,Water Services,60098936,AFFINITY WATER LIMITED,594.62,13/03/2018
Commercial,Customer Support Group,Water Services,60098118,ANGEL SPRINGS LTD,17.05,01/03/2018
Commercial,Customer Support Group,Water Services,60098204,ANGEL SPRINGS LTD,22.58,01/03/2018
Commercial,Customer Support Group,Water Services,60099803,ANGEL SPRINGS LTD,120.00,28/03/2018
Commercial,Customer Support Group,Water Services,60099881,ANGEL SPRINGS LTD,75.00,28/03/2018
Commercial,Customer Support Group,Building Repairs & Maintenance,60097958,LIFT & ENGINEERING SERVICES LTD,71.69,07/03/2018
Commercial,Customer Support Group,Building Repairs & Maintenance,60097977,LIFT & ENGINEERING SERVICES LTD,71.69,07/03/2018
Commercial,Customer Support Group,Building Repairs & Maintenance,60098018,LIFT & ENGINEERING SERVICES LTD,71.69,07/03/2018
Commercial,Customer Support Group,Rents,10014020,MONTAGU EVANS LLP,"186,250.00",21/03/2018
Commercial,Customer Support Group,Building Repairs & Maintenance,60101165,HERTEL (UK) LTD,34.91,27/03/2018
Commercial,Customer Support Group,Rubbish Collection,60089099,G.B.HOLDINGS LTD,186.00,06/03/2018
Commercial,Customer Support Group,Electricity,60099518,MIDDLESEX UNIVERSITY,"3,999.10",01/03/2018
Commercial,Customer Support Group,Rents,60099669,MIDDLESEX UNIVERSITY,"31,125.00",08/03/2018
Commercial,Customer Support Group,Building Repairs & Maintenance,60097821,RGE SERVICES,236.97,01/03/2018
Commercial,Customer Support Group,Other Services,60099717,BLUE 9 SECURITY LIMITED,"6,178.19",08/03/2018
Commercial,Customer Support Group,Cleaning and domestic material,60097451,CHURCHILL CONTRACT SERVICES,"1,133.45",01/03/2018
Commercial,Customer Support Group,Cleaning and domestic material,60097588,CHURCHILL CONTRACT SERVICES,103.95,01/03/2018
Commercial,Customer Support Group,Cleaning and domestic material,60099773,CHURCHILL CONTRACT SERVICES,"1,133.45",28/03/2018
Commercial,Customer Support Group,Water Services,60098193,ANGEL SPRINGS LTD,101.05,01/03/2018
Commercial,Customer Support Group,Water Services,60099848,ANGEL SPRINGS LTD,217.20,28/03/2018
Commercial,Customer Support Group,Books-CDs-Audio-Video,60097907,SM ELECTRICAL SERVICES,300.00,08/03/2018
Commercial,Customer Support Group,Books-CDs-Audio-Video,60098967,SM ELECTRICAL SERVICES,610.00,28/03/2018
Commercial,Customer Support Group,Books-CDs-Audio-Video,60099653,SM ELECTRICAL SERVICES,350.00,28/03/2018
Commercial,Customer Support Group,Electricity,60099180,KENT COUNTY COUNCIL (KCS),"1,601.73",07/03/2018
Commercial,Customer Support Group,Gas,60100760,KENT COUNTY COUNCIL (KCS),653.45,28/03/2018
Commercial,Customer Support Group,Building Repairs & Maintenance,60098021,LIFT & ENGINEERING SERVICES LTD,89.25,06/03/2018
Commercial,Customer Support Group,Building Repairs & Maintenance,60098032,LIFT & ENGINEERING SERVICES LTD,89.25,06/03/2018
Commercial,Customer Support Group,Building Repairs & Maintenance,60098041,LIFT & ENGINEERING SERVICES LTD,116.00,01/03/2018
Commercial,Customer Support Group,Gas,60098995,CASTLE WATER LTD,219.59,08/03/2018
Commercial,Customer Support Group,Electricity,60099648,KENT COUNTY COUNCIL (KCS),"2,081.00",06/03/2018
Commercial,Customer Support Group,Rubbish Collection,60089094,G.B.HOLDINGS LTD,39.20,06/03/2018
Commercial,Customer Support Group,Building Repairs & Maintenance,60099953,OAKRAY LIMITED,207.00,28/03/2018
Commercial,Customer Support Group,Rubbish Collection,60082937,G.B.HOLDINGS LTD,964.00,01/03/2018
Commercial,Customer Support Group,Service Charges,60099655,MIDDLESEX UNIVERSITY,"21,433.59",08/03/2018
Commercial,Customer Support Group,Electricity,60100811,MIDDLESEX UNIVERSITY,"18,957.05",23/03/2018
Commercial,Customer Support Group,Rubbish Collection,60095983,PEARCE RECYCLING CO. LTD,25.00,01/03/2018
Commercial,Customer Support Group,Rubbish Collection,60097444,PEARCE RECYCLING CO. LTD,25.00,01/03/2018
Commercial,Customer Support Group,Rubbish Collection,60098156,PEARCE RECYCLING CO. LTD,25.00,01/03/2018
Commercial,Customer Support Group,Rubbish Collection,60100021,PEARCE RECYCLING CO. LTD,29.50,28/03/2018
Commercial,Customer Support Group,Building Repairs & Maintenance,60099560,RGE SERVICES,62.00,08/03/2018
Commercial,Customer Support Group,Furniture-Purchase-Repair,60097364,WAGSTAFF INTERIORS GROUP,155.00,01/03/2018
Commercial,Customer Support Group,Furniture-Purchase-Repair,60099306,WAGSTAFF INTERIORS GROUP,10.00,22/03/2018
Commercial,Customer Support Group,Other Services,60099710,BLUE 9 SECURITY LIMITED,"10,463.04",08/03/2018
Commercial,Customer Support Group,Cleaning and domestic material,60097485,CHURCHILL CONTRACT SERVICES,"7,329.82",01/03/2018
Commercial,Customer Support Group,Cleaning and domestic material,60099758,CHURCHILL CONTRACT SERVICES,"7,329.82",28/03/2018
Commercial,Customer Support Group,Gas,60100759,KENT COUNTY COUNCIL (KCS),171.01,28/03/2018
Commercial,Customer Support Group,Equipment and Materials Purcha,60099337,SCREWFIX DIRECT LTD,54.04,01/03/2018
Commercial,Customer Support Group,Building Repairs & Maintenance,60101206,HERTEL (UK) LTD,34.91,27/03/2018
Commercial,Customer Support Group,Other Services,60099756,BLUE 9 SECURITY LIMITED,13.43,09/03/2018
Commercial,Customer Support Group,Cleaning and domestic material,60097424,CHURCHILL CONTRACT SERVICES,661.80,01/03/2018
Commercial,Customer Support Group,Cleaning and domestic material,60099750,CHURCHILL CONTRACT SERVICES,661.80,28/03/2018
Commercial,Customer Support Group,Building Repairs & Maintenance,60098016,S W BRUCE & CO LTD,"1,056.96",06/03/2018
Commercial,Customer Support Group,Building Repairs & Maintenance,60097973,LIFT & ENGINEERING SERVICES LTD,89.25,06/03/2018
Commercial,Customer Support Group,Building Repairs & Maintenance,60097998,LIFT & ENGINEERING SERVICES LTD,89.25,06/03/2018
Commercial,Customer Support Group,Building Repairs & Maintenance,60098030,LIFT & ENGINEERING SERVICES LTD,89.25,06/03/2018
Commercial,Customer Support Group,CSG Services Contract Payment,10014014,CAPITA BUSINESS SERVICES LTD,"(399,513.29)",28/03/2018
Commercial,Customer Support Group,CSG Services Contract Payment,60098401,CAPITA BUSINESS SERVICES LTD,"34,690.00",14/03/2018
Commercial,Customer Support Group,CSG Services Contract Payment,60099712,CAPITA BUSINESS SERVICES LTD,"6,363,156.31",07/03/2018
Commercial,Customer Support Group,CSG Services Contract Payment,60098250,CAPITA BUSINESS SERVICES LTD,"(243,389.21)",28/03/2018
Commercial,Customer Support Group,CSG Services Contract Payment,60098256,CAPITA BUSINESS SERVICES LTD,"13,500.00",14/03/2018
Commercial,Customer Support Group,CSG Services Contract Payment,60098271,CAPITA BUSINESS SERVICES LTD,"47,407.00",14/03/2018
Commercial,Customer Support Group,CSG Services Contract Payment,60098284,CAPITA BUSINESS SERVICES LTD,"6,241.07",14/03/2018
Commercial,Customer Support Group,CSG Services Contract Payment,60100572,CAPITA BUSINESS SERVICES LTD,"373,470.71",28/03/2018
Commercial,Customer Support Group,CSG Services Contract Payment,60100585,CAPITA BUSINESS SERVICES LTD,"947,209.83",28/03/2018
Commercial,Customer Support Group,CSG Services Contract Payment,60100668,CAPITA BUSINESS SERVICES LTD,"28,558.67",28/03/2018
Commercial,Customer Support Group,CSG Services Contract Payment,60100719,CAPITA BUSINESS SERVICES LTD,"133,298.84",28/03/2018
Commercial,Customer Support Group,Professional Services,60099064,THE BARNETGROUP LIMITED,"203,772.00",08/03/2018
Commercial,Customer Support Group,Court Costs Awarded,80015724,LONDON BOROUGH OF BARNET,497.66,02/03/2018
Commercial,Customer Support Group,Other Services,80016070,REDACTED - PERSONAL DATA,497.66,09/03/2018
Commercial,Customer Support Group,Building Repairs & Maintenance,60099394,OAKRAY LIMITED,54.00,27/03/2018
Commercial,Customer Support Group,Building Repairs & Maintenance,60099496,OAKRAY LIMITED,96.00,15/03/2018
Commercial,Customer Support Group,Building Repairs & Maintenance,60100059,ADAMS ENVIRONMENTAL LTD,500.00,28/03/2018
Commercial,Customer Support Group,Gas,60098317,KENT COUNTY COUNCIL (KCS),310.34,02/03/2018
Commercial,Customer Support Group,Electricity,60098405,KENT COUNTY COUNCIL (KCS),813.99,01/03/2018
Commercial,Customer Support Group,Gas,60098425,KENT COUNTY COUNCIL (KCS),659.30,02/03/2018
Commercial,Customer Support Group,Electricity,60098758,KENT COUNTY COUNCIL (KCS),435.15,01/03/2018
Commercial,Customer Support Group,Gas,60098927,KENT COUNTY COUNCIL (KCS),69.67,02/03/2018
Commercial,Customer Support Group,Gas,60098942,KENT COUNTY COUNCIL (KCS),759.21,02/03/2018
Commercial,Customer Support Group,Gas,60098950,KENT COUNTY COUNCIL (KCS),16.93,02/03/2018
Commercial,Customer Support Group,Gas,60098956,KENT COUNTY COUNCIL (KCS),242.47,02/03/2018
Commercial,Customer Support Group,Gas,60098959,KENT COUNTY COUNCIL (KCS),366.95,02/03/2018
Commercial,Customer Support Group,Gas,60099037,KENT COUNTY COUNCIL (KCS),171.60,02/03/2018
Commercial,Customer Support Group,Gas,60099066,KENT COUNTY COUNCIL (KCS),57.35,02/03/2018
Commercial,Customer Support Group,Electricity,60099113,KENT COUNTY COUNCIL (KCS),"1,086.99",07/03/2018
Commercial,Customer Support Group,Electricity,60099133,KENT COUNTY COUNCIL (KCS),208.55,07/03/2018
Commercial,Customer Support Group,Gas,60100518,KENT COUNTY COUNCIL (KCS),51.80,28/03/2018
Commercial,Customer Support Group,Gas,60100530,KENT COUNTY COUNCIL (KCS),346.05,28/03/2018
Commercial,Customer Support Group,Gas,60100532,KENT COUNTY COUNCIL (KCS),62.90,28/03/2018
Commercial,Customer Support Group,Electricity,60100534,KENT COUNTY COUNCIL (KCS),359.54,28/03/2018
Commercial,Customer Support Group,Gas,60100561,KENT COUNTY COUNCIL (KCS),161.06,28/03/2018
Commercial,Customer Support Group,Gas,60100596,KENT COUNTY COUNCIL (KCS),292.53,28/03/2018
Commercial,Customer Support Group,Gas,60100682,KENT COUNTY COUNCIL (KCS),295.79,28/03/2018
Commercial,Customer Support Group,Gas,60100732,KENT COUNTY COUNCIL (KCS),110.04,28/03/2018
Commercial,Customer Support Group,Electricity,60100964,KENT COUNTY COUNCIL (KCS),899.00,28/03/2018
Commercial,Customer Support Group,Gas,60100976,KENT COUNTY COUNCIL (KCS),28.35,28/03/2018
Commercial,Customer Support Group,Electricity,60101024,KENT COUNTY COUNCIL (KCS),"1,326.44",28/03/2018
Commercial,Customer Support Group,Electricity,60101025,KENT COUNTY COUNCIL (KCS),456.84,28/03/2018
Commercial,Customer Support Group,Electricity,60101045,KENT COUNTY COUNCIL (KCS),"1,505.66",28/03/2018
Commercial,Customer Support Group,Electricity,60101054,KENT COUNTY COUNCIL (KCS),"1,304.35",28/03/2018
Commercial,Customer Support Group,Gas,60101071,KENT COUNTY COUNCIL (KCS),21.74,28/03/2018
Commercial,Customer Support Group,Building Repairs & Maintenance,60099727,WINTERS HAULAGE LTD,160.00,07/03/2018
Commercial,Customer Support Group,Building Repairs & Maintenance,60099800,WINTERS HAULAGE LTD,567.00,08/03/2018
Commercial,Customer Support Group,Furniture-Purchase-Repair,60099738,SCREWFIX DIRECT LTD,"1,408.84",13/03/2018
Commercial,Customer Support Group,Building Repairs & Maintenance,60098756,HERTEL (UK) LTD,34.91,16/03/2018
Commercial,Customer Support Group,Building Repairs & Maintenance,60101104,HERTEL (UK) LTD,34.91,28/03/2018
Commercial,Customer Support Group,Building Repairs & Maintenance,60101107,HERTEL (UK) LTD,34.91,28/03/2018
Commercial,Customer Support Group,Building Repairs & Maintenance,60101110,HERTEL (UK) LTD,34.91,27/03/2018
Commercial,Customer Support Group,Building Repairs & Maintenance,60101120,HERTEL (UK) LTD,34.91,28/03/2018
Commercial,Customer Support Group,Building Repairs & Maintenance,60101123,HERTEL (UK) LTD,34.91,27/03/2018
Commercial,Customer Support Group,Building Repairs & Maintenance,60101133,HERTEL (UK) LTD,34.91,28/03/2018
Commercial,Customer Support Group,Building Repairs & Maintenance,60101136,HERTEL (UK) LTD,34.91,27/03/2018
Commercial,Customer Support Group,Building Repairs & Maintenance,60101154,HERTEL (UK) LTD,34.91,27/03/2018
Commercial,Customer Support Group,Building Repairs & Maintenance,60101176,HERTEL (UK) LTD,34.91,27/03/2018
Commercial,Customer Support Group,Building Repairs & Maintenance,60101181,HERTEL (UK) LTD,34.91,27/03/2018
Commercial,Customer Support Group,Building Repairs & Maintenance,60101186,HERTEL (UK) LTD,34.91,27/03/2018
Commercial,Customer Support Group,Building Repairs & Maintenance,60101187,HERTEL (UK) LTD,34.91,27/03/2018
Commercial,Customer Support Group,Building Repairs & Maintenance,60101191,HERTEL (UK) LTD,34.91,27/03/2018
Commercial,Customer Support Group,Building Repairs & Maintenance,60101192,HERTEL (UK) LTD,34.91,27/03/2018
Commercial,Customer Support Group,Building Repairs & Maintenance,60101194,HERTEL (UK) LTD,34.91,27/03/2018
Commercial,Customer Support Group,Building Repairs & Maintenance,60101198,HERTEL (UK) LTD,34.91,27/03/2018
Commercial,Customer Support Group,Building Repairs & Maintenance,60101205,HERTEL (UK) LTD,34.91,27/03/2018
Commercial,Customer Support Group,Building Repairs & Maintenance,60101208,HERTEL (UK) LTD,34.91,27/03/2018
Commercial,Customer Support Group,Building Repairs & Maintenance,60101209,HERTEL (UK) LTD,34.91,27/03/2018
Commercial,Customer Support Group,Building Repairs & Maintenance,60101216,HERTEL (UK) LTD,34.91,27/03/2018
Commercial,Customer Support Group,Building Repairs & Maintenance,60101218,HERTEL (UK) LTD,34.91,27/03/2018
Commercial,Customer Support Group,Building Repairs & Maintenance,60101219,HERTEL (UK) LTD,34.91,27/03/2018
Commercial,Customer Support Group,Building Repairs & Maintenance,60101221,HERTEL (UK) LTD,34.91,27/03/2018
Commercial,Customer Support Group,Building Repairs & Maintenance,60101229,HERTEL (UK) LTD,34.91,27/03/2018
Commercial,Customer Support Group,Building Repairs & Maintenance,60101230,HERTEL (UK) LTD,34.91,27/03/2018
Commercial,Customer Support Group,Building Repairs & Maintenance,60101232,HERTEL (UK) LTD,34.91,27/03/2018
Commercial,Customer Support Group,Building Repairs & Maintenance,60101238,HERTEL (UK) LTD,34.91,27/03/2018
Commercial,Customer Support Group,Building Repairs & Maintenance,60101239,HERTEL (UK) LTD,34.91,27/03/2018
Commercial,Customer Support Group,Electricity,60098457,E-ON ENERGY,72.07,09/03/2018
Commercial,Customer Support Group,Electricity,60100173,E-ON ENERGY,14.94,14/03/2018
Commercial,Customer Support Group,Electricity,60098688,EDF ENERGY CUSTOMERS PLC,126.68,13/03/2018
Commercial,Customer Support Group,Electricity,60098838,EDF ENERGY CUSTOMERS PLC,242.69,13/03/2018
Commercial,Customer Support Group,Electricity,60098873,EDF ENERGY CUSTOMERS PLC,661.03,13/03/2018
Commercial,Customer Support Group,Building Repairs & Maintenance,60097764,RGE SERVICES,210.01,01/03/2018
Commercial,Customer Support Group,Building Repairs & Maintenance,60097804,RGE SERVICES,580.65,01/03/2018
Commercial,Customer Support Group,Building Repairs & Maintenance,60097811,RGE SERVICES,33.58,01/03/2018
Commercial,Customer Support Group,Building Repairs & Maintenance,60097840,RGE SERVICES,339.36,01/03/2018
Commercial,Customer Support Group,Building Repairs & Maintenance,60098083,RGE SERVICES,37.84,01/03/2018
Commercial,Customer Support Group,Building Repairs & Maintenance,60098489,RGE SERVICES,47.03,21/03/2018
Commercial,Customer Support Group,Building Repairs & Maintenance,60098499,RGE SERVICES,113.51,08/03/2018
Commercial,Customer Support Group,Building Repairs & Maintenance,60098502,RGE SERVICES,303.90,08/03/2018
Commercial,Customer Support Group,Building Repairs & Maintenance,60098503,RGE SERVICES,164.55,08/03/2018
Commercial,Customer Support Group,Building Repairs & Maintenance,60098530,RGE SERVICES,94.05,08/03/2018
Commercial,Customer Support Group,Building Repairs & Maintenance,60098537,RGE SERVICES,174.24,08/03/2018
Commercial,Customer Support Group,Building Repairs & Maintenance,60098557,RGE SERVICES,184.94,08/03/2018
Commercial,Customer Support Group,Building Repairs & Maintenance,60098571,RGE SERVICES,62.00,08/03/2018
Commercial,Customer Support Group,Building Repairs & Maintenance,60098582,RGE SERVICES,56.21,08/03/2018
Commercial,Customer Support Group,Building Repairs & Maintenance,60098587,RGE SERVICES,223.11,08/03/2018
Commercial,Customer Support Group,Building Repairs & Maintenance,60098590,RGE SERVICES,25.65,08/03/2018
Commercial,Customer Support Group,Building Repairs & Maintenance,60098595,RGE SERVICES,47.03,08/03/2018
Commercial,Customer Support Group,Building Repairs & Maintenance,60098611,RGE SERVICES,30.96,08/03/2018
Commercial,Customer Support Group,Other Services,60099701,BLUE 9 SECURITY LIMITED,62.28,09/03/2018
Commercial,Customer Support Group,Other Services,60099734,BLUE 9 SECURITY LIMITED,53.72,08/03/2018
Commercial,Customer Support Group,Other Services,60099761,BLUE 9 SECURITY LIMITED,188.02,08/03/2018
Commercial,Customer Support Group,Other Services,60099784,BLUE 9 SECURITY LIMITED,46.71,09/03/2018
Commercial,Customer Support Group,Cleaning and domestic material,60097488,CHURCHILL CONTRACT SERVICES,294.16,01/03/2018
Commercial,Customer Support Group,Cleaning and domestic material,60099698,CHURCHILL CONTRACT SERVICES,658.45,28/03/2018
Commercial,Customer Support Group,Cleaning and domestic material,60099793,CHURCHILL CONTRACT SERVICES,294.16,28/03/2018
Commercial,Customer Support Group,Water Services,60097654,AFFINITY WATER LIMITED,302.32,13/03/2018
Commercial,Customer Support Group,Rents,60099051,CANAL & RIVER TRUST,"2,000.00",15/03/2018
Commercial,Customer Support Group,Gas,60098102,TOTAL GAS & POWER LTD,937.61,14/03/2018
Commercial,Customer Support Group,Gas,60100228,TOTAL GAS & POWER LTD,831.94,14/03/2018
Commercial,Customer Support Group,Building Repairs & Maintenance,60098036,S W BRUCE & CO LTD,"8,770.32",06/03/2018
Commercial,Customer Support Group,Building Repairs & Maintenance,60098258,S W BRUCE & CO LTD,243.78,13/03/2018
Commercial,Customer Support Group,Building Repairs & Maintenance,60098353,S W BRUCE & CO LTD,663.00,27/03/2018
Commercial,Customer Support Group,Building Repairs & Maintenance,60099102,S W BRUCE & CO LTD,172.02,22/03/2018
Commercial,Customer Support Group,Building Repairs & Maintenance,60097936,LIFT & ENGINEERING SERVICES LTD,89.25,01/03/2018
Commercial,Customer Support Group,Building Repairs & Maintenance,60097938,LIFT & ENGINEERING SERVICES LTD,66.94,06/03/2018
Commercial,Customer Support Group,Building Repairs & Maintenance,60097960,LIFT & ENGINEERING SERVICES LTD,66.94,01/03/2018
Commercial,Customer Support Group,Building Repairs & Maintenance,60098003,LIFT & ENGINEERING SERVICES LTD,89.25,01/03/2018
Commercial,Customer Support Group,Building Repairs & Maintenance,60098027,LIFT & ENGINEERING SERVICES LTD,66.94,01/03/2018
Commercial,Customer Support Group,Building Repairs & Maintenance,60098040,LIFT & ENGINEERING SERVICES LTD,89.25,01/03/2018
Commercial,Customer Support Group,Service Charges,60098642,LAZARI INVESTMENTS LTD,183.36,14/03/2018
Commercial,Customer Support Group,Service Charges,60098670,LAZARI INVESTMENTS LTD,"27,966.24",14/03/2018
Commercial,Customer Support Group,Professional Services,60100276,MAUNDER TAYLOR CHARTERED SURVEYORS,"3,000.00",15/03/2018
Commercial,Customer Support Group,Water Services,60099542,CASTLE WATER LTD,56.06,01/03/2018
Commercial,Customer Support Group,Water Services,60100776,CASTLE WATER LTD,"1,009.60",21/03/2018
Commercial,Customer Support Group,Professional Services,60099818,VALUATION OFFICE AGENCY,375.00,28/03/2018
Commercial,Customer Support Group,Professional Services,60099852,VALUATION OFFICE AGENCY,"1,000.00",08/03/2018
Commercial,Customer Support Group,Electricity,60099517,BRITISH GAS BUSINESS(ELEC),188.18,01/03/2018
Commercial,Customer Support Group,Electricity,60099904,BRITISH GAS BUSINESS(ELEC),274.56,09/03/2018
Commercial,Customer Support Group,Ttl IT & Comms,60099806,VODAFONE LTD (BILLS ONLY),334.88,08/03/2018
Commercial,Customer Support Group,Ttl IT & Comms,60100039,TELEFONICA UK LTD,60.00,14/03/2018
Commercial,Customer Support Group,Ttl IT & Comms,60100044,TELEFONICA UK LTD,62.62,14/03/2018
Commercial,Customer Support Group,Ttl IT & Comms,60100056,TELEFONICA UK LTD,54.80,14/03/2018
Commercial,Customer Support Group,Ttl IT & Comms,60100096,TELEFONICA UK LTD,62.50,14/03/2018
Commercial,Customer Support Group,Ttl IT & Comms,60100107,TELEFONICA UK LTD,"3,257.87",14/03/2018
Commercial,Customer Support Group,Postage,20035865,ROYAL MAIL GROUP LIMITED,331.38,28/03/2018
Commercial,Customer Support Group,Postage,20035866,ROYAL MAIL GROUP LIMITED,331.38,28/03/2018
Commercial,Customer Support Group,Postage,20035867,ROYAL MAIL GROUP LIMITED,331.38,28/03/2018
Commercial,Customer Support Group,Professional Services,60099508,ROSSENDALES (COLLECT) LTD,633.29,01/03/2018
Commercial,Customer Support Group,Professional Services,60099528,ROSSENDALES (COLLECT) LTD,"1,069.38",01/03/2018
Commercial,Customer Support Group,Professional Services,60099545,ROSSENDALES (COLLECT) LTD,451.50,01/03/2018
Commercial,Customer Support Group,Other Services,20035868,LOOMIS UK LIMITED,942.22,28/03/2018
Commercial,Customer Support Group,Other Services,20035869,LOOMIS UK LIMITED,51.92,28/03/2018
Commercial,Customer Support Group,Other Services,20035870,LOOMIS UK LIMITED,905.96,28/03/2018
Commercial,Customer Support Group,Other Services,20035871,LOOMIS UK LIMITED,103.84,28/03/2018
Commercial,Customer Support Group,Other Services,20035872,LOOMIS UK LIMITED,905.96,28/03/2018
Commercial,Customer Support Group,Other Services,20035873,LOOMIS UK LIMITED,51.92,28/03/2018
Commercial,Customer Support Group,Other Services,20035874,LOOMIS UK LIMITED,905.96,28/03/2018
Commercial,Customer Support Group,Postage,60087974,XEROX (UK) LTD,(366.37),07/03/2018
Commercial,Customer Support Group,Postage,60099752,XEROX (UK) LTD,286.63,07/03/2018
Commercial,Customer Support Group,Postage,60098107,ROYAL MAIL GROUP LIMITED,"(1,538.65)",13/03/2018
Commercial,Customer Support Group,Postage,60100129,WEMBLEY LAMINATIONS LTD:,90.00,15/03/2018
Commercial,Customer Support Group,Postage,60100914,FINANCIAL DATA MANAGEMENT LTD,"1,258.00",23/03/2018
Commercial,Customer Support Group,Electricity,10014019,KENT COUNTY COUNCIL (KCS),(108.31),28/03/2018
Commercial,Customer Support Group,Electricity,60098220,KENT COUNTY COUNCIL (KCS),"2,676.74",01/03/2018
Commercial,Customer Support Group,Gas,60098739,KENT COUNTY COUNCIL (KCS),954.04,02/03/2018
Commercial,Customer Support Group,Electricity,60100579,KENT COUNTY COUNCIL (KCS),"2,439.20",28/03/2018
Commercial,Customer Support Group,Gas,60100699,KENT COUNTY COUNCIL (KCS),902.90,28/03/2018
Commercial,Customer Support Group,Building Repairs & Maintenance,60099055,SECOM PLC,570.00,06/03/2018
Commercial,Customer Support Group,Rubbish Collection,60095850,PEARCE RECYCLING CO. LTD,25.00,01/03/2018
Commercial,Customer Support Group,Rubbish Collection,60097497,PEARCE RECYCLING CO. LTD,25.00,01/03/2018
Commercial,Customer Support Group,Rubbish Collection,60098026,PEARCE RECYCLING CO. LTD,7.00,01/03/2018
Commercial,Customer Support Group,Rubbish Collection,60100100,PEARCE RECYCLING CO. LTD,6.50,28/03/2018
Commercial,Customer Support Group,Other Services,60099685,BLUE 9 SECURITY LIMITED,"20,569.92",08/03/2018
Commercial,Customer Support Group,Other Services,60099743,BLUE 9 SECURITY LIMITED,"7,660.44",08/03/2018
Commercial,Customer Support Group,Rents,60100124,NETWORK RAIL ACCOUNTS RECEIVABLE,"56,600.00",13/03/2018
Commercial,Customer Support Group,Water Services,60099863,ANGEL SPRINGS LTD,75.00,28/03/2018
Commercial,Customer Support Group,Other Services,60099700,BLUE 9 SECURITY LIMITED,"10,774.44",08/03/2018
Commercial,Customer Support Group,Other Services,60099707,BLUE 9 SECURITY LIMITED,920.00,08/03/2018
Commercial,Customer Support Group,Building Repairs & Maintenance,60098646,THAMES LABORATORIES,"1,649.00",01/03/2018
Commercial,HB LAW,Legal Disbursements,60099890,LONDON BOROUGH OF HARROW,"79,228.83",14/03/2018
Commercial,Housing Needs Resources,Private Contractors - Third Pa,60093628,THE BARNETGROUP LIMITED,"3,126.77",26/03/2018
Commercial,Housing Needs Resources,Private Contractors - Third Pa,60093630,THE BARNETGROUP LIMITED,"4,303.00",26/03/2018
Commercial,Housing Needs Resources,Professional Services,60097264,THE BARNETGROUP LIMITED,"182,434.64",07/03/2018
Commercial,Housing Needs Resources,Professional Services,60098930,THE BARNETGROUP LIMITED,"100,000.00",19/03/2018
Commercial,Housing Needs Resources,Other Agencies - Third Party P,60099244,THE BARNETGROUP LIMITED,"41,534.48",07/03/2018
Commercial,Housing Needs Resources,Private Contractors - Third Pa,60099245,THE BARNETGROUP LIMITED,"5,478.60",06/03/2018
Commercial,Housing Needs Resources,Private Contractors - Third Pa,60099253,THE BARNETGROUP LIMITED,"127,500.00",06/03/2018
Commercial,Housing Needs Resources,Private Contractors - Third Pa,60099293,THE BARNETGROUP LIMITED,"41,070.00",15/03/2018
Commercial,Housing Needs Resources,Private Contractors - Third Pa,60099329,THE BARNETGROUP LIMITED,"24,040.86",15/03/2018
Commercial,Housing Needs Resources,Private Contractors - Third Pa,60099334,THE BARNETGROUP LIMITED,"8,675.72",16/03/2018
Commercial,Housing Needs Resources,Other Agencies - Third Party P,60099344,THE BARNETGROUP LIMITED,"44,065.64",06/03/2018
Commercial,Housing Needs Resources,Private Contractors - Third Pa,60100819,THE BARNETGROUP LIMITED,"12,020.43",23/03/2018
Commercial,Housing Needs Resources,Other Agencies - Third Party P,60100830,THE BARNETGROUP LIMITED,"11,200.00",22/03/2018
Commercial,Housing Needs Resources,Private Contractors - Third Pa,60100833,THE BARNETGROUP LIMITED,"20,535.00",23/03/2018
Commercial,Housing Needs Resources,Other Agencies - Third Party P,60100849,THE BARNETGROUP LIMITED,"25,125.49",27/03/2018
Commercial,Housing Needs Resources,Private Contractors - Third Pa,60100853,THE BARNETGROUP LIMITED,"3,896.25",23/03/2018
Commercial,Housing Needs Resources,Private Contractors - Third Pa,60100856,THE BARNETGROUP LIMITED,"4,337.86",23/03/2018
Commercial,Housing Needs Resources,Private Contractors - Third Pa,60100870,THE BARNETGROUP LIMITED,"3,733.53",23/03/2018
Commercial,Housing Needs Resources,Private Contractors - Third Pa,60100874,THE BARNETGROUP LIMITED,"14,071.74",22/03/2018
Commercial,HRA,Consultants Fees,60098822,THE BARNETGROUP LIMITED,"2,660.84",22/03/2018
Commercial,HRA,Consultants Fees,60098882,THE BARNETGROUP LIMITED,"1,182.99",22/03/2018
Commercial,HRA,Consultants Fees,60098253,PRIORITY ESTATES PROJECT LTD,"1,955.80",08/03/2018
Commercial,HRA,Consultants Fees,60101401,TROWERS & HAMLINS,"1,090.10",28/03/2018
Commercial,HRA,Consultants Fees,60098954,THE BARNETGROUP LIMITED,"18,335.00",14/03/2018
Commercial,HRA,Consultants Fees,60098975,THE BARNETGROUP LIMITED,"54,542.00",14/03/2018
Commercial,HRA,Consultants Fees,60098420,VALUATION OFFICE AGENCY,"4,000.00",15/03/2018
Commercial,HRA,Consultants Fees,60098436,VALUATION OFFICE AGENCY,"3,958.00",15/03/2018
Commercial,HRA,Consultants Fees,60100848,PRIORITY ESTATES PROJECT LTD,"3,143.25",27/03/2018
Commercial,HRA,Other Services,60101348,THE BARNETGROUP LIMITED,"63,441.00",28/03/2018
Commercial,HRA,Consultants Fees,60099367,TMP (UK) LTD,655.60,14/03/2018
Commercial,HRA,Consultants Fees,60100257,TMP (UK) LTD,512.00,21/03/2018
Commercial,HRA,Private Contractors - Third Pa,80016301,REDACTED - PERSONAL DATA,"3,500.00",20/03/2018
Commercial,HRA,Consultants Fees,10014015,ALLIES AND MORRRISON,"57,000.00",20/03/2018
Commercial,Parking & Infrastructure,Equipment and Materials Purcha,60099950,RENNICK UK LTD,802.20,22/03/2018
Commercial,Parking & Infrastructure,Equipment and Materials Purcha,60094878,LAFARGE TARMAC TRADING LIMITED,97.60,20/03/2018
Commercial,Parking & Infrastructure,Equipment and Materials Purcha,60098050,LAFARGE TARMAC TRADING LIMITED,119.60,15/03/2018
Commercial,Parking & Infrastructure,Equipment and Materials Purcha,60098268,LAFARGE TARMAC TRADING LIMITED,118.44,08/03/2018
Commercial,Parking & Infrastructure,Equipment and Materials Purcha,60098983,LAFARGE TARMAC TRADING LIMITED,229.57,13/03/2018
Commercial,Parking & Infrastructure,Equipment and Materials Purcha,60099325,LAFARGE TARMAC TRADING LIMITED,98.02,20/03/2018
Commercial,Parking & Infrastructure,Equipment and Materials Purcha,60099961,KLOECKNER METALS UK,150.00,28/03/2018
Commercial,Parking & Infrastructure,Equipment and Materials Purcha,60100092,KLOECKNER METALS UK,120.00,28/03/2018
Commercial,Parking & Infrastructure,Equipment and Materials Purcha,60100285,W. FAYERS & SONS,283.66,16/03/2018
Commercial,Parking & Infrastructure,Equipment and Materials Purcha,60098046,VAISALA LTD,"14,090.00",05/03/2018
Commercial,Parking & Infrastructure,Equipment and Materials Purcha,60099611,COMPASS MINERALS,"2,499.96",27/03/2018
Commercial,Parking & Infrastructure,Equipment and Materials Purcha,60098494,GREENHAM TRADING LIMITED,106.44,15/03/2018
Commercial,Parking & Infrastructure,Other Services,60099096,PARKEON LIMITED,810.00,22/03/2018
Commercial,Parking & Infrastructure,Other Services,60099134,PARKEON LIMITED,"1,901.04",22/03/2018
Commercial,Parking & Infrastructure,Other Services,60098199,LONDON COUNCILS,"36,864.00",08/03/2018
Commercial,Parking & Infrastructure,Professional Services,60099937,NSL LTD,"631,638.32",13/03/2018
Commercial,Parking & Infrastructure,Professional Services,60100167,NSL LTD,197.50,20/03/2018
Commercial,Parking & Infrastructure,Professional Services,60100177,NSL LTD,"7,384.74",14/03/2018
Commercial,Parking & Infrastructure,Professional Services,60100195,NSL LTD,"29,976.55",14/03/2018
Commercial,Parking & Infrastructure,Professional Services,60100214,NSL LTD,"6,559.30",14/03/2018
Commercial,Parking & Infrastructure,Other Services,60099873,BARNET LIGHTING SERVICES LTD,"554,584.75",08/03/2018
Commercial,Parking & Infrastructure,Electricity,60099874,BARNET LIGHTING SERVICES LTD,"1,420.72",12/03/2018
Commercial,Parking & Infrastructure,Electricity,60099877,BARNET LIGHTING SERVICES LTD,"1,391.73",12/03/2018
Commercial,Parking & Infrastructure,Electricity,60097401,INST OF LIGHTING PROFESSIONALS,160.00,01/03/2018
Commercial,Regional Enterprise,Refunds,80015858,REDACTED - PERSONAL DATA,124.00,02/03/2018
Commercial,Regional Enterprise,Refunds,80016145,ATKINS LIMITED,228.00,16/03/2018
Commercial,Regional Enterprise,Refunds,80016257,REDACTED - PERSONAL DATA,346.50,20/03/2018
Commercial,Regional Enterprise,Refunds,80015753,REDACTED - PERSONAL DATA,77.25,01/03/2018
Commercial,Regional Enterprise,Refunds,80015855,REDACTED - PERSONAL DATA,14.00,02/03/2018
Commercial,Regional Enterprise,Refunds,80016060,MARCO POLO D�COR LTD,117.00,12/03/2018
Commercial,Regional Enterprise,Refunds,80016101,REDACTED - PERSONAL DATA,462.00,15/03/2018
Commercial,Regional Enterprise,Other Services,60100419,J C DECAUX UK LTD,"2,840.04",19/03/2018
Commercial,Regional Enterprise,Other Services,60100158,CONWAY AECOM LTD,"2,948.49",14/03/2018
Commercial,Regional Enterprise,Other Services,60100174,CONWAY AECOM LTD,"21,165.24",28/03/2018
Commercial,Regional Enterprise,Other Services,60100947,SML LIMITED,490.00,23/03/2018
Commercial,Regional Enterprise,Other Services,60083666,AFFINITY WATER LIMITED,23.76,05/03/2018
Commercial,Regional Enterprise,Other Services,60099220,CASTLE WATER LTD,103.28,08/03/2018
Commercial,Regional Enterprise,Advertising,60098075,TMP (UK) LTD,260.00,22/03/2018
Commercial,Regional Enterprise,Advertising,60098155,TMP (UK) LTD,90.00,22/03/2018
Commercial,Regional Enterprise,Advertising,60098164,TMP (UK) LTD,170.00,22/03/2018
Commercial,Regional Enterprise,Advertising,60098166,TMP (UK) LTD,170.00,22/03/2018
Commercial,Regional Enterprise,Advertising,60098177,TMP (UK) LTD,260.00,22/03/2018
Commercial,Regional Enterprise,Advertising,60098187,TMP (UK) LTD,90.00,22/03/2018
Commercial,Regional Enterprise,Advertising,60098893,TMP (UK) LTD,90.00,22/03/2018
Commercial,Regional Enterprise,Advertising,60098918,TMP (UK) LTD,90.00,22/03/2018
Commercial,Regional Enterprise,Advertising,60099359,TMP (UK) LTD,90.00,22/03/2018
Commercial,Regional Enterprise,Advertising,60099400,TMP (UK) LTD,260.00,22/03/2018
Commercial,Regional Enterprise,Advertising,60099408,TMP (UK) LTD,90.00,22/03/2018
Commercial,Regional Enterprise,Advertising,60099425,TMP (UK) LTD,260.00,22/03/2018
Commercial,Regional Enterprise,Advertising,60099448,TMP (UK) LTD,260.00,22/03/2018
Commercial,Regional Enterprise,Advertising,60099497,TMP (UK) LTD,260.00,22/03/2018
Commercial,Regional Enterprise,Advertising,60099679,TMP (UK) LTD,170.00,22/03/2018
Commercial,Regional Enterprise,Other Services,60100108,CONWAY AECOM LTD,133.77,13/03/2018
Commercial,Regional Enterprise,Other Services,60100566,CONWAY AECOM LTD,188.42,27/03/2018
Commercial,Regional Enterprise,Other Services,60100948,RM COUNTRYSIDE SERVICES LTD,"1,066.00",23/03/2018
Commercial,Regional Enterprise,Other Services,60100960,RM COUNTRYSIDE SERVICES LTD,"1,375.00",23/03/2018
Commercial,Regional Enterprise,Equipment and Materials Purcha,60101079,RM COUNTRYSIDE SERVICES LTD,675.00,26/03/2018
Commercial,Regional Enterprise,Other Services,60100076,CONWAY AECOM LTD,604.80,28/03/2018
Commercial,Regional Enterprise,Other Services,60100186,CONWAY AECOM LTD,"1,449.00",28/03/2018
Commercial,Regional Enterprise,Other Services,60100882,CONWAY AECOM LTD,"2,644.66",28/03/2018
Commercial,Regional Enterprise,Other Services,60100935,CONWAY AECOM LTD,"10,578.68",23/03/2018
Commercial,Regional Enterprise,Equipment and Materials Purcha,60100635,METDESK LTD,530.00,20/03/2018
Commercial,Regional Enterprise,Professional Services,60098943,WATES LIVING SPACE,174.89,13/03/2018
Commercial,Regional Enterprise,Professional Services,60099239,WATES LIVING SPACE,131.17,22/03/2018
Commercial,Regional Enterprise,Refunds,80015810,REDACTED - PERSONAL DATA,49.42,01/03/2018
Commercial,Regional Enterprise,Advertising,60101326,TMP (UK) LTD,570.00,28/03/2018
Commercial,Regional Enterprise,Other Services,60100016,CONWAY AECOM LTD,13.31,28/03/2018
Commercial,Regional Enterprise,Other Services,60100027,CONWAY AECOM LTD,23.81,14/03/2018
Commercial,Regional Enterprise,Other Services,60100550,CONWAY AECOM LTD,16.64,27/03/2018
Commercial,Regional Enterprise,Other Services,60100625,CONWAY AECOM LTD,15.62,27/03/2018
Commercial,Regional Enterprise,Other Services,60100650,CONWAY AECOM LTD,108.31,23/03/2018
Commercial,Regional Enterprise,Other Services,60100679,CONWAY AECOM LTD,12.80,27/03/2018
Commercial,Regional Enterprise,Fees and Charges,80016195,REDACTED - PERSONAL DATA,"3,410.00",16/03/2018
Commercial,Regional Enterprise,Fees and Charges,80015964,REDACTED - PERSONAL DATA,508.30,07/03/2018
Commercial,Regional Enterprise,Professional Services,60092011,PUBLIC ANALYST SCIENTIFIC SERVS. LT,375.00,07/03/2018
Commercial,Regional Enterprise,Other Services,60098343,CONWAY AECOM LTD,201.45,01/03/2018
Commercial,Regional Enterprise,Other Services,60100026,CONWAY AECOM LTD,105.00,13/03/2018
Commercial,Regional Enterprise,Other Services,60100034,CONWAY AECOM LTD,166.38,13/03/2018
Commercial,Regional Enterprise,Other Services,60100057,CONWAY AECOM LTD,105.00,13/03/2018
Commercial,Regional Enterprise,Other Services,60100070,CONWAY AECOM LTD,56.70,28/03/2018
Commercial,Regional Enterprise,Other Services,60100090,CONWAY AECOM LTD,71.09,13/03/2018
Commercial,Regional Enterprise,Advertising,60100145,CONWAY AECOM LTD,189.00,28/03/2018
Commercial,Regional Enterprise,Other Services,60100193,CONWAY AECOM LTD,113.40,28/03/2018
Commercial,Regional Enterprise,Other Services,60100205,CONWAY AECOM LTD,103.95,28/03/2018
Commercial,Regional Enterprise,Other Services,60100210,CONWAY AECOM LTD,262.50,28/03/2018
Commercial,Regional Enterprise,Other Services,60100230,CONWAY AECOM LTD,472.50,28/03/2018
Commercial,Regional Enterprise,Other Services,60100506,CONWAY AECOM LTD,151.36,20/03/2018
Commercial,Regional Enterprise,Other Services,60100507,CONWAY AECOM LTD,54.93,20/03/2018
Commercial,Regional Enterprise,Other Services,60100510,CONWAY AECOM LTD,262.36,20/03/2018
Commercial,Regional Enterprise,Other Services,60100514,CONWAY AECOM LTD,64.79,20/03/2018
Commercial,Regional Enterprise,Other Services,60100515,CONWAY AECOM LTD,29.29,20/03/2018
Commercial,Regional Enterprise,Other Services,60100519,CONWAY AECOM LTD,54.49,20/03/2018
Commercial,Regional Enterprise,Other Services,60100522,CONWAY AECOM LTD,59.95,20/03/2018
Commercial,Regional Enterprise,Other Services,60100525,CONWAY AECOM LTD,50.87,20/03/2018
Commercial,Regional Enterprise,Other Services,60100527,CONWAY AECOM LTD,64.23,20/03/2018
Commercial,Regional Enterprise,Other Services,60100536,CONWAY AECOM LTD,"1,122.61",20/03/2018
Commercial,Regional Enterprise,Other Services,60100537,CONWAY AECOM LTD,212.60,20/03/2018
Commercial,Regional Enterprise,Other Services,60100538,CONWAY AECOM LTD,490.61,20/03/2018
Commercial,Regional Enterprise,Other Services,60100540,CONWAY AECOM LTD,50.87,20/03/2018
Commercial,Regional Enterprise,Other Services,60100545,CONWAY AECOM LTD,50.96,20/03/2018
Commercial,Regional Enterprise,Other Services,60100551,CONWAY AECOM LTD,127.30,20/03/2018
Commercial,Regional Enterprise,Other Services,60100552,CONWAY AECOM LTD,46.32,20/03/2018
Commercial,Regional Enterprise,Other Services,60100553,CONWAY AECOM LTD,40.81,20/03/2018
Commercial,Regional Enterprise,Other Services,60100555,CONWAY AECOM LTD,50.87,20/03/2018
Commercial,Regional Enterprise,Other Services,60100571,CONWAY AECOM LTD,100.91,20/03/2018
Commercial,Regional Enterprise,Other Services,60100573,CONWAY AECOM LTD,425.20,20/03/2018
Commercial,Regional Enterprise,Other Services,60100574,CONWAY AECOM LTD,47.87,20/03/2018
Commercial,Regional Enterprise,Other Services,60100575,CONWAY AECOM LTD,59.43,20/03/2018
Commercial,Regional Enterprise,Other Services,60100577,CONWAY AECOM LTD,64.23,20/03/2018
Commercial,Regional Enterprise,Other Services,60100578,CONWAY AECOM LTD,59.43,20/03/2018
Commercial,Regional Enterprise,Other Services,60100583,CONWAY AECOM LTD,50.87,20/03/2018
Commercial,Regional Enterprise,Other Services,60100591,CONWAY AECOM LTD,264.45,20/03/2018
Commercial,Regional Enterprise,Other Services,60100592,CONWAY AECOM LTD,349.60,20/03/2018
Commercial,Regional Enterprise,Other Services,60100593,CONWAY AECOM LTD,302.72,20/03/2018
Commercial,Regional Enterprise,Other Services,60100594,CONWAY AECOM LTD,272.56,20/03/2018
Commercial,Regional Enterprise,Other Services,60100595,CONWAY AECOM LTD,190.96,20/03/2018
Commercial,Regional Enterprise,Other Services,60100598,CONWAY AECOM LTD,59.95,20/03/2018
Commercial,Regional Enterprise,Other Services,60100600,CONWAY AECOM LTD,64.79,20/03/2018
Commercial,Regional Enterprise,Other Services,60100601,CONWAY AECOM LTD,199.31,20/03/2018
Commercial,Regional Enterprise,Other Services,60100602,CONWAY AECOM LTD,117.79,20/03/2018
Commercial,Regional Enterprise,Other Services,60100603,CONWAY AECOM LTD,281.74,20/03/2018
Commercial,Regional Enterprise,Other Services,60100604,CONWAY AECOM LTD,599.21,20/03/2018
Commercial,Regional Enterprise,Other Services,60100606,CONWAY AECOM LTD,68.10,20/03/2018
Commercial,Regional Enterprise,Other Services,60100607,CONWAY AECOM LTD,283.54,20/03/2018
Commercial,Regional Enterprise,Other Services,60100612,CONWAY AECOM LTD,425.20,20/03/2018
Commercial,Regional Enterprise,Other Services,60100613,CONWAY AECOM LTD,100.91,20/03/2018
Commercial,Regional Enterprise,Other Services,60100618,CONWAY AECOM LTD,50.87,20/03/2018
Commercial,Regional Enterprise,Other Services,60100621,CONWAY AECOM LTD,382.95,20/03/2018
Commercial,Regional Enterprise,Other Services,60100623,CONWAY AECOM LTD,427.98,20/03/2018
Commercial,Regional Enterprise,Other Services,60100631,CONWAY AECOM LTD,148.49,20/03/2018
Commercial,Regional Enterprise,Other Services,60100632,CONWAY AECOM LTD,316.25,20/03/2018
Commercial,Regional Enterprise,Other Services,60100633,CONWAY AECOM LTD,50.87,20/03/2018
Commercial,Regional Enterprise,Other Services,60100634,CONWAY AECOM LTD,75.79,20/03/2018
Commercial,Regional Enterprise,Other Services,60100638,CONWAY AECOM LTD,281.74,20/03/2018
Commercial,Regional Enterprise,Other Services,60100639,CONWAY AECOM LTD,64.23,20/03/2018
Commercial,Regional Enterprise,Other Services,60100644,CONWAY AECOM LTD,59.95,20/03/2018
Commercial,Regional Enterprise,Other Services,60100645,CONWAY AECOM LTD,86.24,20/03/2018
Commercial,Regional Enterprise,Other Services,60100646,CONWAY AECOM LTD,436.10,20/03/2018
Commercial,Regional Enterprise,Other Services,60100647,CONWAY AECOM LTD,64.79,20/03/2018
Commercial,Regional Enterprise,Other Services,60100651,CONWAY AECOM LTD,89.93,20/03/2018
Commercial,Regional Enterprise,Other Services,60100656,CONWAY AECOM LTD,440.07,20/03/2018
Commercial,Regional Enterprise,Other Services,60100657,CONWAY AECOM LTD,130.48,20/03/2018
Commercial,Regional Enterprise,Other Services,60100659,CONWAY AECOM LTD,137.54,20/03/2018
Commercial,Regional Enterprise,Other Services,60100660,CONWAY AECOM LTD,532.67,20/03/2018
Commercial,Regional Enterprise,Other Services,60100664,CONWAY AECOM LTD,634.77,20/03/2018
Commercial,Regional Enterprise,Other Services,60100665,CONWAY AECOM LTD,131.18,20/03/2018
Commercial,Regional Enterprise,Other Services,60100667,CONWAY AECOM LTD,347.66,20/03/2018
Commercial,Regional Enterprise,Other Services,60100669,CONWAY AECOM LTD,215.80,20/03/2018
Commercial,Regional Enterprise,Other Services,60100670,CONWAY AECOM LTD,131.18,20/03/2018
Commercial,Regional Enterprise,Other Services,60100671,CONWAY AECOM LTD,86.93,20/03/2018
Commercial,Regional Enterprise,Other Services,60100672,CONWAY AECOM LTD,223.01,20/03/2018
Commercial,Regional Enterprise,Other Services,60100675,CONWAY AECOM LTD,100.91,20/03/2018
Commercial,Regional Enterprise,Other Services,60100676,CONWAY AECOM LTD,163.54,20/03/2018
Commercial,Regional Enterprise,Other Services,60100677,CONWAY AECOM LTD,100.91,20/03/2018
Commercial,Regional Enterprise,Other Services,60100686,CONWAY AECOM LTD,38.08,20/03/2018
Commercial,Regional Enterprise,Other Services,60100688,CONWAY AECOM LTD,323.69,20/03/2018
Commercial,Regional Enterprise,Other Services,60100697,CONWAY AECOM LTD,105.80,20/03/2018
Commercial,Regional Enterprise,Other Services,60100702,CONWAY AECOM LTD,200.74,20/03/2018
Commercial,Regional Enterprise,Other Services,60100705,CONWAY AECOM LTD,71.47,20/03/2018
Commercial,Regional Enterprise,Other Services,60100706,CONWAY AECOM LTD,46.11,20/03/2018
Commercial,Regional Enterprise,Other Services,60100708,CONWAY AECOM LTD,64.79,20/03/2018
Commercial,Regional Enterprise,Other Services,60100711,CONWAY AECOM LTD,107.02,20/03/2018
Commercial,Regional Enterprise,Other Services,60100714,CONWAY AECOM LTD,127.30,20/03/2018
Commercial,Regional Enterprise,Other Services,60100715,CONWAY AECOM LTD,70.88,20/03/2018
Commercial,Regional Enterprise,Other Services,60100717,CONWAY AECOM LTD,58.89,20/03/2018
Commercial,Regional Enterprise,Other Services,60100718,CONWAY AECOM LTD,109.02,20/03/2018
Commercial,Regional Enterprise,Other Services,60100721,CONWAY AECOM LTD,436.10,20/03/2018
Commercial,Regional Enterprise,Other Services,60100722,CONWAY AECOM LTD,100.91,20/03/2018
Commercial,Regional Enterprise,Other Services,60100724,CONWAY AECOM LTD,128.41,26/03/2018
Commercial,Regional Enterprise,Advertising,60100881,CONWAY AECOM LTD,105.00,28/03/2018
Commercial,Regional Enterprise,Other Services,60100886,CONWAY AECOM LTD,262.36,23/03/2018
Commercial,Regional Enterprise,Other Services,60100901,CONWAY AECOM LTD,272.91,23/03/2018
Commercial,Regional Enterprise,Other Services,60100907,CONWAY AECOM LTD,490.61,23/03/2018
Commercial,Regional Enterprise,Other Services,60100934,CONWAY AECOM LTD,472.50,28/03/2018
Commercial,Regional Enterprise,Other Services,60100937,CONWAY AECOM LTD,262.36,23/03/2018
Commercial,Regional Enterprise,Other Services,60100939,CONWAY AECOM LTD,151.20,28/03/2018
Commercial,Regional Enterprise,Other Services,60100944,CONWAY AECOM LTD,"25,688.55",23/03/2018
Commercial,Regional Enterprise,Other Services,60100953,CONWAY AECOM LTD,399.00,28/03/2018
Commercial,Regional Enterprise,Other Services,60100954,CONWAY AECOM LTD,"60,748.52",23/03/2018
Commercial,Regional Enterprise,Other Services,60100966,CONWAY AECOM LTD,123.04,26/03/2018
Commercial,Regional Enterprise,Other Services,60100970,CONWAY AECOM LTD,47.32,26/03/2018
Commercial,Regional Enterprise,Other Services,60100980,CONWAY AECOM LTD,20.83,26/03/2018
Commercial,Regional Enterprise,Other Services,60100990,CONWAY AECOM LTD,105.15,26/03/2018
Commercial,Regional Enterprise,Other Services,60100995,CONWAY AECOM LTD,47.32,26/03/2018
Commercial,Regional Enterprise,Other Services,60101028,CONWAY AECOM LTD,54.93,26/03/2018
Commercial,Regional Enterprise,Other Services,60101036,CONWAY AECOM LTD,361.42,26/03/2018
Commercial,Regional Enterprise,Other Services,60101042,CONWAY AECOM LTD,20.83,26/03/2018
Commercial,Regional Enterprise,Other Services,60101048,CONWAY AECOM LTD,61.52,26/03/2018
Commercial,Regional Enterprise,Other Services,60101058,CONWAY AECOM LTD,41.67,26/03/2018
Commercial,Regional Enterprise,Other Services,60101070,CONWAY AECOM LTD,58.41,26/03/2018
Commercial,Regional Enterprise,Other Services,60101246,CONWAY AECOM LTD,"1,266.95",28/03/2018
Commercial,Regional Enterprise,Other Services,60101252,CONWAY AECOM LTD,"1,588.28",28/03/2018
Commercial,Regional Enterprise,Other Services,60101261,CONWAY AECOM LTD,"5,530.10",28/03/2018
Commercial,Regional Enterprise,Other Services,60101266,CONWAY AECOM LTD,"13,077.30",28/03/2018
Commercial,Regional Enterprise,Other Services,60101270,CONWAY AECOM LTD,"4,651.37",28/03/2018
Commercial,Regional Enterprise,Other Services,60101302,CONWAY AECOM LTD,137.37,28/03/2018
Commercial,Regional Enterprise,Other Services,60101320,CONWAY AECOM LTD,"1,027.15",28/03/2018
Commercial,Regional Enterprise,Other Services,60101328,CONWAY AECOM LTD,"3,265.29",28/03/2018
Commercial,Regional Enterprise,Other Services,60101358,CONWAY AECOM LTD,"5,070.85",28/03/2018
Commercial,Regional Enterprise,Other Services,60101368,CONWAY AECOM LTD,"1,696.48",28/03/2018
Commercial,Regional Enterprise,Other Services,60101380,CONWAY AECOM LTD,365.58,28/03/2018
Commercial,Regional Enterprise,Other Services,60101384,CONWAY AECOM LTD,"2,219.69",28/03/2018
Commercial,Regional Enterprise,Other Services,60101399,CONWAY AECOM LTD,250.33,28/03/2018
Commercial,Regional Enterprise,Other Services,60101403,CONWAY AECOM LTD,45.87,28/03/2018
Commercial,Regional Enterprise,Other Services,60101406,CONWAY AECOM LTD,"3,046.03",28/03/2018
Commercial,Regional Enterprise,Other Services,60101423,CONWAY AECOM LTD,"8,208.34",28/03/2018
Commercial,Regional Enterprise,Other Services,60101440,CONWAY AECOM LTD,650.81,28/03/2018
Commercial,Regional Enterprise,Other Services,60101468,CONWAY AECOM LTD,"3,653.55",28/03/2018
Commercial,Regional Enterprise,General Sales,80016052,REDACTED - PERSONAL DATA,116.67,09/03/2018
Commercial,Regional Enterprise,Other Services,60072615,CONWAY AECOM LTD,406.18,15/03/2018
Commercial,Regional Enterprise,Other Services,60100015,CONWAY AECOM LTD,"1,058.40",28/03/2018
Commercial,Regional Enterprise,Other Services,60100032,CONWAY AECOM LTD,453.60,28/03/2018
Commercial,Regional Enterprise,Other Services,60100035,CONWAY AECOM LTD,588.00,28/03/2018
Commercial,Regional Enterprise,Other Services,60100043,CONWAY AECOM LTD,756.00,28/03/2018
Commercial,Regional Enterprise,Other Services,60100060,CONWAY AECOM LTD,982.80,28/03/2018
Commercial,Regional Enterprise,Other Services,60100064,CONWAY AECOM LTD,"1,411.20",28/03/2018
Commercial,Regional Enterprise,Other Services,60100075,CONWAY AECOM LTD,655.20,28/03/2018
Commercial,Regional Enterprise,Other Services,60100079,CONWAY AECOM LTD,819.00,28/03/2018
Commercial,Regional Enterprise,Other Services,60100081,CONWAY AECOM LTD,750.11,28/03/2018
Commercial,Regional Enterprise,Other Services,60100082,CONWAY AECOM LTD,472.50,28/03/2018
Commercial,Regional Enterprise,Other Services,60100084,CONWAY AECOM LTD,926.10,28/03/2018
Commercial,Regional Enterprise,Other Services,60100085,CONWAY AECOM LTD,478.80,28/03/2018
Commercial,Regional Enterprise,Other Services,60100086,CONWAY AECOM LTD,554.40,28/03/2018
Commercial,Regional Enterprise,Other Services,60100087,CONWAY AECOM LTD,"1,323.00",28/03/2018
Commercial,Regional Enterprise,Other Services,60100089,CONWAY AECOM LTD,529.20,28/03/2018
Commercial,Regional Enterprise,Other Services,60100097,CONWAY AECOM LTD,"1,184.40",28/03/2018
Commercial,Regional Enterprise,Other Services,60100110,CONWAY AECOM LTD,"1,108.80",28/03/2018
Commercial,Regional Enterprise,Other Services,60100119,CONWAY AECOM LTD,529.20,28/03/2018
Commercial,Regional Enterprise,Other Services,60100123,CONWAY AECOM LTD,"1,398.60",28/03/2018
Commercial,Regional Enterprise,Other Services,60100131,CONWAY AECOM LTD,"1,209.60",28/03/2018
Commercial,Regional Enterprise,Other Services,60100148,CONWAY AECOM LTD,529.20,28/03/2018
Commercial,Regional Enterprise,Other Services,60100150,CONWAY AECOM LTD,661.50,28/03/2018
Commercial,Regional Enterprise,Other Services,60100152,CONWAY AECOM LTD,315.00,28/03/2018
Commercial,Regional Enterprise,Other Services,60100153,CONWAY AECOM LTD,"1,684.80",28/03/2018
Commercial,Regional Enterprise,Other Services,60100162,CONWAY AECOM LTD,"1,058.40",28/03/2018
Commercial,Regional Enterprise,Other Services,60100163,CONWAY AECOM LTD,393.73,28/03/2018
Commercial,Regional Enterprise,Other Services,60100164,CONWAY AECOM LTD,567.00,28/03/2018
Commercial,Regional Enterprise,Other Services,60100165,CONWAY AECOM LTD,399.00,28/03/2018
Commercial,Regional Enterprise,Other Services,60100168,CONWAY AECOM LTD,892.50,28/03/2018
Commercial,Regional Enterprise,Other Services,60100172,CONWAY AECOM LTD,"1,020.60",28/03/2018
Commercial,Regional Enterprise,Other Services,60100176,CONWAY AECOM LTD,491.40,28/03/2018
Commercial,Regional Enterprise,Other Services,60100180,CONWAY AECOM LTD,"1,512.00",28/03/2018
Commercial,Regional Enterprise,Other Services,60100181,CONWAY AECOM LTD,604.80,28/03/2018
Commercial,Regional Enterprise,Other Services,60100182,CONWAY AECOM LTD,"1,248.45",28/03/2018
Commercial,Regional Enterprise,Other Services,60100184,CONWAY AECOM LTD,630.00,28/03/2018
Commercial,Regional Enterprise,Other Services,60100185,CONWAY AECOM LTD,"1,310.40",28/03/2018
Commercial,Regional Enterprise,Other Services,60100189,CONWAY AECOM LTD,756.00,28/03/2018
Commercial,Regional Enterprise,Other Services,60100191,CONWAY AECOM LTD,"1,159.20",28/03/2018
Commercial,Regional Enterprise,Other Services,60100197,CONWAY AECOM LTD,340.20,28/03/2018
Commercial,Regional Enterprise,Other Services,60100198,CONWAY AECOM LTD,"1,734.00",28/03/2018
Commercial,Regional Enterprise,Other Services,60100199,CONWAY AECOM LTD,850.50,28/03/2018
Commercial,Regional Enterprise,Other Services,60100201,CONWAY AECOM LTD,567.00,28/03/2018
Commercial,Regional Enterprise,Other Services,60100204,CONWAY AECOM LTD,869.40,28/03/2018
Commercial,Regional Enterprise,Other Services,60100215,CONWAY AECOM LTD,378.00,28/03/2018
Commercial,Regional Enterprise,Other Services,60100216,CONWAY AECOM LTD,724.50,28/03/2018
Commercial,Regional Enterprise,Other Services,60100217,CONWAY AECOM LTD,945.00,28/03/2018
Commercial,Regional Enterprise,Other Services,60100222,CONWAY AECOM LTD,567.00,28/03/2018
Commercial,Regional Enterprise,Other Services,60100224,CONWAY AECOM LTD,"1,663.20",28/03/2018
Commercial,Regional Enterprise,Other Services,60100226,CONWAY AECOM LTD,724.50,28/03/2018
Commercial,Regional Enterprise,Other Services,60100229,CONWAY AECOM LTD,907.20,28/03/2018
Commercial,Regional Enterprise,Other Services,60100232,CONWAY AECOM LTD,"1,058.40",28/03/2018
Commercial,Regional Enterprise,Other Services,60100233,CONWAY AECOM LTD,529.20,28/03/2018
Commercial,Regional Enterprise,Other Services,60100235,CONWAY AECOM LTD,604.80,28/03/2018
Commercial,Regional Enterprise,Other Services,60100237,CONWAY AECOM LTD,724.50,28/03/2018
Commercial,Regional Enterprise,Other Services,60100239,CONWAY AECOM LTD,982.80,28/03/2018
Commercial,Regional Enterprise,Other Services,60100241,CONWAY AECOM LTD,529.20,28/03/2018
Commercial,Regional Enterprise,Other Services,60100242,CONWAY AECOM LTD,655.20,28/03/2018
Commercial,Regional Enterprise,Other Services,60100243,CONWAY AECOM LTD,882.00,28/03/2018
Commercial,Regional Enterprise,Other Services,60100245,CONWAY AECOM LTD,"1,134.00",28/03/2018
Commercial,Regional Enterprise,Other Services,60100246,CONWAY AECOM LTD,756.00,28/03/2018
Commercial,Regional Enterprise,Other Services,60100891,CONWAY AECOM LTD,"1,181.25",28/03/2018
Commercial,Regional Enterprise,Grant Payments,80016104,DP BUILDERS DISABLED ADAPTATIONS,972.00,21/03/2018
Commercial,Regional Enterprise,Grant Payments,80016302,MCP PROPERTY SERVICES LTD,"5,654.25",28/03/2018
Commercial,Regional Enterprise,Grant Payments,80016176,ECOLOGIC ENERGY,455.18,20/03/2018
Commercial,Regional Enterprise,Grant Payments,80016251,WSW PROJECTS LTD,"3,665.70",20/03/2018
Commercial,Regional Enterprise,Grant Payments,80016270,STAMWEST LTD,"3,533.25",20/03/2018
Commercial,Regional Enterprise,Grant Payments,80015748,SOMA HEALTHCARE LTD,350.00,22/03/2018
Commercial,Regional Enterprise,Grant Payments,80016342,H D PROPERTY SERVICES LTD,310.00,23/03/2018
Commercial,Regional Enterprise,Consultants Fees,60099559,GOWLING WLG,342.00,06/03/2018
Commercial,Regional Enterprise,Consultants Fees,60100894,EVERSHEDS LLP,"27,498.80",28/03/2018
Commercial,Regional Enterprise,Consultants Fees,60099555,GOWLING WLG,682.27,06/03/2018
Commercial,Regional Enterprise,Consultants Fees,60099558,GOWLING WLG,765.07,06/03/2018
Commercial,Regional Enterprise,Consultants Fees,60099561,GOWLING WLG,"2,434.32",06/03/2018
Commercial,Regional Enterprise,Consultants Fees,60099563,GOWLING WLG,"7,591.10",06/03/2018
Commercial,Regional Enterprise,Consultants Fees,60099572,GOWLING WLG,960.48,06/03/2018
Commercial,Regional Enterprise,Consultants Fees,60099588,GOWLING WLG,"2,364.77",06/03/2018
Commercial,Regional Enterprise,RE Services Contract Payment,60099502,RE (REGIONAL ENTERPRISE) LIMITED,"714,000.00",16/03/2018
Commercial,Regional Enterprise,Cleaning and domestic material,60097450,CHURCHILL CONTRACT SERVICES,488.56,01/03/2018
Commercial,Regional Enterprise,Cleaning and domestic material,60099751,CHURCHILL CONTRACT SERVICES,488.56,28/03/2018
Commercial,Regional Enterprise,RE Services Contract Payment,60100128,RE (REGIONAL ENTERPRISE) LIMITED,"330,110.00",28/03/2018
Commercial,Regional Enterprise,Grant Payments,80016000,STANNAH STAIRLIFTS LTD,"5,495.92",09/03/2018
Commercial,Regional Enterprise,Grant Payments,80016010,STANNAH STAIRLIFTS LTD,"5,012.00",09/03/2018
Commercial,Regional Enterprise,Grant Payments,80016133,STANNAH STAIRLIFTS LTD,"4,886.00",15/03/2018
Commercial,Regional Enterprise,Grant Payments,80016204,STANNAH STAIRLIFTS LTD,"16,331.45",20/03/2018
Commercial,Regional Enterprise,Grant Payments,80016360,STANNAH STAIRLIFTS LTD,"5,413.00",23/03/2018
Commercial,Regional Enterprise,Grant Payments,80015246,TOTAL HYGIENE LIMITED,"4,370.00",01/03/2018
Commercial,Regional Enterprise,Grant Payments,80016045,DOLPHIN MOBILITY LTD.,"7,630.00",09/03/2018
Commercial,Regional Enterprise,Grant Payments,80016193,DOLPHIN MOBILITY LTD.,"5,265.00",16/03/2018
Commercial,Regional Enterprise,Grant Payments,80015885,ARTHUR J. FERRYMAN ASSOCIATES,"1,080.00",09/03/2018
Commercial,Regional Enterprise,Grant Payments,80016110,ARTHUR J. FERRYMAN ASSOCIATES,"1,080.00",14/03/2018
Commercial,Regional Enterprise,Grant Payments,80016124,ARTHUR J. FERRYMAN ASSOCIATES,643.56,15/03/2018
Commercial,Regional Enterprise,Grant Payments,80016138,ARTHUR J. FERRYMAN ASSOCIATES,480.00,15/03/2018
Commercial,Regional Enterprise,Grant Payments,80016274,ARTHUR J. FERRYMAN ASSOCIATES,258.66,20/03/2018
Commercial,Regional Enterprise,Grant Payments,80016279,ARTHUR J. FERRYMAN ASSOCIATES,"2,240.87",20/03/2018
Commercial,Regional Enterprise,Grant Payments,80015994,AMWELL CONSTRUCTION LTD,"10,366.50",09/03/2018
Commercial,Regional Enterprise,Grant Payments,80016359,AMWELL CONSTRUCTION LTD,"5,286.40",23/03/2018
Commercial,Regional Enterprise,Grant Payments,80016388,AMWELL CONSTRUCTION LTD,"7,605.00",23/03/2018
Commercial,Regional Enterprise,Grant Payments,80016434,AMWELL CONSTRUCTION LTD,"5,576.00",26/03/2018
Commercial,Regional Enterprise,Grant Payments,80015922,SOUTH HERTFORDSHIRE,480.00,09/03/2018
Commercial,Regional Enterprise,Grant Payments,80016128,SOUTH HERTFORDSHIRE,"4,395.00",15/03/2018
Commercial,Regional Enterprise,Grant Payments,80016132,SOUTH HERTFORDSHIRE,"4,724.00",15/03/2018
Commercial,Regional Enterprise,Grant Payments,80016427,SOUTH HERTFORDSHIRE,"5,556.00",26/03/2018
Commercial,Regional Enterprise,Grant Payments,80015686,DP BUILDERS DISABLED ADAPTATIONS,"20,237.00",01/03/2018
Commercial,Regional Enterprise,Grant Payments,80015745,DP BUILDERS DISABLED ADAPTATIONS,"4,906.00",01/03/2018
Commercial,Regional Enterprise,Grant Payments,80016044,DP BUILDERS DISABLED ADAPTATIONS,"2,200.06",15/03/2018
Commercial,Regional Enterprise,Grant Payments,80016105,DP BUILDERS DISABLED ADAPTATIONS,"1,780.00",21/03/2018
Commercial,Regional Enterprise,Grant Payments,80016259,DP BUILDERS DISABLED ADAPTATIONS,"5,460.00",23/03/2018
Commercial,Regional Enterprise,Grant Payments,80016311,DP BUILDERS DISABLED ADAPTATIONS,"4,610.00",28/03/2018
Commercial,Regional Enterprise,Grant Payments,80015908,H D PROPERTY SERVICES LTD,"6,111.00",09/03/2018
Commercial,Regional Enterprise,Grant Payments,80015912,H D PROPERTY SERVICES LTD,"6,395.00",09/03/2018
Commercial,Regional Enterprise,Grant Payments,80015967,H D PROPERTY SERVICES LTD,"5,729.00",09/03/2018
Commercial,Regional Enterprise,Grant Payments,80015999,H D PROPERTY SERVICES LTD,"4,930.00",12/03/2018
Commercial,Regional Enterprise,Grant Payments,80016130,H D PROPERTY SERVICES LTD,"4,568.00",15/03/2018
Commercial,Regional Enterprise,Grant Payments,80016368,H D PROPERTY SERVICES LTD,"5,132.00",23/03/2018
Commercial,Regional Enterprise,Grant Payments,80016086,ASTOR BANNERMAN LTD,"6,146.75",13/03/2018
Commercial,Regional Enterprise,Grant Payments,80015864,PREMIER SOLOUTIONS (NOTTINGHAM,275.78,09/03/2018
Commercial,Regional Enterprise,Grant Payments,80015888,MICHAEL ALEXANDER LIMITED,540.00,09/03/2018
Commercial,Regional Enterprise,Grant Payments,80015914,DOMESTIC LIFTS SERVICES,"5,265.00",09/03/2018
Commercial,Regional Enterprise,Grant Payments,80015972,MULLIN  & SONS LTD,"5,557.00",12/03/2018
Commercial,Regional Enterprise,Grant Payments,80015991,STAMWEST LTD,"16,823.20",09/03/2018
Commercial,Regional Enterprise,Grant Payments,80016122,EMS LIFTS LTD,"6,350.00",15/03/2018
Commercial,Regional Enterprise,Grant Payments,80015974,REDACTED - PERSONAL DATA,"12,253.00",09/03/2018
Commercial,Regional Enterprise,Grant Payments,80016063,REDACTED - PERSONAL DATA,"6,807.00",12/03/2018
Commercial,Regional Enterprise,Grant Payments,80016123,REDACTED - PERSONAL DATA,"12,082.00",15/03/2018
Commercial,Regional Enterprise,Grant Payments,80016417,REDACTED - PERSONAL DATA,"8,570.00",26/03/2018
Commercial,Regional Enterprise,Grant Payments,80016440,REDACTED - PERSONAL DATA,"6,090.00",26/03/2018
Commercial,Regional Enterprise,Grant Payments,80015798,ARTHUR J. FERRYMAN ASSOCIATES,823.44,09/03/2018
Commercial,Regional Enterprise,Grant Payments,80015802,AMWELL CONSTRUCTION LTD,"20,400.00",12/03/2018
Commercial,Regional Enterprise,Grant Payments,80015796,REDACTED - PERSONAL DATA,"2,882.00",09/03/2018
Commercial,Regional Enterprise,Grant Payments,80016200,PROPERTY PROCURE LTD,"12,750.00",20/03/2018
Commercial,Regional Enterprise,Grant Payments,80016201,PROPERTY PROCURELTD,"12,750.00",20/03/2018
Commercial,Regional Enterprise,Other Services,60085075,GRISTWOOD & TOM LTD,"5,533.15",09/03/2018
Commercial,Regional Enterprise,Other Services,60100910,CONWAY AECOM LTD,"4,456.38",23/03/2018
Commercial,Regional Enterprise,Advertising,60096633,TMP (UK) LTD,368.00,13/03/2018
Commercial,Regional Enterprise,Capital Construction and Works,60100048,CONWAY AECOM LTD,"10,000.00",28/03/2018
Commercial,Regional Enterprise,Equipment and Materials Purcha,60100282,UK POWER NETWORKS,"78,085.26",28/03/2018
Commercial,Regional Enterprise,Other Services,60100469,UK POWER NETWORKS,"3,200.00",19/03/2018
Commercial,Regional Enterprise,Other Services,60098305,CYCLE CONFIDENT LTD,"4,080.60",01/03/2018
Commercial,Regional Enterprise,Other Services,60100303,CYCLE CONFIDENT LTD,"11,541.74",28/03/2018
Commercial,Regional Enterprise,Other Services,60100924,RM COUNTRYSIDE SERVICES LTD,"4,545.00",23/03/2018
Commercial,Regional Enterprise,Other Services,60095276,ALMA PRIMARY,640.00,08/03/2018
Commercial,Regional Enterprise,Other Services,60099381,KELTIC CLOTHING,24.40,07/03/2018
Commercial,Regional Enterprise,Equipment and Materials Purcha,60100125,CONWAY AECOM LTD,"8,549.38",15/03/2018
Commercial,Regional Enterprise,Equipment and Materials Purcha,60100922,CONWAY AECOM LTD,"19,428.69",27/03/2018
Commercial,Regional Enterprise,Other Services,60101277,CONWAY AECOM LTD,"20,431.74",28/03/2018
Commercial,Regional Enterprise,Other Services,60100915,BUCHANAN COMPUTING LTD,842.00,28/03/2018
Commercial,Regional Enterprise,Capital Construction and Works,60100520,CONWAY AECOM LTD,"1,471.60",28/03/2018
Commercial,Regional Enterprise,Equipment and Materials Purcha,60100709,CONWAY AECOM LTD,71.13,28/03/2018
Commercial,Regional Enterprise,Other Services,60099067,CONWAY AECOM LTD,"15,000.00",01/03/2018
Commercial,Regional Enterprise,Other Services,60100103,CONWAY AECOM LTD,"6,304.10",15/03/2018
Commercial,Regional Enterprise,Other Services,60099188,BOUYGUES E&S INFRASTRUCTURE UK LTD,"1,620.95",01/03/2018
Commercial,Regional Enterprise,Other Services,EBX0217285PAY,LONDON BUSES SERVICES LIMITED,"5,799.94",16/01/2018
Commercial,Regional Enterprise,Other Services,60096557,ASHMOLE ACADEMY,"1,000.00",07/03/2018
Commercial,Regional Enterprise,Other Services,60096577,ETZ CHAIM JEWISH PRIMARY SCHOOL,"1,000.00",07/03/2018
Commercial,Regional Enterprise,Other Services,60097216,MILLBROOK PARK PRIMARY SCHOOL,960.00,07/03/2018
Commercial,Regional Enterprise,Advertising,60099493,TMP (UK) LTD,624.00,22/03/2018
Commercial,Regional Enterprise,Advertising,60101417,TMP (UK) LTD,471.00,28/03/2018
Commercial,Regional Enterprise,Other Services,60100017,CONWAY AECOM LTD,39.27,13/03/2018
Commercial,Regional Enterprise,Other Services,60100019,CONWAY AECOM LTD,39.27,13/03/2018
Commercial,Regional Enterprise,Other Services,60100020,CONWAY AECOM LTD,38.53,13/03/2018
Commercial,Regional Enterprise,Other Services,60100031,CONWAY AECOM LTD,38.53,13/03/2018
Commercial,Regional Enterprise,Other Services,60100040,CONWAY AECOM LTD,2.66,13/03/2018
Commercial,Regional Enterprise,Other Services,60100042,CONWAY AECOM LTD,40.02,13/03/2018
Commercial,Regional Enterprise,Other Services,60100045,CONWAY AECOM LTD,1.74,28/03/2018
Commercial,Regional Enterprise,Other Services,60100047,CONWAY AECOM LTD,40.02,13/03/2018
Commercial,Regional Enterprise,Other Services,60100053,CONWAY AECOM LTD,40.02,13/03/2018
Commercial,Regional Enterprise,Other Services,60100058,CONWAY AECOM LTD,1.38,28/03/2018
Commercial,Regional Enterprise,Other Services,60100066,CONWAY AECOM LTD,39.84,13/03/2018
Commercial,Regional Enterprise,Other Services,60100073,CONWAY AECOM LTD,40.02,13/03/2018
Commercial,Regional Enterprise,Other Services,60100078,CONWAY AECOM LTD,36.23,13/03/2018
Commercial,Regional Enterprise,Other Services,60100093,CONWAY AECOM LTD,37.78,13/03/2018
Commercial,Regional Enterprise,Other Services,60100102,CONWAY AECOM LTD,40.02,13/03/2018
Commercial,Regional Enterprise,Other Services,60100105,CONWAY AECOM LTD,39.27,13/03/2018
Commercial,Regional Enterprise,Other Services,60100106,CONWAY AECOM LTD,40.02,13/03/2018
Commercial,Regional Enterprise,Other Services,60100109,CONWAY AECOM LTD,39.84,13/03/2018
Commercial,Regional Enterprise,Other Services,60100112,CONWAY AECOM LTD,42.05,13/03/2018
Commercial,Regional Enterprise,Other Services,60100117,CONWAY AECOM LTD,39.84,13/03/2018
Commercial,Regional Enterprise,Other Services,60100122,CONWAY AECOM LTD,49.88,13/03/2018
Commercial,Regional Enterprise,Other Services,60100126,CONWAY AECOM LTD,76.59,13/03/2018
Commercial,Regional Enterprise,Other Services,60100130,CONWAY AECOM LTD,39.84,13/03/2018
Commercial,Regional Enterprise,Other Services,60100137,CONWAY AECOM LTD,35.72,13/03/2018
Commercial,Regional Enterprise,Other Services,60100140,CONWAY AECOM LTD,38.21,13/03/2018
Commercial,Regional Enterprise,Other Services,60100141,CONWAY AECOM LTD,35.20,13/03/2018
Commercial,Regional Enterprise,Other Services,60100144,CONWAY AECOM LTD,39.50,13/03/2018
Commercial,Regional Enterprise,Other Services,60100565,CONWAY AECOM LTD,40.02,27/03/2018
Commercial,Regional Enterprise,Advertising,60098088,TMP (UK) LTD,305.00,22/03/2018
Commercial,Regional Enterprise,Advertising,60099467,TMP (UK) LTD,498.00,22/03/2018
Commercial,Regional Enterprise,Other Services,60099084,TRANSPORT FOR LONDON,"5,000.00",08/03/2018
Commercial,Regional Enterprise,Other Services,60099098,TRANSPORT FOR LONDON,"5,000.00",08/03/2018
Commercial,Regional Enterprise,Other Services,60099106,TRANSPORT FOR LONDON,"5,000.00",08/03/2018
Commercial,Regional Enterprise,Other Services,60099165,TRANSPORT FOR LONDON,"5,000.00",08/03/2018
Commercial,Regional Enterprise,Other Services,60099105,MACLEOD SIMMONDS LTD,"5,635.00",01/03/2018
Commercial,Regional Enterprise,Other Services,60099151,TRANSPORT FOR LONDON,"5,000.00",20/03/2018
Commercial,Regional Enterprise,Capital Construction and Works,60099077,SUN HILL SURVEYS,"1,475.00",01/03/2018
Commercial,Regional Enterprise,Equipment and Materials Purcha,60098352,CONWAY AECOM LTD,"86,832.69",01/03/2018
Commercial,Regional Enterprise,Equipment and Materials Purcha,60098361,CONWAY AECOM LTD,"156,404.06",01/03/2018
Commercial,Regional Enterprise,Other Services,60098400,CONWAY AECOM LTD,"89,296.09",01/03/2018
Commercial,Regional Enterprise,Other Services,60089055,CONWAY AECOM LTD,"1,594.87",05/03/2018
Commercial,Regional Enterprise,Other Services,60101268,CONWAY AECOM LTD,"24,670.69",28/03/2018
Commercial,Regional Enterprise,Other Services,60101271,CONWAY AECOM LTD,"2,628.50",28/03/2018
Commercial,Regional Enterprise,Other Services,60101322,CONWAY AECOM LTD,"15,530.31",28/03/2018
Commercial,Regional Enterprise,Other Services,60101383,CONWAY AECOM LTD,"24,750.00",28/03/2018
Commercial,Regional Enterprise,Other Services,60101394,CONWAY AECOM LTD,"36,985.20",28/03/2018
Commercial,Regional Enterprise,Other Services,60101438,CONWAY AECOM LTD,"9,550.97",28/03/2018
Commercial,Regional Enterprise,Other Services,60101466,CONWAY AECOM LTD,"53,208.30",28/03/2018
Commercial,Regional Enterprise,Other Services,60101473,CONWAY AECOM LTD,"4,010.52",28/03/2018
Commercial,Regional Enterprise,Other Services,60100033,CONWAY AECOM LTD,"16,929.55",15/03/2018
Commercial,Regional Enterprise,Other Services,60100049,CONWAY AECOM LTD,"5,484.48",13/03/2018
Commercial,Regional Enterprise,Other Services,60100069,CONWAY AECOM LTD,"7,833.64",21/03/2018
Commercial,Regional Enterprise,Other Services,60100083,CONWAY AECOM LTD,"5,313.83",13/03/2018
Commercial,Regional Enterprise,Other Services,60100132,CONWAY AECOM LTD,"2,456.76",21/03/2018
Commercial,Regional Enterprise,Other Services,60100147,CONWAY AECOM LTD,"11,708.58",13/03/2018
Commercial,Regional Enterprise,Other Services,60100175,CONWAY AECOM LTD,"5,189.64",14/03/2018
Commercial,Regional Enterprise,Other Services,60100202,CONWAY AECOM LTD,"4,368.42",14/03/2018
Commercial,Regional Enterprise,Other Services,60100208,CONWAY AECOM LTD,"3,860.99",21/03/2018
Commercial,Regional Enterprise,Other Services,60100209,CONWAY AECOM LTD,"6,394.96",14/03/2018
Commercial,Regional Enterprise,Other Services,60100940,CONWAY AECOM LTD,"5,286.98",28/03/2018
Commercial,Regional Enterprise,Other Services,60100889,CONWAY AECOM LTD," 18,635.48 ",23/03/2018
Commercial,Regional Enterprise,Other Services,60101031,RM COUNTRYSIDE SERVICES LTD, 980.00 ,28/03/2018
Commercial,Regional Enterprise,Other Services,60100892,CONWAY AECOM LTD, 500.78 ,23/03/2018
Commercial,Regional Enterprise,Other Services,60100969,CONWAY AECOM LTD, 253.41 ,26/03/2018
Commercial,Regional Enterprise,Other Services,60100977,CONWAY AECOM LTD, 62.61 ,26/03/2018
Commercial,Regional Enterprise,Other Services,60100981,CONWAY AECOM LTD, 38.08 ,26/03/2018
Commercial,Regional Enterprise,Other Services,60100985,CONWAY AECOM LTD, 62.61 ,26/03/2018
Commercial,Regional Enterprise,Other Services,60100987,CONWAY AECOM LTD, 271.13 ,26/03/2018
Commercial,Regional Enterprise,Other Services,60100988,CONWAY AECOM LTD, 61.52 ,26/03/2018
Commercial,Regional Enterprise,Other Services,60100994,CONWAY AECOM LTD, 58.41 ,26/03/2018
Commercial,Regional Enterprise,Other Services,60100996,CONWAY AECOM LTD, 162.79 ,26/03/2018
Commercial,Regional Enterprise,Other Services,60101001,CONWAY AECOM LTD, 62.61 ,26/03/2018
Commercial,Regional Enterprise,Other Services,60101003,CONWAY AECOM LTD, 81.39 ,26/03/2018
Commercial,Regional Enterprise,Other Services,60101005,CONWAY AECOM LTD,47.32,26/03/2018
Commercial,Regional Enterprise,Other Services,60101007,CONWAY AECOM LTD, 187.83 ,26/03/2018
Commercial,Regional Enterprise,Other Services,60101008,CONWAY AECOM LTD,73.82,26/03/2018
Commercial,Regional Enterprise,Other Services,60101010,CONWAY AECOM LTD,162.79,26/03/2018
Commercial,Regional Enterprise,Other Services,60101012,CONWAY AECOM LTD, 187.83 ,26/03/2018
Commercial,Regional Enterprise,Other Services,60101013,CONWAY AECOM LTD, 47.32 ,26/03/2018
Commercial,Regional Enterprise,Other Services,60101014,CONWAY AECOM LTD, 189.29 ,26/03/2018
Commercial,Regional Enterprise,Other Services,60101016,CONWAY AECOM LTD,188.26,26/03/2018
Commercial,Regional Enterprise,Other Services,60101020,CONWAY AECOM LTD, 172.64 ,26/03/2018
Commercial,Regional Enterprise,Other Services,60101022,CONWAY AECOM LTD, 94.64 ,26/03/2018
Commercial,Regional Enterprise,Other Services,60101029,CONWAY AECOM LTD, 38.08 ,26/03/2018
Commercial,Regional Enterprise,Other Services,60101035,CONWAY AECOM LTD, 58.41 ,26/03/2018
Commercial,Regional Enterprise,Other Services,60101040,CONWAY AECOM LTD,80.77,26/03/2018
Commercial,Regional Enterprise,Other Services,60101041,CONWAY AECOM LTD,125.22,26/03/2018
Commercial,Regional Enterprise,Other Services,60101044,CONWAY AECOM LTD, 132.80 ,26/03/2018
Commercial,Regional Enterprise,Other Services,60101049,CONWAY AECOM LTD, 292.40 ,26/03/2018
Commercial,Regional Enterprise,Other Services,60101050,CONWAY AECOM LTD, 62.61 ,26/03/2018
Commercial,Regional Enterprise,Other Services,60101051,CONWAY AECOM LTD, 137.80 ,26/03/2018
Commercial,Regional Enterprise,Other Services,60101053,CONWAY AECOM LTD,75.94,26/03/2018
Commercial,Regional Enterprise,Other Services,60101056,CONWAY AECOM LTD, 75.94 ,26/03/2018
Commercial,Regional Enterprise,Other Services,60101057,CONWAY AECOM LTD, 75.94 ,26/03/2018
Commercial,Regional Enterprise,Other Services,60101062,CONWAY AECOM LTD,162.79,26/03/2018
Commercial,Regional Enterprise,Other Services,60101065,CONWAY AECOM LTD, 75.94 ,26/03/2018
Commercial,Regional Enterprise,Other Services,60101067,CONWAY AECOM LTD, 162.79 ,26/03/2018
Commercial,Regional Enterprise,Other Services,60101068,CONWAY AECOM LTD, 58.41 ,26/03/2018
Commercial,Regional Enterprise,Other Services,60101074,CONWAY AECOM LTD,950.36,26/03/2018
Commercial,Regional Enterprise,Other Services,60101077,CONWAY AECOM LTD, 47.32 ,26/03/2018
Commercial,Regional Enterprise,Other Services,60101078,CONWAY AECOM LTD, 75.94 ,26/03/2018
Commercial,Regional Enterprise,Other Services,60101081,CONWAY AECOM LTD, 75.94 ,26/03/2018
Commercial,Regional Enterprise,Other Services,60101082,CONWAY AECOM LTD, 75.94 ,26/03/2018
Commercial,Regional Enterprise,Other Services,60101083,CONWAY AECOM LTD, 336.43 ,26/03/2018
Commercial,Regional Enterprise,Other Services,60101086,CONWAY AECOM LTD, 66.49 ,26/03/2018
Commercial,Regional Enterprise,Other Services,60101243,CONWAY AECOM LTD, 136.59 ,28/03/2018
Commercial,Regional Enterprise,Other Services,60101247,CONWAY AECOM LTD, 125.22 ,28/03/2018
Commercial,Regional Enterprise,Other Services,60101251,CONWAY AECOM LTD, 108.34 ,28/03/2018
Commercial,Regional Enterprise,Other Services,60101257,CONWAY AECOM LTD, 75.94 ,28/03/2018
Commercial,Regional Enterprise,Other Services,60101262,CONWAY AECOM LTD, 38.07 ,28/03/2018
Commercial,Regional Enterprise,Other Services,60101264,CONWAY AECOM LTD,58.41,28/03/2018
Commercial,Regional Enterprise,Other Services,60101265,CONWAY AECOM LTD, 81.39 ,28/03/2018
Commercial,Regional Enterprise,Other Services,60101283,CONWAY AECOM LTD,87.62,28/03/2018
Commercial,Regional Enterprise,Other Services,60101292,CONWAY AECOM LTD, 62.61 ,28/03/2018
Commercial,Regional Enterprise,Other Services,60101294,CONWAY AECOM LTD, 47.32 ,28/03/2018
Commercial,Regional Enterprise,Other Services,60101297,CONWAY AECOM LTD, 728.32 ,28/03/2018
Commercial,Regional Enterprise,Other Services,60101300,CONWAY AECOM LTD,45.93,28/03/2018
Commercial,Regional Enterprise,Other Services,60101304,CONWAY AECOM LTD, 47.32 ,28/03/2018
Commercial,Regional Enterprise,Other Services,60101305,CONWAY AECOM LTD, 157.33 ,28/03/2018
Commercial,Regional Enterprise,Other Services,60101307,CONWAY AECOM LTD, 29.29 ,28/03/2018
Commercial,Regional Enterprise,Other Services,60101309,CONWAY AECOM LTD, 303.76 ,28/03/2018
Commercial,Regional Enterprise,Other Services,60101312,CONWAY AECOM LTD, 125.22 ,28/03/2018
Commercial,Regional Enterprise,Other Services,60101314,CONWAY AECOM LTD,369.02,28/03/2018
Commercial,Regional Enterprise,Other Services,60101318,CONWAY AECOM LTD, 53.74 ,28/03/2018
Commercial,Regional Enterprise,Other Services,60101327,CONWAY AECOM LTD, 186.40 ,28/03/2018
Commercial,Regional Enterprise,Other Services,60101329,CONWAY AECOM LTD, 137.80 ,28/03/2018
Commercial,Regional Enterprise,Other Services,60101331,CONWAY AECOM LTD, 162.79 ,28/03/2018
Commercial,Regional Enterprise,Other Services,60101332,CONWAY AECOM LTD, 35.33 ,28/03/2018
Commercial,Regional Enterprise,Other Services,60101334,CONWAY AECOM LTD, 99.79 ,28/03/2018
Commercial,Regional Enterprise,Other Services,60101340,CONWAY AECOM LTD, 234.46 ,28/03/2018
Commercial,Regional Enterprise,Other Services,60101341,CONWAY AECOM LTD, 73.46 ,28/03/2018
Commercial,Regional Enterprise,Other Services,60101345,CONWAY AECOM LTD, 45.93 ,28/03/2018
Commercial,Regional Enterprise,Other Services,60101346,CONWAY AECOM LTD, 92.24 ,28/03/2018
Commercial,Regional Enterprise,Other Services,60101347,CONWAY AECOM LTD,75.94,28/03/2018
Commercial,Regional Enterprise,Other Services,60101354,CONWAY AECOM LTD, 58.41 ,28/03/2018
Commercial,Regional Enterprise,Other Services,60101355,CONWAY AECOM LTD, 75.94 ,28/03/2018
Commercial,Regional Enterprise,Other Services,60101360,CONWAY AECOM LTD, 75.94 ,28/03/2018
Commercial,Regional Enterprise,Other Services,60101366,CONWAY AECOM LTD, 208.18 ,28/03/2018
Commercial,Regional Enterprise,Other Services,60101367,CONWAY AECOM LTD, 64.55 ,28/03/2018
Commercial,Regional Enterprise,Other Services,60101376,CONWAY AECOM LTD, 47.32 ,28/03/2018
Commercial,Regional Enterprise,Other Services,60101382,CONWAY AECOM LTD, 126.71 ,28/03/2018
Commercial,Regional Enterprise,Other Services,60101389,CONWAY AECOM LTD, 38.07 ,28/03/2018
Commercial,Regional Enterprise,Other Services,60101391,CONWAY AECOM LTD, 488.36 ,28/03/2018
Commercial,Regional Enterprise,Other Services,60101393,CONWAY AECOM LTD, 75.94 ,28/03/2018
Commercial,Regional Enterprise,Other Services,60101395,CONWAY AECOM LTD, 394.19 ,28/03/2018
Commercial,Regional Enterprise,Other Services,60101397,CONWAY AECOM LTD, 61.52 ,28/03/2018
Commercial,Regional Enterprise,Other Services,60101398,CONWAY AECOM LTD,75.94,28/03/2018
Commercial,Regional Enterprise,Other Services,60101400,CONWAY AECOM LTD, 123.04 ,28/03/2018
Commercial,Regional Enterprise,Other Services,60101402,CONWAY AECOM LTD, 69.18 ,28/03/2018
Commercial,Regional Enterprise,Other Services,60101405,CONWAY AECOM LTD, 390.06 ,28/03/2018
Commercial,Regional Enterprise,Other Services,60101421,CONWAY AECOM LTD, 58.41 ,28/03/2018
Commercial,Regional Enterprise,Other Services,60101426,CONWAY AECOM LTD, 162.79 ,28/03/2018
Commercial,Regional Enterprise,Other Services,60101427,CONWAY AECOM LTD, 132.97 ,28/03/2018
Commercial,Regional Enterprise,Other Services,60101429,CONWAY AECOM LTD, 406.97 ,28/03/2018
Commercial,Regional Enterprise,Other Services,60101430,CONWAY AECOM LTD,75.94,28/03/2018
Commercial,Regional Enterprise,Other Services,60101431,CONWAY AECOM LTD, 58.41 ,28/03/2018
Commercial,Regional Enterprise,Other Services,60101432,CONWAY AECOM LTD,78.09,28/03/2018
Commercial,Regional Enterprise,Other Services,60101437,CONWAY AECOM LTD, 54.17 ,28/03/2018
Commercial,Regional Enterprise,Other Services,60101439,CONWAY AECOM LTD, 58.41 ,28/03/2018
Commercial,Regional Enterprise,Other Services,60101442,CONWAY AECOM LTD,75.94,28/03/2018
Commercial,Regional Enterprise,Other Services,60101446,CONWAY AECOM LTD, 162.79 ,28/03/2018
Commercial,Regional Enterprise,Other Services,60101450,CONWAY AECOM LTD, 29.29 ,28/03/2018
Commercial,Regional Enterprise,Other Services,60101453,CONWAY AECOM LTD, 87.62 ,28/03/2018
Commercial,Regional Enterprise,Other Services,60101455,CONWAY AECOM LTD, 81.39 ,28/03/2018
Commercial,Regional Enterprise,Other Services,60101456,CONWAY AECOM LTD,162.79,28/03/2018
Commercial,Regional Enterprise,Other Services,60101458,CONWAY AECOM LTD, 455.63 ,28/03/2018
Commercial,Regional Enterprise,Other Services,60101462,CONWAY AECOM LTD, 354.52 ,28/03/2018
Commercial,Regional Enterprise,Other Services,60101463,CONWAY AECOM LTD, 175.24 ,28/03/2018
Commercial,Regional Enterprise,Other Services,60101471,CONWAY AECOM LTD, 58.41 ,28/03/2018
Commercial,Regional Enterprise,Other Services,60101476,CONWAY AECOM LTD, 158.50 ,28/03/2018
Commercial,Regional Enterprise,Other Services,60101477,CONWAY AECOM LTD, 80.77 ,28/03/2018
Commercial,Regional Enterprise,Other Services,60101480,CONWAY AECOM LTD, 828.94 ,28/03/2018
Commercial,Regional Enterprise,Advertising,60101311,TMP (UK) LTD, 529.50 ,28/03/2018
Commercial,Regional Enterprise,Advertising,60101349,TMP (UK) LTD, 314.00 ,28/03/2018
Commercial,Regional Enterprise,Other Services,60099195,CONWAY AECOM LTD," 5,446.34 ",08/03/2018
Commercial,Regional Enterprise,Other Services,60099202,CONWAY AECOM LTD," 5,446.34 ",08/03/2018
Commercial,Regional Enterprise,Other Services,60099225,CONWAY AECOM LTD,"6,207.99",08/03/2018
Commercial,Regional Enterprise,Other Services,60099227,CONWAY AECOM LTD," 6,729.99 ",08/03/2018
Commercial,Regional Enterprise,Other Services,60099237,CONWAY AECOM LTD,"5,435.29",08/03/2018
Commercial,Regional Enterprise,Other Services,60099291,CONWAY AECOM LTD," 8,189.76 ",08/03/2018
Commercial,Regional Enterprise,Other Services,60099294,CONWAY AECOM LTD," 6,805.98 ",08/03/2018
Commercial,Regional Enterprise,Other Services,60099305,CONWAY AECOM LTD," 5,625.09 ",08/03/2018
Commercial,Regional Enterprise,Other Services,60099320,CONWAY AECOM LTD," 5,309.27 ",08/03/2018
Commercial,Regional Enterprise,Other Services,60099322,CONWAY AECOM LTD,"7,664.74",08/03/2018
Commercial,Regional Enterprise,Other Services,60099328,CONWAY AECOM LTD," 5,374.21 ",08/03/2018
Commercial,Regional Enterprise,Other Services,60099336,CONWAY AECOM LTD," 5,974.08 ",08/03/2018
Commercial,Regional Enterprise,Other Services,60100094,CONWAY AECOM LTD," 9,897.60 ",13/03/2018
Commercial,Regional Enterprise,Other Services,60100517,CONWAY AECOM LTD,"1,939.59",28/03/2018
Commercial,Regional Enterprise,Other Services,60100567,CONWAY AECOM LTD, 845.32 ,28/03/2018
Commercial,Regional Enterprise,Other Services,60100885,CONWAY AECOM LTD,"22,998.87",27/03/2018
Commercial,Regional Enterprise,Consultants Fees,60093348,QUANTUM GEOTECHNICAL LTD," 4,706.06 ",23/03/2018
Commercial,Regional Enterprise,Consultants Fees,60099164,TRANSPORT FOR LONDON," 5,000.00 ",15/03/2018
Commercial,Regional Enterprise,Consultants Fees,60099798,NETWORK RAIL INFRASTRUCTURE LTD,"358,121.49",19/03/2018
Commercial,Regional Enterprise,Consultants Fees,60101228,NETWORK RAIL ACCOUNTS RECEIVABLE," 65,291.86 ",27/03/2018
Commercial,Regional Enterprise,Consultants Fees,60099575,GOWLING WLG," 1,132.70 ",06/03/2018
Commercial,Regional Enterprise,Consultants Fees,60099585,GOWLING WLG," 8,946.91 ",06/03/2018
Commercial,Regional Enterprise,Consultants Fees,60099586,GOWLING WLG," 2,703.60 ",06/03/2018
Commercial,Regional Enterprise,Building Repairs & Maintenance,60098237,S W BRUCE & CO LTD,"3,538.00",13/03/2018
Commercial,Regional Enterprise,Other Services,60100471,UK POWER NETWORKS," 6,942.86 ",19/03/2018
Commercial,The Barnet Group,Professional Services,10014003,TBG OPEN DOOR LIMITED," 489,414.80 ",07/03/2018
Commercial,The Barnet Group,Professional Services,10014004,TBG OPEN DOOR LIMITED," 1,046,090.05 ",07/03/2018
Commercial,The Barnet Group,Professional Services,10014005,TBG OPEN DOOR LIMITED," 2,422,844.56 ",07/03/2018
Commercial,The Barnet Group,Professional Services,10014006,TBG OPEN DOOR LIMITED," 1,160,000.00 ",07/03/2018
Commissioning,Commissioning,Cleaning and domestic material,60097432,CHURCHILL CONTRACT SERVICES, 664.48 ,01/03/2018
Commissioning,Commissioning,Cleaning and domestic material,60097587,CHURCHILL CONTRACT SERVICES, 110.38 ,01/03/2018
Commissioning,Commissioning,Cleaning and domestic material,60099737,CHURCHILL CONTRACT SERVICES, 664.48 ,28/03/2018
Commissioning,Commissioning,Cleaning and domestic material,60099759,CHURCHILL CONTRACT SERVICES, 79.86 ,28/03/2018
Commissioning,Commissioning,Other Services,80015801,LANDAU LAW LIMITED, 291.67 ,07/03/2018
Commissioning,Commissioning,Ttl IT & Comms,60097634,STOR-A FILE LTD," 5,267.03 ",01/03/2018
Commissioning,Commissioning,Other Services,60090777,SHRED-IT, 57.51 ,09/03/2018
Commissioning,Commissioning,Professional Services,60095137,QM LEGAL COSTS SOLUTIONS LTD, 537.09 ,14/03/2018
Commissioning,Commissioning,Subscriptions,80016468,ALARM, 944.00 ,26/03/2018
Commissioning,Commissioning,Grant Payments,80016310,VALUE YOU,"3,903.00",26/03/2018
Commissioning,Commissioning,Employee Expenses,60100091,TMP (UK) LTD, 189.00 ,14/03/2018
Commissioning,Commissioning,Training,10014008,DOD'S PARLIAMENTARY, 295.00 ,15/03/2018
Commissioning,Commissioning,Training,60099058,DOD'S PARLIAMENTARY," 1,180.00 ",15/03/2018
Commissioning,Commissioning,Other Services,80016566,REDACTED - PERSONAL DATA, 895.00 ,29/03/2018
Commissioning,Commissioning,CSG Services Contract Payment,60099838,GRANT THORNTON UK LLP," 23,038.00 ",28/03/2018
Commissioning,Commissioning,Subscriptions,60101375,IRMS CUSTOMER SERVICES, 449.00 ,28/03/2018
Commissioning,Commissioning,Employee Expenses,60101275,SUE HILL RECRUITMENT & SERVICES LTD," 1,448.65 ",29/03/2018
Commissioning,Commissioning,Employee Expenses,60101301,SUE HILL RECRUITMENT & SERVICES LTD," 1,448.65 ",29/03/2018
Commissioning,Commissioning,Consultants Fees,60098264,LEIDOS INNOVATIONS UK LTD," 28,152.60 ",08/03/2018
Commissioning,Commissioning,Professional Services,60098072,POLICY IN PRACTICE," 16,817.00 ",29/03/2018
Commissioning,Commissioning,Consultants Fees,60098157,POLICY IN PRACTICE," 3,500.00 ",29/03/2018
Commissioning,Commissioning,Other Agencies - Third Party P,60091841,FAMILY FUND TRADING LTD,"-1,492.22 ",02/03/2018
Commissioning,Commissioning,Other Agencies - Third Party P,60095081,FAMILY FUND TRADING LTD,-902.88 ,02/03/2018
Commissioning,Commissioning,Other Agencies - Third Party P,60096531,FAMILY FUND TRADING LTD, 135.00 ,02/03/2018
Commissioning,Commissioning,Other Agencies - Third Party P,60099513,FAMILY FUND TRADING LTD,"-3,394.63 ",02/03/2018
Commissioning,Commissioning,Equipment and Materials Purcha,60099526,OCS GROUP UK LIMITED," 47,050.00 ",01/03/2018
Commissioning,Commissioning,Transport Hire Charges,60100866,MOTT MACDONALD LTD/CAMBRIDGE EDUCATION, 456.50 ,22/03/2018
Commissioning,Commissioning,Subscriptions,60099025,LONDON YOUTH GAMES," 7,000.00 ",15/03/2018
Commissioning,Commissioning,Other Transfer Payments to Soc,60098095,EMPOWERING COMMUNITIES," 5,949.00 ",16/03/2018
Commissioning,Commissioning,Food Costs,60100857,ISS MEDICLEAN, 23.00 ,22/03/2018
Commissioning,Commissioning,Other Services,80016038,THOMPSONS SOLICITORS, 291.67 ,13/03/2018
Commissioning,Commissioning,Private Contractors - Third Pa,60099765,GREENWICH LEISURE LTD," 32,505.53 ",13/03/2018
Commissioning,Commissioning,Other Services,60099641,GREENWICH LEISURE LTD, 476.63 ,09/03/2018
Commissioning,Commissioning,Other Services,60096848,COLINDALE COMMUNITIES TRUST," 2,422.50 ",12/03/2018
Commissioning,Commissioning,Other Services,60100113,THE 4FRONT PROJECT LTD," 1,050.00 ",15/03/2018
Commissioning,Commissioning,Professional Services,60099652,REDACTED - PERSONAL DATA, 60.00 ,26/03/2018
Commissioning,Commissioning,Other Services,60096856,BARNET COMMUNITY PROJECTS, 537.50 ,12/03/2018
Commissioning,Commissioning,Professional Services,60100013,REDACTED - PERSONAL DATA, 112.50 ,27/03/2018
Commissioning,Commissioning,Professional Services,60100136,REDACTED - PERSONAL DATA, 150.00 ,14/03/2018
Commissioning,Commissioning,Professional Services,60098059,REDACTED - PERSONAL DATA, 150.00 ,01/03/2018
Commissioning,Commissioning,Other Agencies - Third Party P,10014009,LONDON BOROUGH OF HARINGEY,"52,000.00",19/03/2018
Commissioning,Commissioning,Consultants Fees,60097841,LEDNET," 2,500.00 ",16/03/2018
Commissioning,Commissioning,Consultants Fees,60100908,TROWERS & HAMLINS, 726.70 ,23/03/2018
Commissioning,Commissioning,Consultants Fees,60100446,LONDON BOROUGH OF EALING,"15,000.00",19/03/2018
Commissioning,Commissioning,Consultants Fees,60100476,LONDON BOROUGH OF EALING," 2,500.00 ",19/03/2018
Commissioning,Commissioning,Professional Services,60099850,FLUID DESIGN LTD," 6,638.75 ",28/03/2018
Commissioning,Commissioning,Other Transfer Payments to Soc,60098058,UKCT SUPPORT SERVICES LIMITED, 450.00 ,14/03/2018
Commissioning,Commissioning,Publications,60097920,REDACTED - PERSONAL DATA,225.00,20/03/2018
Commissioning,Commissioning,Professional Services,80015981,CITY OF BRADFORD,265.00,07/03/2018
Commissioning,Commissioning,Employee Expenses,60100099,TMP (UK) LTD, 841.00 ,13/03/2018
Commissioning,Commissioning,Employee Expenses,60100444,GATENBY SANDERSON," 4,000.00 ",19/03/2018
Commissioning,Commissioning,Professional Services,60098067,MYSTERY SHOPPERS LTD, 399.80 ,08/03/2018
Commissioning,Commissioning,Professional Services,60099694,MYSTERY SHOPPERS LTD, 399.80 ,28/03/2018
Commissioning,Commissioning,Professional Services,60099708,ELECTORAL REFORM SERVICES," 5,499.68 ",07/03/2018
Commissioning,Commissioning,Professional Services,60099736,ELECTORAL REFORM SERVICES,"3,149.86",07/03/2018
Commissioning,Commissioning,Professional Services,60099789,ELECTORAL REFORM SERVICES," 1,000.00 ",28/03/2018
Commissioning,Commissioning,Professional Services,60099419,WESTCO TRADING LTD," 17,800.00 ",20/03/2018
Commissioning,Commissioning,Professional Services,60099455,WESTCO TRADING LTD," 18,200.00 ",20/03/2018
Commissioning,Commissioning,Professional Services,60099846,QUALITY FIELDWORK & RESEARCH, 455.25 ,16/03/2018
Commissioning,Commissioning,Publications,60099994,AV2HIRE," 1,960.00 ",15/03/2018
Commissioning,Commissioning,Publications,60099005,ACCESS INTELLIGENCE MEDIA & COMM.LT," 4,200.00 ",12/03/2018
Commissioning,Commissioning,Publications,60100624,GOOD IMPRESSIONS (LONDON) LIMITED," 2,180.00 ",20/03/2018
Commissioning,Commissioning,Consultants Fees,60099266,GATENBY SANDERSON," 13,642.56 ",09/03/2018
Commissioning,Commissioning,Consultants Fees,80016563,FEN REGIS TROPHIES LTD,336.00,29/03/2018
Commissioning,Commissioning,Other Services,80011528,AGE UK BARNET,250.00,05/03/2018
Commissioning,Commissioning,Other Services,80014822,DB COACHING & CONSULTANCY LTD," 2,490.30 ",07/03/2018
Commissioning,Commissioning,Consultants Fees,60099606,GARDINER & THEOBALD LLP," 7,500.00 ",28/03/2018
Commissioning,Commissioning,Consultants Fees,60088392,FMG CONSULTING LTD," 1,445.91 ",23/03/2018
Commissioning,Commissioning,Consultants Fees,60099777,FMG CONSULTING LTD, 911.85 ,07/03/2018
Commissioning,Commissioning,Consultants Fees,60098993,ROYAL AIR FORCE MUSEUM," 1,100.00 ",05/03/2018
Commissioning,Commissioning,Consultants Fees,60093279,GATENBY SANDERSON," 15,000.00 ",05/03/2018
Commissioning,Commissioning,Consultants Fees,60089685,KNOCK KNOCK PRODUCTIONS LTD,"6,000.00",21/03/2018
Commissioning,Commissioning,Consultants Fees,60092814,LEDNET," 2,500.00 ",16/03/2018
Commissioning,Commissioning,Other Services,60099642,BLUE 9 SECURITY LIMITED," 2,148.66 ",08/03/2018
Commissioning,Commissioning,Other Services,60099647,BLUE 9 SECURITY LIMITED," 2,148.66 ",08/03/2018
Commissioning,Commissioning,Other Services,60099654,BLUE 9 SECURITY LIMITED,"1,899.54",08/03/2018
Commissioning,Commissioning,Other Services,60099668,BLUE 9 SECURITY LIMITED," 2,148.66 ",08/03/2018
Commissioning,Commissioning,Other Services,60100403,BLUE 9 SECURITY LIMITED," 2,210.94 ",20/03/2018
Commissioning,Commissioning,Other Services,60100415,BLUE 9 SECURITY LIMITED," 2,179.80 ",20/03/2018
Commissioning,Commissioning,Other Services,60100417,BLUE 9 SECURITY LIMITED," 2,179.80 ",20/03/2018
Commissioning,Commissioning,Other Services,60100429,BLUE 9 SECURITY LIMITED," 2,210.94 ",20/03/2018
Commissioning,Commissioning,Other Services,60100463,BLUE 9 SECURITY LIMITED," 4,639.86 ",20/03/2018
Commissioning,Commissioning,Other Services,60100485,BLUE 9 SECURITY LIMITED," 2,366.66 ",20/03/2018
Commissioning,Commissioning,Other Services,60097738,CAN DIGITAL SOLUTIONS LTD," 3,000.00 ",06/03/2018
Commissioning,Commissioning,Professional Services,60099470,TRACEY HILL TRAINING & CONSULTANCY LTD," 3,133.08 ",27/03/2018
Commissioning,Commissioning,Professional Services,60097576,EJH TRAINING SERVICES LTD," 2,285.94 ",05/03/2018
Commissioning,Commissioning,Consultants Fees,60098227,GATENBY SANDERSON," 2,819.93 ",14/03/2018
Commissioning,Commissioning,Consultants Fees,60098334,GATENBY SANDERSON," 2,813.05 ",12/03/2018
Commissioning,Commissioning,Other Local Authorities - Thir,EBX0215284,NORTH LONDON WASTE,"872,077.00",02/03/2018
Commissioning,Commissioning,Capital Construction and Works,60096595,MOBILISE PUBLIC LTD," 3,467.50 ",13/03/2018
Commissioning,Commissioning,Equipment and Materials Purcha,60099715,JOHN GRAHAM CONSTRUCTION LTD," 231,867.68 ",15/03/2018
Commissioning,Commissioning,Consultants Fees,60098396,E-CAR CLUB," 2,572.10 ",14/03/2018
Commissioning,Commissioning,Consultants Fees,60098614,GALLIFORD TRY," 1,550,822.69 ",01/03/2018
Commissioning,Commissioning,Consultants Fees,60100256,GALLIFORD TRY,"2,396,713.50",21/03/2018
Commissioning,Commissioning,Consultants Fees,80015511,WP COURSES / SEO WEB DESIGNS, 670.00 ,16/03/2018
Commissioning,Commissioning,Advertising,80015568,TRAVEL WEEKLY GROUP LTD," 1,560.00 ",16/03/2018
Commissioning,Commissioning,Advertising,60099437,TMP (UK) LTD,876.00,22/03/2018
Commissioning,Commissioning,Advertising,60099388,TMP (UK) LTD, 534.00 ,23/03/2018
Commissioning,Commissioning,Other Services,60100610,BARNET LIGHTING SERVICES LTD," 5,245.23 ",20/03/2018
Commissioning,Commissioning,Other Services,60100683,BARNET LIGHTING SERVICES LTD," 5,806.78 ",20/03/2018
Commissioning,Commissioning,Other Services,60100619,CONWAY AECOM LTD, 759.31 ,28/03/2018
Commissioning,Commissioning,Other Services,60101075,CONWAY AECOM LTD,935.04,27/03/2018
Commissioning,Commissioning,Equipment and Materials Purcha,60101295,CONWAY AECOM LTD," 2,894.92 ",28/03/2018
Corporate Accounting,Corporate Accounting,Other Establishments - Third P,20035858,QUEEN ELIZABETH'S GIRLS ACADEMY," 4,549.05 ",26/03/2018
Corporate Accounting,Corporate Accounting,Other Establishments - Third P,20035863,QUEEN ELIZABETH'S GIRLS ACADEMY," 1,575.00 ",26/03/2018
Corporate Accounting,Corporate Accounting,Other Establishments - Third P,20035857,COPTHALL SCHOOL (ACADEMY), 875.00 ,26/03/2018
Corporate Accounting,Corporate Accounting,Other Establishments - Third P,20035862,COPTHALL SCHOOL (ACADEMY)," 3,723.76 ",26/03/2018
Corporate Accounting,Corporate Accounting,Other Establishments - Third P,20035860,THE HYDE EF ACADEMY," 4,069.20 ",26/03/2018
Corporate Accounting,Corporate Accounting,Other Establishments - Third P,20035855,PARKFIELD ACADEMY," 2,609.51 ",28/03/2018
Corporate Accounting,Corporate Accounting,Other Establishments - Third P,20035861,PARKFIELD ACADEMY, 875.00 ,28/03/2018
Corporate Accounting,Corporate Accounting,Other Establishments - Third P,20035854,CLAREMONT PRIMARY SCHOOL ACADEMY," 5,320.00 ",26/03/2018
Corporate Accounting,Corporate Accounting,Other Establishments - Third P,20035859,CLAREMONT PRIMARY SCHOOL ACADEMY,280.00,26/03/2018
Corporate Accounting,Corporate Accounting,Other Establishments - Third P,20035856,SUMMERSIDE PRIMARY ACADEMY, 563.33 ,26/03/2018
Corporate Accounting,Corporate Accounting,Other Establishments - Third P,20035853,COPTHALL SCHOOL (ACADEMY), 834.59 ,26/03/2018
Corporate Accounting,Corporate Accounting,Other Establishments - Third P,20035852,SUMMERSIDE PRIMARY ACADEMY," 3,193.20 ",26/03/2018
Corporate Accounting,Corporate Accounting,Grant Payments,80016307,THE LARCHES TRUST," 2,500.00 ",26/03/2018
Corporate Accounting,Corporate Accounting,Grant Payments,80016303,FRIENDS OF WINDSOR OPEN SPACE,"5,000.00",26/03/2018
Corporate Accounting,Corporate Accounting,Other Agencies - Third Party P,80016067,THE BEECHES UK LTD, 600.00 ,16/03/2018
Corporate Accounting,Corporate Accounting,Other Transfer Payments to Soc,80016082,WIRECARD (FS INSTANT 2040880892973),"11,640.83",13/03/2018
Corporate Accounting,Corporate Accounting,Other Transfer Payments to Soc,80016083,WIRECARD (FS ONGOING 2040881670310," 10,366.63 ",13/03/2018
Corporate Accounting,Corporate Accounting,Other Transfer Payments,80016233,ANTHONY GOLD SOLICITORS," 1,000.00 ",26/03/2018
Corporate Accounting,Corporate Accounting,Other Transfer Payments,80016237,AXIOM STONE SOLICITORS, 800.00 ,26/03/2018
Corporate Accounting,Corporate Accounting,Other Transfer Payments,80016239,AXIOM STONE SOLICITORS," 1,000.00 ",26/03/2018
Corporate Accounting,Corporate Accounting,Refunds,80016102,KISHARON DAY SCHOOL, 271.55 ,13/03/2018
Corporate Accounting,Corporate Accounting,Other Local Authorities - Thir,EBX0216767,GREATER LONDON AUTHORITY,"49,828.80",13/03/2018
Corporate Accounting,Corporate Accounting,Other Local Authorities - Thir,EBX0216582,GREATER LONDON AUTHORITY," 3,428,215.84 ",09/03/2018
Corporate Accounting,Corporate Accounting,Other Local Authorities - Thir,EBX0216326,GREATER LONDON AUTHORITY," 234,602.95 ",07/03/2018
Corporate Accounting,Corporate Accounting,Other Local Authorities - Thir,EBX0215954,GREATER LONDON AUTHORITY,"4,014,752.61",13/03/2018
Delivery Units,Adults and Communities,Voluntary Associations - Third,30178110,ELEANOR PALMER TRUST NO 2 A/C., 486.50 ,23/03/2018
Delivery Units,Adults and Communities,Voluntary Associations - Third,30178109,CHRISTIAN ACTION (ENFIELD), 365.80 ,23/03/2018
Delivery Units,Adults and Communities,Voluntary Associations - Third,30178107,ASRA GREATER LONDON HOUSING ASSOC, 379.30 ,23/03/2018
Delivery Units,Adults and Communities,Voluntary Associations - Third,30178118,LINEN & WOOLLEN DRAPERS COTTAGE, 730.11 ,23/03/2018
Delivery Units,Adults and Communities,Voluntary Associations - Third,30178112,HABINTEG HOUSING ASSOCIATION, 446.37 ,23/03/2018
Delivery Units,Adults and Communities,Voluntary Associations - Third,30178116,ORCHARD HOUSING ASSOCIATION, 196.62 ,23/03/2018
Delivery Units,Adults and Communities,Voluntary Associations - Third,30178117,ST PANCRAS & HUMANIST H.A., 661.55 ,23/03/2018
Delivery Units,Adults and Communities,Other Services,30178121,WILLOW HOUSING & CARE LTD., 711.38 ,23/03/2018
Delivery Units,Adults and Communities,Voluntary Associations - Third,30178113,JEWISH COMMUNITY HOUSING ASSOCIATIO,568.17,23/03/2018
Delivery Units,Adults and Communities,Voluntary Associations - Third,30178120,SCOTSCARE, 361.52 ,23/03/2018
Delivery Units,Adults and Communities,Transport Hire Charges,60099630,MOTT MACDONALD LTD/CAMBRIDGE EDUCATION, 135.00 ,05/03/2018
Delivery Units,Adults and Communities,Other Services,80016338,REDACTED - PERSONAL DATA, 250.00 ,20/03/2018
Delivery Units,Adults and Communities,Other Services,60100450,M1 EXPRESS CAR SERVICES, 374.00 ,20/03/2018
Delivery Units,Adults and Communities,Other Services,80016144,THE BARNETGROUP LIMITED,"67,786.23",23/03/2018
Delivery Units,Adults and Communities,Ttl IT & Comms,60099975,P A CONSULTING SERVICES LTD," 219,950.00 ",27/03/2018
Delivery Units,Adults and Communities,Other Agencies - Third Party P,90065000,NIGHTINGALE HOUSE,"2,620.00",20/03/2018
Delivery Units,Adults and Communities,Other Agencies - Third Party P,90065001,NIGHTINGALE HOUSE,"2,900.71",20/03/2018
Delivery Units,Adults and Communities,Other Agencies - Third Party P,90062370,JEWISH CARE,-18.35 ,09/03/2018
Delivery Units,Adults and Communities,Other Agencies - Third Party P,90063319,JEWISH CARE,-497.02 ,13/03/2018
Delivery Units,Adults and Communities,Other Agencies - Third Party P,90064294,JEWISH CARE," 2,319.44 ",16/03/2018
Delivery Units,Adults and Communities,Other Agencies - Third Party P,90064296,JEWISH CARE," 2,568.84 ",16/03/2018
Delivery Units,Adults and Communities,Other Agencies - Third Party P,90064297,JEWISH CARE," 2,568.84 ",16/03/2018
Delivery Units,Adults and Communities,Other Agencies - Third Party P,90064298,JEWISH CARE," 2,319.44 ",16/03/2018
Delivery Units,Adults and Communities,Other Agencies - Third Party P,90064299,JEWISH CARE," 2,319.44 ",16/03/2018
Delivery Units,Adults and Communities,Other Agencies - Third Party P,90064300,JEWISH CARE," 2,568.84 ",16/03/2018
Delivery Units,Adults and Communities,Other Agencies - Third Party P,90064301,JEWISH CARE," 2,319.44 ",16/03/2018
Delivery Units,Adults and Communities,Other Agencies - Third Party P,90064302,JEWISH CARE," 2,568.84 ",16/03/2018
Delivery Units,Adults and Communities,Other Agencies - Third Party P,90064303,JEWISH CARE," 2,568.84 ",16/03/2018
Delivery Units,Adults and Communities,Other Agencies - Third Party P,90064304,JEWISH CARE," 2,568.84 ",16/03/2018
Delivery Units,Adults and Communities,Other Agencies - Third Party P,90064305,JEWISH CARE,"2,319.44",16/03/2018
Delivery Units,Adults and Communities,Other Agencies - Third Party P,90064306,JEWISH CARE," 2,568.84 ",16/03/2018
Delivery Units,Adults and Communities,Other Agencies - Third Party P,90064307,JEWISH CARE," 1,100.93 ",16/03/2018
Delivery Units,Adults and Communities,Other Agencies - Third Party P,90064308,JEWISH CARE," 2,319.44 ",16/03/2018
Delivery Units,Adults and Communities,Other Agencies - Third Party P,90064309,JEWISH CARE," 2,319.44 ",16/03/2018
Delivery Units,Adults and Communities,Other Agencies - Third Party P,90064311,JEWISH CARE," 2,568.84 ",16/03/2018
Delivery Units,Adults and Communities,Other Agencies - Third Party P,90064312,JEWISH CARE," 2,568.84 ",16/03/2018
Delivery Units,Adults and Communities,Other Agencies - Third Party P,90064313,JEWISH CARE," 2,319.44 ",16/03/2018
Delivery Units,Adults and Communities,Other Agencies - Third Party P,90064314,JEWISH CARE," 2,319.44 ",16/03/2018
Delivery Units,Adults and Communities,Other Agencies - Third Party P,90064315,JEWISH CARE," 2,319.44 ",16/03/2018
Delivery Units,Adults and Communities,Other Agencies - Third Party P,90064316,JEWISH CARE," 2,319.44 ",16/03/2018
Delivery Units,Adults and Communities,Other Agencies - Third Party P,90064317,JEWISH CARE,"2,319.44",16/03/2018
Delivery Units,Adults and Communities,Other Agencies - Third Party P,90064318,JEWISH CARE," 2,568.84 ",16/03/2018
Delivery Units,Adults and Communities,Other Agencies - Third Party P,90064545,JEWISH CARE,"2,319.44",16/03/2018
Delivery Units,Adults and Communities,Other Agencies - Third Party P,90063665,FERNBANK NURSING HOME.," 2,165.52 ",13/03/2018
Delivery Units,Adults and Communities,Other Agencies - Third Party P,90063817,FERNBANK NURSING HOME.," 2,657.01 ",13/03/2018
Delivery Units,Adults and Communities,Other Agencies - Third Party P,90063818,FERNBANK NURSING HOME.," 2,397.54 ",13/03/2018
Delivery Units,Adults and Communities,Other Agencies - Third Party P,90063819,FERNBANK NURSING HOME.,"2,318.80",13/03/2018
Delivery Units,Adults and Communities,Other Agencies - Third Party P,90063820,FERNBANK NURSING HOME.,"2,397.54",13/03/2018
Delivery Units,Adults and Communities,Other Agencies - Third Party P,90063822,FERNBANK NURSING HOME.,"2,318.80",13/03/2018
Delivery Units,Adults and Communities,Other Agencies - Third Party P,90063823,FERNBANK NURSING HOME.,"2,413.35",13/03/2018
Delivery Units,Adults and Communities,Other Agencies - Third Party P,90063824,FERNBANK NURSING HOME.,"2,397.54",13/03/2018
Delivery Units,Adults and Communities,Other Agencies - Third Party P,90067102,FERNBANK NURSING HOME.," 11,485.14 ",27/03/2018
Delivery Units,Adults and Communities,Other Agencies - Third Party P,90061543,BUPA NURSING HOMES LTD - ARKLEY,"2,227.52",08/03/2018
Delivery Units,Adults and Communities,Other Agencies - Third Party P,90061544,BUPA NURSING HOMES LTD - ARKLEY," 2,227.24 ",08/03/2018
Delivery Units,Adults and Communities,Other Agencies - Third Party P,90061545,BUPA NURSING HOMES LTD - ARKLEY,"2,227.24",08/03/2018
Delivery Units,Adults and Communities,Other Agencies - Third Party P,90061547,BUPA NURSING HOMES LTD - ARKLEY,"2,227.40",08/03/2018
Delivery Units,Adults and Communities,Other Agencies - Third Party P,90061548,BUPA NURSING HOMES LTD - ARKLEY,"2,214.76",08/03/2018
Delivery Units,Adults and Communities,Other Agencies - Third Party P,90061756,AGUDAS ISRAEL HOUSING ASSCTN LTD," 2,736.86 ",08/03/2018
Delivery Units,Adults and Communities,Other Agencies - Third Party P,90064201,AGUDAS ISRAEL HOUSING ASSCTN LTD," 2,736.86 ",23/03/2018
Delivery Units,Adults and Communities,Other Agencies - Third Party P,90065496,AGUDAS ISRAEL HOUSING ASSCTN LTD,"2,472.00",20/03/2018
Delivery Units,Adults and Communities,Other Agencies - Third Party P,90062338,WESTMINSTER HEALTH CARE LTD," 2,324.25 ",09/03/2018
Delivery Units,Adults and Communities,Other Agencies - Third Party P,90062339,WESTMINSTER HEALTH CARE LTD,"2,307.37",09/03/2018
Delivery Units,Adults and Communities,Other Agencies - Third Party P,90062340,WESTMINSTER HEALTH CARE LTD," 2,324.25 ",09/03/2018
Delivery Units,Adults and Communities,Other Agencies - Third Party P,90065003,WESTMINSTER HEALTH CARE LTD,"2,318.93",20/03/2018
Delivery Units,Adults and Communities,Other Agencies - Third Party P,90061755,HENRY NIHILL HOUSE," 2,165.68 ",08/03/2018
Delivery Units,Adults and Communities,Other Agencies - Third Party P,90068180,HENRY NIHILL HOUSE,"2,165.68",29/03/2018
Delivery Units,Adults and Communities,Other Agencies - Third Party P,90068181,HENRY NIHILL HOUSE," 2,165.68 ",29/03/2018
Delivery Units,Adults and Communities,Other Agencies - Third Party P,90068182,HENRY NIHILL HOUSE,"2,165.68",29/03/2018
Delivery Units,Adults and Communities,Other Agencies - Third Party P,90068183,HENRY NIHILL HOUSE," 2,165.68 ",29/03/2018
Delivery Units,Adults and Communities,Other Agencies - Third Party P,90068185,HENRY NIHILL HOUSE," 2,165.68 ",29/03/2018
Delivery Units,Adults and Communities,Other Agencies - Third Party P,90068186,HENRY NIHILL HOUSE," 2,165.68 ",29/03/2018
Delivery Units,Adults and Communities,Other Agencies - Third Party P,90068197,HENRY NIHILL HOUSE," 2,165.68 ",29/03/2018
Delivery Units,Adults and Communities,Other Agencies - Third Party P,90068198,HENRY NIHILL HOUSE," 2,165.68 ",29/03/2018
Delivery Units,Adults and Communities,Other Agencies - Third Party P,90068199,HENRY NIHILL HOUSE,"2,165.68",29/03/2018
Delivery Units,Adults and Communities,Other Agencies - Third Party P,90068200,HENRY NIHILL HOUSE," 2,165.68 ",29/03/2018
Delivery Units,Adults and Communities,Other Agencies - Third Party P,90068201,HENRY NIHILL HOUSE," 2,165.68 ",29/03/2018
Delivery Units,Adults and Communities,Other Agencies - Third Party P,90068203,HENRY NIHILL HOUSE," 2,165.68 ",29/03/2018
Delivery Units,Adults and Communities,Other Agencies - Third Party P,90068204,HENRY NIHILL HOUSE," 2,165.68 ",29/03/2018
Delivery Units,Adults and Communities,Other Agencies - Third Party P,90068205,HENRY NIHILL HOUSE," 2,165.68 ",29/03/2018
Delivery Units,Adults and Communities,Other Agencies - Third Party P,90057314,THE LEONARD CHESHIRE FOUNDATION," 5,900.00 ",15/03/2018
Delivery Units,Adults and Communities,Other Agencies - Third Party P,90061489,LIFESTYLE CARE PLC,"2,655.55",08/03/2018
Delivery Units,Adults and Communities,Other Agencies - Third Party P,90063285,LIFESTYLE CARE PLC," 5,839.28 ",13/03/2018
Delivery Units,Adults and Communities,Other Agencies - Third Party P,90063318,LIFESTYLE CARE PLC,618.77,13/03/2018
Delivery Units,Adults and Communities,Other Agencies - Third Party P,90063826,LIFESTYLE CARE PLC," 2,655.55 ",13/03/2018
Delivery Units,Adults and Communities,Other Agencies - Third Party P,90063827,LIFESTYLE CARE PLC,"2,397.72",13/03/2018
Delivery Units,Adults and Communities,Other Agencies - Third Party P,90063828,LIFESTYLE CARE PLC," 2,655.55 ",13/03/2018
Delivery Units,Adults and Communities,Other Agencies - Third Party P,90063829,LIFESTYLE CARE PLC," 2,655.55 ",13/03/2018
Delivery Units,Adults and Communities,Other Agencies - Third Party P,90063830,LIFESTYLE CARE PLC,"-2,569.89 ",13/03/2018
Delivery Units,Adults and Communities,Other Agencies - Third Party P,90063831,LIFESTYLE CARE PLC," 2,655.55 ",13/03/2018
Delivery Units,Adults and Communities,Other Agencies - Third Party P,90063878,LIFESTYLE CARE PLC,"2,655.55",13/03/2018
Delivery Units,Adults and Communities,Other Agencies - Third Party P,90064656,LIFESTYLE CARE PLC," 2,397.72 ",16/03/2018
Delivery Units,Adults and Communities,Other Agencies - Third Party P,90064657,LIFESTYLE CARE PLC," 2,397.72 ",16/03/2018
Delivery Units,Adults and Communities,Other Agencies - Third Party P,90064659,LIFESTYLE CARE PLC," 2,655.55 ",16/03/2018
Delivery Units,Adults and Communities,Other Agencies - Third Party P,90064660,LIFESTYLE CARE PLC,"2,655.55",16/03/2018
Delivery Units,Adults and Communities,Other Agencies - Third Party P,90064661,LIFESTYLE CARE PLC,"2,655.55",16/03/2018
Delivery Units,Adults and Communities,Other Agencies - Third Party P,90064662,LIFESTYLE CARE PLC," 2,397.72 ",16/03/2018
Delivery Units,Adults and Communities,Other Agencies - Third Party P,90064663,LIFESTYLE CARE PLC," 2,397.72 ",16/03/2018
Delivery Units,Adults and Communities,Other Agencies - Third Party P,90064664,LIFESTYLE CARE PLC,"2,397.72",16/03/2018
Delivery Units,Adults and Communities,Other Agencies - Third Party P,90064668,LIFESTYLE CARE PLC,"2,320.37",16/03/2018
Delivery Units,Adults and Communities,Other Agencies - Third Party P,90064669,LIFESTYLE CARE PLC," 2,320.37 ",16/03/2018
Delivery Units,Adults and Communities,Other Agencies - Third Party P,90064671,LIFESTYLE CARE PLC," 2,569.89 ",16/03/2018
Delivery Units,Adults and Communities,Other Agencies - Third Party P,90064672,LIFESTYLE CARE PLC," 2,569.89 ",16/03/2018
Delivery Units,Adults and Communities,Other Agencies - Third Party P,90064673,LIFESTYLE CARE PLC,"2,569.89",16/03/2018
Delivery Units,Adults and Communities,Other Agencies - Third Party P,90064674,LIFESTYLE CARE PLC,"2,320.37",16/03/2018
Delivery Units,Adults and Communities,Other Agencies - Third Party P,90064677,LIFESTYLE CARE PLC,"2,397.72",16/03/2018
Delivery Units,Adults and Communities,Other Agencies - Third Party P,90064678,LIFESTYLE CARE PLC," 2,397.72 ",16/03/2018
Delivery Units,Adults and Communities,Other Agencies - Third Party P,90064680,LIFESTYLE CARE PLC," 2,655.55 ",16/03/2018
Delivery Units,Adults and Communities,Other Agencies - Third Party P,90064681,LIFESTYLE CARE PLC," 2,655.55 ",16/03/2018
Delivery Units,Adults and Communities,Other Agencies - Third Party P,90064682,LIFESTYLE CARE PLC,"2,655.55",16/03/2018
Delivery Units,Adults and Communities,Other Agencies - Third Party P,90064683,LIFESTYLE CARE PLC,"2,397.72",16/03/2018
Delivery Units,Adults and Communities,Other Agencies - Third Party P,90064684,LIFESTYLE CARE PLC," 2,397.72 ",16/03/2018
Delivery Units,Adults and Communities,Other Agencies - Third Party P,90064685,LIFESTYLE CARE PLC,"2,397.72",16/03/2018
Delivery Units,Adults and Communities,Other Agencies - Third Party P,90064686,LIFESTYLE CARE PLC," 2,397.72 ",16/03/2018
Delivery Units,Adults and Communities,Other Agencies - Third Party P,90064689,LIFESTYLE CARE PLC,"2,397.72",16/03/2018
Delivery Units,Adults and Communities,Other Agencies - Third Party P,90064691,LIFESTYLE CARE PLC,"2,655.55",16/03/2018
Delivery Units,Adults and Communities,Other Agencies - Third Party P,90064692,LIFESTYLE CARE PLC,"2,655.55",16/03/2018
Delivery Units,Adults and Communities,Other Agencies - Third Party P,90064693,LIFESTYLE CARE PLC,"2,655.55",16/03/2018
Delivery Units,Adults and Communities,Other Agencies - Third Party P,90064694,LIFESTYLE CARE PLC," 2,397.72 ",16/03/2018
Delivery Units,Adults and Communities,Other Agencies - Third Party P,90064695,LIFESTYLE CARE PLC," 2,397.72 ",16/03/2018
Delivery Units,Adults and Communities,Other Agencies - Third Party P,90064696,LIFESTYLE CARE PLC,"2,397.72",16/03/2018
Delivery Units,Adults and Communities,Other Agencies - Third Party P,90065464,LIFESTYLE CARE PLC,"2,320.37",20/03/2018
Delivery Units,Adults and Communities,Other Agencies - Third Party P,90065465,LIFESTYLE CARE PLC," 2,320.37 ",20/03/2018
Delivery Units,Adults and Communities,Other Agencies - Third Party P,90065467,LIFESTYLE CARE PLC," 2,569.89 ",20/03/2018
Delivery Units,Adults and Communities,Other Agencies - Third Party P,90065468,LIFESTYLE CARE PLC," 2,569.89 ",20/03/2018
Delivery Units,Adults and Communities,Other Agencies - Third Party P,90065469,LIFESTYLE CARE PLC," 2,320.37 ",20/03/2018
Delivery Units,Adults and Communities,Other Agencies - Third Party P,90065470,LIFESTYLE CARE PLC," 2,320.37 ",20/03/2018
Delivery Units,Adults and Communities,Other Agencies - Third Party P,90065471,LIFESTYLE CARE PLC,386.73,20/03/2018
Delivery Units,Adults and Communities,Other Agencies - Third Party P,90065472,LIFESTYLE CARE PLC,"2,320.37",20/03/2018
Delivery Units,Adults and Communities,Other Agencies - Third Party P,90065477,LIFESTYLE CARE PLC," 2,320.37 ",20/03/2018
Delivery Units,Adults and Communities,Other Agencies - Third Party P,90065869,LIFESTYLE CARE PLC," 2,397.72 ",23/03/2018
Delivery Units,Adults and Communities,Other Agencies - Third Party P,90065871,LIFESTYLE CARE PLC," 2,397.72 ",23/03/2018
Delivery Units,Adults and Communities,Other Agencies - Third Party P,90065872,LIFESTYLE CARE PLC,"2,655.55",23/03/2018
Delivery Units,Adults and Communities,Other Agencies - Third Party P,90065873,LIFESTYLE CARE PLC," 2,655.55 ",23/03/2018
Delivery Units,Adults and Communities,Other Agencies - Third Party P,90065874,LIFESTYLE CARE PLC," 2,397.72 ",23/03/2018
Delivery Units,Adults and Communities,Other Agencies - Third Party P,90065875,LIFESTYLE CARE PLC,"2,397.72",23/03/2018
Delivery Units,Adults and Communities,Other Agencies - Third Party P,90065876,LIFESTYLE CARE PLC," 2,397.72 ",23/03/2018
Delivery Units,Adults and Communities,Other Agencies - Third Party P,90065879,LIFESTYLE CARE PLC," 2,165.68 ",23/03/2018
Delivery Units,Adults and Communities,Other Agencies - Third Party P,90065881,LIFESTYLE CARE PLC,"1,701.61",23/03/2018
Delivery Units,Adults and Communities,Other Agencies - Third Party P,90065882,LIFESTYLE CARE PLC,"2,398.56",23/03/2018
Delivery Units,Adults and Communities,Other Agencies - Third Party P,90065883,LIFESTYLE CARE PLC," 2,398.56 ",23/03/2018
Delivery Units,Adults and Communities,Other Agencies - Third Party P,90065884,LIFESTYLE CARE PLC," 2,165.68 ",23/03/2018
Delivery Units,Adults and Communities,Other Agencies - Third Party P,90065885,LIFESTYLE CARE PLC," 2,165.68 ",23/03/2018
Delivery Units,Adults and Communities,Other Agencies - Third Party P,90065886,LIFESTYLE CARE PLC," 2,165.68 ",23/03/2018
Delivery Units,Adults and Communities,Other Agencies - Third Party P,90061513,SONESTA NURSING HOME LTD.," 2,398.56 ",08/03/2018
Delivery Units,Adults and Communities,Other Agencies - Third Party P,90061515,SONESTA NURSING HOME LTD.,"2,165.68",08/03/2018
Delivery Units,Adults and Communities,Other Agencies - Third Party P,90065529,SONESTA NURSING HOME LTD.,"2,397.72",20/03/2018
Delivery Units,Adults and Communities,Other Agencies - Third Party P,90065531,SONESTA NURSING HOME LTD.,"2,398.56",20/03/2018
Delivery Units,Adults and Communities,Other Agencies - Third Party P,90065522,MEERA NURSING HOME LIMITED," 2,708.65 ",20/03/2018
Delivery Units,Adults and Communities,Other Agencies - Third Party P,90065523,MEERA NURSING HOME LIMITED," 2,445.68 ",20/03/2018
Delivery Units,Adults and Communities,Other Agencies - Third Party P,90065524,MEERA NURSING HOME LIMITED," 2,445.68 ",20/03/2018
Delivery Units,Adults and Communities,Other Agencies - Third Party P,90065525,MEERA NURSING HOME LIMITED," 2,708.65 ",20/03/2018
Delivery Units,Adults and Communities,Other Agencies - Third Party P,90065526,MEERA NURSING HOME LIMITED," 2,445.68 ",20/03/2018
Delivery Units,Adults and Communities,Other Agencies - Third Party P,90065527,MEERA NURSING HOME LIMITED," 2,445.68 ",20/03/2018
Delivery Units,Adults and Communities,Other Agencies - Third Party P,90065528,MEERA NURSING HOME LIMITED," 2,907.93 ",20/03/2018
Delivery Units,Adults and Communities,Other Agencies - Third Party P,90063248,NEWCENTURY CARE LTD," 6,171.43 ",12/03/2018
Delivery Units,Adults and Communities,Other Agencies - Third Party P,90063315,NEWCENTURY CARE LTD,"3,000.00",13/03/2018
Delivery Units,Adults and Communities,Other Agencies - Third Party P,90063316,NEWCENTURY CARE LTD," 3,009.52 ",13/03/2018
Delivery Units,Adults and Communities,Other Agencies - Third Party P,90063508,NEWCENTURY CARE LTD," 3,400.00 ",13/03/2018
Delivery Units,Adults and Communities,Other Agencies - Third Party P,90063879,NEWCENTURY CARE LTD,"3,321.43",13/03/2018
Delivery Units,Adults and Communities,Other Agencies - Third Party P,90064107,NEWCENTURY CARE LTD," 3,985.71 ",15/03/2018
Delivery Units,Adults and Communities,Other Agencies - Third Party P,90064141,NEWCENTURY CARE LTD,"2,398.56",15/03/2018
Delivery Units,Adults and Communities,Other Agencies - Third Party P,90064142,NEWCENTURY CARE LTD," 3,764.29 ",15/03/2018
Delivery Units,Adults and Communities,Other Agencies - Third Party P,90064143,NEWCENTURY CARE LTD,"3,764.29",15/03/2018
Delivery Units,Adults and Communities,Other Agencies - Third Party P,90064145,NEWCENTURY CARE LTD," 3,985.71 ",15/03/2018
Delivery Units,Adults and Communities,Other Agencies - Third Party P,90064146,NEWCENTURY CARE LTD," 3,321.43 ",15/03/2018
Delivery Units,Adults and Communities,Other Agencies - Third Party P,90064148,NEWCENTURY CARE LTD,"3,321.43",15/03/2018
Delivery Units,Adults and Communities,Other Agencies - Third Party P,90063267,BUPA CARE HOMES," 2,228.04 ",12/03/2018
Delivery Units,Adults and Communities,Other Agencies - Third Party P,90064127,BUPA CARE HOMES,"2,466.76",15/03/2018
Delivery Units,Adults and Communities,Other Agencies - Third Party P,90066249,BUPA CARE HOMES," 2,272.60 ",28/03/2018
Delivery Units,Adults and Communities,Other Agencies - Third Party P,90066250,BUPA CARE HOMES,(740.32),28/03/2018
Delivery Units,Adults and Communities,Other Agencies - Third Party P,90066251,BUPA CARE HOMES," 2,165.68 ",28/03/2018
Delivery Units,Adults and Communities,Other Agencies - Third Party P,90066252,BUPA CARE HOMES," 3,400.00 ",28/03/2018
Delivery Units,Adults and Communities,Other Agencies - Third Party P,90061550,BUPA CARE HOMES," 2,321.92 ",08/03/2018
Delivery Units,Adults and Communities,Other Agencies - Third Party P,90061551,BUPA CARE HOMES," 2,321.92 ",08/03/2018
Delivery Units,Adults and Communities,Other Agencies - Third Party P,90061552,BUPA CARE HOMES,"2,549.32",08/03/2018
Delivery Units,Adults and Communities,Other Agencies - Third Party P,90064219,BUPA CARE HOMES," 3,400.00 ",16/03/2018
Delivery Units,Adults and Communities,Other Agencies - Third Party P,90064220,BUPA CARE HOMES,"2,465.00",16/03/2018
Delivery Units,Adults and Communities,Other Agencies - Third Party P,90064222,BUPA CARE HOMES," 2,225.60 ",16/03/2018
Delivery Units,Adults and Communities,Other Agencies - Third Party P,90064223,BUPA CARE HOMES,"3,379.80",16/03/2018
Delivery Units,Adults and Communities,Other Agencies - Third Party P,90065453,BUPA CARE HOMES,"2,549.32",20/03/2018
Delivery Units,Adults and Communities,Other Agencies - Third Party P,90061746,ASPEN VILLAGES LTD,"2,165.68",08/03/2018
Delivery Units,Adults and Communities,Other Agencies - Third Party P,90065134,ASPEN VILLAGES LTD,"2,397.72",20/03/2018
Delivery Units,Adults and Communities,Other Agencies - Third Party P,90065141,ASPEN VILLAGES LTD," 2,657.14 ",20/03/2018
Delivery Units,Adults and Communities,Other Agencies - Third Party P,90065142,ASPEN VILLAGES LTD,"2,398.56",20/03/2018
Delivery Units,Adults and Communities,Other Agencies - Third Party P,90065143,ASPEN VILLAGES LTD,"2,655.55",20/03/2018
Delivery Units,Adults and Communities,Other Agencies - Third Party P,90065144,ASPEN VILLAGES LTD,"2,657.14",20/03/2018
Delivery Units,Adults and Communities,Other Agencies - Third Party P,90065148,ASPEN VILLAGES LTD," 2,657.14 ",20/03/2018
Delivery Units,Adults and Communities,Other Agencies - Third Party P,90061493,FOUR SEASONS HEALTH CARE,"2,550.72",08/03/2018
Delivery Units,Adults and Communities,Other Agencies - Third Party P,90061494,FOUR SEASONS HEALTH CARE," 2,291.36 ",08/03/2018
Delivery Units,Adults and Communities,Other Agencies - Third Party P,90061495,FOUR SEASONS HEALTH CARE,"2,550.72",08/03/2018
Delivery Units,Adults and Communities,Other Agencies - Third Party P,90061496,FOUR SEASONS HEALTH CARE," 2,291.36 ",08/03/2018
Delivery Units,Adults and Communities,Other Agencies - Third Party P,90061498,FOUR SEASONS HEALTH CARE," 2,291.36 ",08/03/2018
Delivery Units,Adults and Communities,Other Agencies - Third Party P,90061499,FOUR SEASONS HEALTH CARE,"2,551.52",08/03/2018
Delivery Units,Adults and Communities,Other Agencies - Third Party P,90061501,FOUR SEASONS HEALTH CARE," 2,400.00 ",08/03/2018
Delivery Units,Adults and Communities,Other Agencies - Third Party P,90061502,FOUR SEASONS HEALTH CARE,"2,291.36",08/03/2018
Delivery Units,Adults and Communities,Other Agencies - Third Party P,90061503,FOUR SEASONS HEALTH CARE," 2,291.36 ",08/03/2018
Delivery Units,Adults and Communities,Other Agencies - Third Party P,90063323,FOUR SEASONS HEALTH CARE," 2,550.72 ",13/03/2018
Delivery Units,Adults and Communities,Other Agencies - Third Party P,90064185,FOUR SEASONS HEALTH CARE,"2,550.72",16/03/2018
Delivery Units,Adults and Communities,Other Agencies - Third Party P,90064187,FOUR SEASONS HEALTH CARE,"2,550.72",16/03/2018
Delivery Units,Adults and Communities,Other Agencies - Third Party P,90064188,FOUR SEASONS HEALTH CARE," 2,550.72 ",16/03/2018
Delivery Units,Adults and Communities,Other Agencies - Third Party P,90064189,FOUR SEASONS HEALTH CARE,"2,291.36",16/03/2018
Delivery Units,Adults and Communities,Other Agencies - Third Party P,90064191,FOUR SEASONS HEALTH CARE," 2,291.36 ",16/03/2018
Delivery Units,Adults and Communities,Other Agencies - Third Party P,90064192,FOUR SEASONS HEALTH CARE,"2,551.52",16/03/2018
Delivery Units,Adults and Communities,Other Agencies - Third Party P,90064194,FOUR SEASONS HEALTH CARE,"2,291.36",16/03/2018
Delivery Units,Adults and Communities,Other Agencies - Third Party P,90064157,SANCTUARY CARE LTD,"2,573.84",15/03/2018
Delivery Units,Adults and Communities,Other Agencies - Third Party P,90062351,B & M CARE," 3,800.00 ",09/03/2018
Delivery Units,Adults and Communities,Other Agencies - Third Party P,90063309,B & M CARE," 4,207.14 ",13/03/2018
Delivery Units,Adults and Communities,Other Agencies - Third Party P,90063310,B & M CARE,12.00,13/03/2018
Delivery Units,Adults and Communities,Other Agencies - Third Party P,90062386,BUPA CARE HOMES," 2,227.40 ",14/03/2018
Delivery Units,Adults and Communities,Other Agencies - Third Party P,90062387,BUPA CARE HOMES," 2,716.36 ",14/03/2018
Delivery Units,Adults and Communities,Other Agencies - Third Party P,90062388,BUPA CARE HOMES," 2,227.40 ",14/03/2018
Delivery Units,Adults and Communities,Other Agencies - Third Party P,90064122,BUPA CARE HOMES," 3,416.11 ",15/03/2018
Delivery Units,Adults and Communities,Other Agencies - Third Party P,90063900,SAGE NURSING HOME," 4,800.00 ",13/03/2018
Delivery Units,Adults and Communities,Other Agencies - Third Party P,90063903,SAGE NURSING HOME," 2,165.68 ",13/03/2018
Delivery Units,Adults and Communities,Other Agencies - Third Party P,90063905,SAGE NURSING HOME," 2,518.48 ",13/03/2018
Delivery Units,Adults and Communities,Other Agencies - Third Party P,90063906,SAGE NURSING HOME," 3,379.80 ",13/03/2018
Delivery Units,Adults and Communities,Other Agencies - Third Party P,90063907,SAGE NURSING HOME,"3,000.00",13/03/2018
Delivery Units,Adults and Communities,Other Agencies - Third Party P,90063908,SAGE NURSING HOME," 2,273.96 ",13/03/2018
Delivery Units,Adults and Communities,Other Agencies - Third Party P,90062189,APPLE TREE COURT CARE HOME," 2,165.68 ",13/03/2018
Delivery Units,Adults and Communities,Other Agencies - Third Party P,90062190,APPLE TREE COURT CARE HOME," 4,400.00 ",13/03/2018
Delivery Units,Adults and Communities,Other Agencies - Third Party P,90062197,APPLE TREE COURT CARE HOME,"2,321.92",13/03/2018
Delivery Units,Adults and Communities,Other Agencies - Third Party P,90062198,APPLE TREE COURT CARE HOME,"2,321.92",13/03/2018
Delivery Units,Adults and Communities,Other Agencies - Third Party P,90062199,APPLE TREE COURT CARE HOME,"23,571.42",13/03/2018
Delivery Units,Adults and Communities,Other Agencies - Third Party P,90062156,AUTUMN GARDENS," 4,800.00 ",08/03/2018
Delivery Units,Adults and Communities,Other Agencies - Third Party P,90062157,AUTUMN GARDENS,"7,714.29",08/03/2018
Delivery Units,Adults and Communities,Other Agencies - Third Party P,90062362,AUTUMN GARDENS," 6,780.00 ",09/03/2018
Delivery Units,Adults and Communities,Other Agencies - Third Party P,90063224,AUTUMN GARDENS," 4,800.00 ",12/03/2018
Delivery Units,Adults and Communities,Other Agencies - Third Party P,90063243,AUTUMN GARDENS,"4,800.00",12/03/2018
Delivery Units,Adults and Communities,Other Agencies - Third Party P,90063798,CARE UK COMMUNITY PARTNERSHIPS,"3,095.00",13/03/2018
Delivery Units,Adults and Communities,Other Agencies - Third Party P,90064117,CARE UK COMMUNITY PARTNERSHIPS," 3,426.61 ",15/03/2018
Delivery Units,Adults and Communities,Other Agencies - Third Party P,90068168,CLARE HOUSE NURSING HOME,"2,228.72",29/03/2018
Delivery Units,Adults and Communities,Other Agencies - Third Party P,90065088,ABBEY RAVENSCROFT PARK NURSING HOME," 3,321.43 ",20/03/2018
Delivery Units,Adults and Communities,Other Agencies - Third Party P,90065089,ABBEY RAVENSCROFT PARK NURSING HOME," 3,321.43 ",20/03/2018
Delivery Units,Adults and Communities,Other Agencies - Third Party P,90065090,ABBEY RAVENSCROFT PARK NURSING HOME," 3,255.00 ",20/03/2018
Delivery Units,Adults and Communities,Other Agencies - Third Party P,90065091,ABBEY RAVENSCROFT PARK NURSING HOME,"2,788.32",20/03/2018
Delivery Units,Adults and Communities,Other Agencies - Third Party P,90065092,ABBEY RAVENSCROFT PARK NURSING HOME,"2,788.32",20/03/2018
Delivery Units,Adults and Communities,Other Agencies - Third Party P,90065093,ABBEY RAVENSCROFT PARK NURSING HOME," 3,321.43 ",20/03/2018
Delivery Units,Adults and Communities,Other Agencies - Third Party P,90065094,ABBEY RAVENSCROFT PARK NURSING HOME," 2,788.32 ",20/03/2018
Delivery Units,Adults and Communities,Other Agencies - Third Party P,90065096,ABBEY RAVENSCROFT PARK NURSING HOME," 2,788.32 ",20/03/2018
Delivery Units,Adults and Communities,Other Agencies - Third Party P,90065098,ABBEY RAVENSCROFT PARK NURSING HOME,"2,788.32",20/03/2018
Delivery Units,Adults and Communities,Other Agencies - Third Party P,90065099,ABBEY RAVENSCROFT PARK NURSING HOME," 3,100.00 ",20/03/2018
Delivery Units,Adults and Communities,Other Agencies - Third Party P,90065102,ABBEY RAVENSCROFT PARK NURSING HOME," 2,788.32 ",20/03/2018
Delivery Units,Adults and Communities,Other Agencies - Third Party P,90065103,ABBEY RAVENSCROFT PARK NURSING HOME,"2,788.32",20/03/2018
Delivery Units,Adults and Communities,Other Agencies - Third Party P,90065104,ABBEY RAVENSCROFT PARK NURSING HOME," 3,801.88 ",20/03/2018
Delivery Units,Adults and Communities,Other Agencies - Third Party P,90065107,ABBEY RAVENSCROFT PARK NURSING HOME," 3,321.43 ",20/03/2018
Delivery Units,Adults and Communities,Other Agencies - Third Party P,90065108,ABBEY RAVENSCROFT PARK NURSING HOME," 3,321.43 ",20/03/2018
Delivery Units,Adults and Communities,Other Agencies - Third Party P,90065109,ABBEY RAVENSCROFT PARK NURSING HOME," 2,788.32 ",20/03/2018
Delivery Units,Adults and Communities,Other Agencies - Third Party P,90068165,ABBEY RAVENSCROFT PARK NURSING HOME," 3,255.00 ",29/03/2018
Delivery Units,Adults and Communities,Other Agencies - Third Party P,90068171,ABBEY RAVENSCROFT PARK NURSING HOME," 2,788.32 ",29/03/2018
Delivery Units,Adults and Communities,Other Agencies - Third Party P,90061487,CARLTON COURT (TLC GROUP)," 1,571.43 ",08/03/2018
Delivery Units,Adults and Communities,Other Agencies - Third Party P,90061488,CARLTON COURT (TLC GROUP),"4,428.57",08/03/2018
Delivery Units,Adults and Communities,Other Agencies - Third Party P,90061743,CARLTON COURT (TLC GROUP), 965.66 ,08/03/2018
Delivery Units,Adults and Communities,Other Agencies - Third Party P,90063332,CARLTON COURT (TLC GROUP),"-2,655.55 ",20/03/2018
Delivery Units,Adults and Communities,Other Agencies - Third Party P,90063670,CARLTON COURT (TLC GROUP),"5,314.29",20/03/2018
Delivery Units,Adults and Communities,Other Agencies - Third Party P,90063811,CARLTON COURT (TLC GROUP),-342.86 ,20/03/2018
Delivery Units,Adults and Communities,Other Agencies - Third Party P,90063812,CARLTON COURT (TLC GROUP),"-5,314.29 ",20/03/2018
Delivery Units,Adults and Communities,Other Agencies - Third Party P,90065484,CARLTON COURT (TLC GROUP),"2,655.55",20/03/2018
Delivery Units,Adults and Communities,Other Agencies - Third Party P,90065485,CARLTON COURT (TLC GROUP)," 4,428.57 ",20/03/2018
Delivery Units,Adults and Communities,Other Agencies - Third Party P,90065487,CARLTON COURT (TLC GROUP)," 3,736.61 ",20/03/2018
Delivery Units,Adults and Communities,Other Agencies - Third Party P,90065489,CARLTON COURT (TLC GROUP),"4,428.57",20/03/2018
Delivery Units,Adults and Communities,Other Agencies - Third Party P,90065491,CARLTON COURT (TLC GROUP),"2,448.78",20/03/2018
Delivery Units,Adults and Communities,Other Agencies - Third Party P,90065492,CARLTON COURT (TLC GROUP)," 3,741.92 ",20/03/2018
Delivery Units,Adults and Communities,Other Agencies - Third Party P,90062161,HUSKARDS NEW CARE LTD,"2,397.72",08/03/2018
Delivery Units,Adults and Communities,Other Agencies - Third Party P,90062162,HUSKARDS NEW CARE LTD," 2,320.37 ",08/03/2018
Delivery Units,Adults and Communities,Other Agencies - Third Party P,90064125,HUSKARDS NEW CARE LTD," 2,397.72 ",15/03/2018
Delivery Units,Adults and Communities,Other Agencies - Third Party P,90065494,ASHTON LODGE CARE CENTRE," 3,520.49 ",20/03/2018
Delivery Units,Adults and Communities,Other Agencies - Third Party P,90065498,ASHTON LODGE CARE CENTRE," 3,764.29 ",20/03/2018
Delivery Units,Adults and Communities,Other Agencies - Third Party P,90065500,ASHTON LODGE CARE CENTRE," 2,844.07 ",20/03/2018
Delivery Units,Adults and Communities,Other Agencies - Third Party P,90065501,ASHTON LODGE CARE CENTRE," 3,299.06 ",20/03/2018
Delivery Units,Adults and Communities,Other Agencies - Third Party P,90065502,ASHTON LODGE CARE CENTRE," 3,077.64 ",20/03/2018
Delivery Units,Adults and Communities,Other Agencies - Third Party P,90065503,ASHTON LODGE CARE CENTRE," 2,844.07 ",20/03/2018
Delivery Units,Adults and Communities,Other Agencies - Third Party P,90065505,ASHTON LODGE CARE CENTRE," 3,133.79 ",20/03/2018
Delivery Units,Adults and Communities,Other Agencies - Third Party P,90065506,ASHTON LODGE CARE CENTRE,"3,077.64",20/03/2018
Delivery Units,Adults and Communities,Other Agencies - Third Party P,90065507,ASHTON LODGE CARE CENTRE," 3,520.49 ",20/03/2018
Delivery Units,Adults and Communities,Other Agencies - Third Party P,90065508,ASHTON LODGE CARE CENTRE," 2,844.07 ",20/03/2018
Delivery Units,Adults and Communities,Other Agencies - Third Party P,90065509,ASHTON LODGE CARE CENTRE," 3,077.64 ",20/03/2018
Delivery Units,Adults and Communities,Other Agencies - Third Party P,90065510,ASHTON LODGE CARE CENTRE,"2,936.14",20/03/2018
Delivery Units,Adults and Communities,Other Agencies - Third Party P,90065511,ASHTON LODGE CARE CENTRE,"2,567.95",20/03/2018
Delivery Units,Adults and Communities,Other Agencies - Third Party P,90065512,ASHTON LODGE CARE CENTRE,"2,844.07",20/03/2018
Delivery Units,Adults and Communities,Other Agencies - Third Party P,90065514,ASHTON LODGE CARE CENTRE,"3,321.43",20/03/2018
Delivery Units,Adults and Communities,Other Agencies - Third Party P,90065516,ASHTON LODGE CARE CENTRE," 3,542.86 ",20/03/2018
Delivery Units,Adults and Communities,Other Agencies - Third Party P,90065517,ASHTON LODGE CARE CENTRE," 4,184.78 ",20/03/2018
Delivery Units,Adults and Communities,Other Agencies - Third Party P,90065519,ASHTON LODGE CARE CENTRE," 3,520.49 ",20/03/2018
Delivery Units,Adults and Communities,Other Agencies - Third Party P,90065520,ASHTON LODGE CARE CENTRE,"3,073.43",20/03/2018
Delivery Units,Adults and Communities,Other Agencies - Third Party P,90065521,ASHTON LODGE CARE CENTRE,"3,077.64",20/03/2018
Delivery Units,Adults and Communities,Other Agencies - Third Party P,90065866,ASHTON LODGE CARE CENTRE,"(2,110.12)",23/03/2018
Delivery Units,Adults and Communities,Other Agencies - Third Party P,90065888,ASHTON LODGE CARE CENTRE," 3,299.06 ",23/03/2018
Delivery Units,Adults and Communities,Other Agencies - Third Party P,90068173,ASHTON LODGE CARE CENTRE," 3,779.80 ",29/03/2018
Delivery Units,Adults and Communities,Other Agencies - Third Party P,90064120,WESTGATE HOUSE CARE CENTRE," 3,725.76 ",16/03/2018
Delivery Units,Adults and Communities,Other Agencies - Third Party P,90063246,MURRAYFIELD CARE HOME," 2,211.80 ",12/03/2018
Delivery Units,Adults and Communities,Other Agencies - Third Party P,90062383,FOUR SEASONS HEALTH CARE (NO.4) LTD,"2,004.00",09/03/2018
Delivery Units,Adults and Communities,Other Agencies - Third Party P,90062184,VICTORIA CARE CENTRE," 2,958.95 ",08/03/2018
Delivery Units,Adults and Communities,Other Agencies - Third Party P,90067099,VICTORIA CARE CENTRE,"2,672.60",27/03/2018
Delivery Units,Adults and Communities,Other Agencies - Third Party P,90063299,KARUNA MANOR,"4,207.14",13/03/2018
Delivery Units,Adults and Communities,Other Agencies - Third Party P,90065898,KARUNA MANOR," 4,071.43 ",23/03/2018
Delivery Units,Adults and Communities,Other Agencies - Third Party P,90065899,KARUNA MANOR," 4,207.14 ",23/03/2018
Delivery Units,Adults and Communities,Other Agencies - Third Party P,90065900,KARUNA MANOR,"3,800.00",23/03/2018
Delivery Units,Adults and Communities,Other Agencies - Third Party P,90064184,ST ANNS HOME-LITTLE SISTERS OF THE POOR," 2,397.73 ",16/03/2018
Delivery Units,Adults and Communities,Other Agencies - Third Party P,90063230,ADARA HEALTHCARE LTD,"10,200.00",12/03/2018
Delivery Units,Adults and Communities,Other Agencies - Third Party P,90064149,GCH (HERTFORDSHIRE) LTD T/A," 2,358.76 ",15/03/2018
Delivery Units,Adults and Communities,Other Agencies - Third Party P,90064098,LADY OF THE VALE NURSING HOME,"2,657.14",15/03/2018
Delivery Units,Adults and Communities,Other Agencies - Third Party P,90064110,BONDCARE LONDON (THE FOUNTAINS)," 2,138.00 ",15/03/2018
Delivery Units,Adults and Communities,Other Agencies - Third Party P,90061522,BUPA CARE HOMES LTD (SUTTON LODGE),"2,420.00",08/03/2018
Delivery Units,Adults and Communities,Other Agencies - Third Party P,90064216,PINELODGE CARE HOME," 5,054.11 ",28/03/2018
Delivery Units,Adults and Communities,Other Agencies - Third Party P,90065366,DR FRENCH MEMORIAL HOME LTD," 2,211.80 ",20/03/2018
Delivery Units,Adults and Communities,Other Agencies - Third Party P,90065367,DR FRENCH MEMORIAL HOME LTD," 3,200.00 ",20/03/2018
Delivery Units,Adults and Communities,Other Agencies - Third Party P,90065368,DR FRENCH MEMORIAL HOME LTD," 1,257.14 ",20/03/2018
Delivery Units,Adults and Communities,Other Agencies - Third Party P,90065369,DR FRENCH MEMORIAL HOME LTD," 3,200.00 ",20/03/2018
Delivery Units,Adults and Communities,Other Agencies - Third Party P,90065370,DR FRENCH MEMORIAL HOME LTD," 3,542.86 ",22/03/2018
Delivery Units,Adults and Communities,Other Agencies - Third Party P,90065371,DR FRENCH MEMORIAL HOME LTD," 3,542.86 ",22/03/2018
Delivery Units,Adults and Communities,Other Agencies - Third Party P,90065372,DR FRENCH MEMORIAL HOME LTD," 3,200.00 ",20/03/2018
Delivery Units,Adults and Communities,Other Agencies - Third Party P,90065373,DR FRENCH MEMORIAL HOME LTD,"3,542.86",22/03/2018
Delivery Units,Adults and Communities,Other Agencies - Third Party P,90065374,DR FRENCH MEMORIAL HOME LTD,"2,448.78",20/03/2018
Delivery Units,Adults and Communities,Other Agencies - Third Party P,90062164,ROSEACRES CARE HOME LIMITED,"3,000.00",08/03/2018
Delivery Units,Adults and Communities,Other Agencies - Third Party P,90062166,ROSEACRES CARE HOME LIMITED,"3,000.00",08/03/2018
Delivery Units,Adults and Communities,Other Agencies - Third Party P,90062167,ROSEACRES CARE HOME LIMITED," 2,296.28 ",08/03/2018
Delivery Units,Adults and Communities,Other Agencies - Third Party P,90062168,ROSEACRES CARE HOME LIMITED,"2,296.28",08/03/2018
Delivery Units,Adults and Communities,Other Agencies - Third Party P,90062170,ROSEACRES CARE HOME LIMITED,"2,109.36",08/03/2018
Delivery Units,Adults and Communities,Other Agencies - Third Party P,90062171,ROSEACRES CARE HOME LIMITED,"2,296.28",08/03/2018
Delivery Units,Adults and Communities,Other Agencies - Third Party P,90062172,ROSEACRES CARE HOME LIMITED,"2,296.28",08/03/2018
Delivery Units,Adults and Communities,Other Agencies - Third Party P,90062173,ROSEACRES CARE HOME LIMITED,"2,296.28",08/03/2018
Delivery Units,Adults and Communities,Other Agencies - Third Party P,90062175,ROSEACRES CARE HOME LIMITED,"2,988.53",08/03/2018
Delivery Units,Adults and Communities,Other Agencies - Third Party P,90062177,ROSEACRES CARE HOME LIMITED,"2,296.28",08/03/2018
Delivery Units,Adults and Communities,Other Agencies - Third Party P,90062178,ROSEACRES CARE HOME LIMITED,"2,296.16",08/03/2018
Delivery Units,Adults and Communities,Other Agencies - Third Party P,90062179,ROSEACRES CARE HOME LIMITED,"2,211.80",08/03/2018
Delivery Units,Adults and Communities,Other Agencies - Third Party P,90062180,ROSEACRES CARE HOME LIMITED," 3,000.00 ",08/03/2018
Delivery Units,Adults and Communities,Other Agencies - Third Party P,90062186,ROSEACRES CARE HOME LIMITED,"3,000.00",08/03/2018
Delivery Units,Adults and Communities,Other Agencies - Third Party P,90062187,ROSEACRES CARE HOME LIMITED,"3,000.00",08/03/2018
Delivery Units,Adults and Communities,Other Agencies - Third Party P,90064182,ROSEACRES CARE HOME LIMITED," 3,321.43 ",16/03/2018
Delivery Units,Adults and Communities,Other Agencies - Third Party P,90064226,ROSEACRES CARE HOME LIMITED,"26,250.00",16/03/2018
Delivery Units,Adults and Communities,Other Agencies - Third Party P,90064227,ROSEACRES CARE HOME LIMITED," 3,723.56 ",16/03/2018
Delivery Units,Adults and Communities,Other Agencies - Third Party P,90066256,ROSEACRES CARE HOME LIMITED," 3,321.43 ",28/03/2018
Delivery Units,Adults and Communities,Other Agencies - Third Party P,90066258,ROSEACRES CARE HOME LIMITED,"3,321.43",28/03/2018
Delivery Units,Adults and Communities,Other Agencies - Third Party P,90066259,ROSEACRES CARE HOME LIMITED," 2,542.31 ",28/03/2018
Delivery Units,Adults and Communities,Other Agencies - Third Party P,90066260,ROSEACRES CARE HOME LIMITED," 2,542.31 ",28/03/2018
Delivery Units,Adults and Communities,Other Agencies - Third Party P,90066263,ROSEACRES CARE HOME LIMITED,"2,335.36",28/03/2018
Delivery Units,Adults and Communities,Other Agencies - Third Party P,90066264,ROSEACRES CARE HOME LIMITED," 2,542.31 ",28/03/2018
Delivery Units,Adults and Communities,Other Agencies - Third Party P,90066265,ROSEACRES CARE HOME LIMITED," 2,542.31 ",28/03/2018
Delivery Units,Adults and Communities,Other Agencies - Third Party P,90066266,ROSEACRES CARE HOME LIMITED," 2,542.31 ",28/03/2018
Delivery Units,Adults and Communities,Other Agencies - Third Party P,90066268,ROSEACRES CARE HOME LIMITED," 2,699.32 ",28/03/2018
Delivery Units,Adults and Communities,Other Agencies - Third Party P,90066270,ROSEACRES CARE HOME LIMITED," 3,321.43 ",28/03/2018
Delivery Units,Adults and Communities,Other Agencies - Third Party P,90066271,ROSEACRES CARE HOME LIMITED," 2,542.18 ",28/03/2018
Delivery Units,Adults and Communities,Other Agencies - Third Party P,90066273,ROSEACRES CARE HOME LIMITED,"2,448.78",28/03/2018
Delivery Units,Adults and Communities,Other Agencies - Third Party P,90066274,ROSEACRES CARE HOME LIMITED,"3,321.43",28/03/2018
Delivery Units,Adults and Communities,Other Agencies - Third Party P,90063536,ELEANOR PALMER TRUST NO 2 A/C.," 2,113.04 ",13/03/2018
Delivery Units,Adults and Communities,Other Agencies - Third Party P,90063537,ELEANOR PALMER TRUST NO 2 A/C.," 2,300.28 ",13/03/2018
Delivery Units,Adults and Communities,Other Agencies - Third Party P,90063539,ELEANOR PALMER TRUST NO 2 A/C.,"2,300.28",13/03/2018
Delivery Units,Adults and Communities,Other Agencies - Third Party P,90063540,ELEANOR PALMER TRUST NO 2 A/C.," 2,113.04 ",13/03/2018
Delivery Units,Adults and Communities,Other Agencies - Third Party P,90063541,ELEANOR PALMER TRUST NO 2 A/C.," 2,300.28 ",13/03/2018
Delivery Units,Adults and Communities,Other Agencies - Third Party P,90063542,ELEANOR PALMER TRUST NO 2 A/C.,"2,300.28",13/03/2018
Delivery Units,Adults and Communities,Other Agencies - Third Party P,90063543,ELEANOR PALMER TRUST NO 2 A/C.," 2,113.04 ",13/03/2018
Delivery Units,Adults and Communities,Other Agencies - Third Party P,90063544,ELEANOR PALMER TRUST NO 2 A/C.," 2,113.04 ",13/03/2018
Delivery Units,Adults and Communities,Other Agencies - Third Party P,90063545,ELEANOR PALMER TRUST NO 2 A/C.," 2,113.04 ",13/03/2018
Delivery Units,Adults and Communities,Other Agencies - Third Party P,90063546,ELEANOR PALMER TRUST NO 2 A/C.," 2,300.28 ",13/03/2018
Delivery Units,Adults and Communities,Other Agencies - Third Party P,90065113,ELEANOR PALMER TRUST NO 2 A/C.," 2,339.44 ",20/03/2018
Delivery Units,Adults and Communities,Other Agencies - Third Party P,90065114,ELEANOR PALMER TRUST NO 2 A/C.," 2,546.74 ",20/03/2018
Delivery Units,Adults and Communities,Other Agencies - Third Party P,90065116,ELEANOR PALMER TRUST NO 2 A/C.," 2,546.74 ",20/03/2018
Delivery Units,Adults and Communities,Other Agencies - Third Party P,90065117,ELEANOR PALMER TRUST NO 2 A/C.,"2,339.44",20/03/2018
Delivery Units,Adults and Communities,Other Agencies - Third Party P,90065118,ELEANOR PALMER TRUST NO 2 A/C.," 2,546.74 ",20/03/2018
Delivery Units,Adults and Communities,Other Agencies - Third Party P,90065119,ELEANOR PALMER TRUST NO 2 A/C.," 2,546.74 ",20/03/2018
Delivery Units,Adults and Communities,Other Agencies - Third Party P,90065120,ELEANOR PALMER TRUST NO 2 A/C.,"3,321.43",20/03/2018
Delivery Units,Adults and Communities,Other Agencies - Third Party P,90065121,ELEANOR PALMER TRUST NO 2 A/C.," 2,339.44 ",20/03/2018
Delivery Units,Adults and Communities,Other Agencies - Third Party P,90065122,ELEANOR PALMER TRUST NO 2 A/C.," 2,339.44 ",20/03/2018
Delivery Units,Adults and Communities,Other Agencies - Third Party P,90065123,ELEANOR PALMER TRUST NO 2 A/C.," 3,321.43 ",20/03/2018
Delivery Units,Adults and Communities,Other Agencies - Third Party P,90065124,ELEANOR PALMER TRUST NO 2 A/C.," 2,339.44 ",20/03/2018
Delivery Units,Adults and Communities,Other Agencies - Third Party P,90065125,ELEANOR PALMER TRUST NO 2 A/C.," 2,546.74 ",20/03/2018
Delivery Units,Adults and Communities,Other Agencies - Third Party P,90066245,ELEANOR PALMER TRUST NO 2 A/C.," 2,250.00 ",26/03/2018
Delivery Units,Adults and Communities,Other Agencies - Third Party P,90066246,ELEANOR PALMER TRUST NO 2 A/C.," 3,321.43 ",26/03/2018
Delivery Units,Adults and Communities,Other Agencies - Third Party P,90066247,ELEANOR PALMER TRUST NO 2 A/C.," 1,660.25 ",26/03/2018
Delivery Units,Adults and Communities,Other Agencies - Third Party P,90066248,ELEANOR PALMER TRUST NO 2 A/C.," 3,000.00 ",26/03/2018
Delivery Units,Adults and Communities,Other Agencies - Third Party P,90063276,ELM PARK LODGE," 2,864.00 ",12/03/2018
Delivery Units,Adults and Communities,Other Agencies - Third Party P,90063804,FRIERN RESIDENTIAL CARE HOME,600.60,13/03/2018
Delivery Units,Adults and Communities,Other Agencies - Third Party P,90064079,FRIERN RESIDENTIAL CARE HOME,664.95,15/03/2018
Delivery Units,Adults and Communities,Other Agencies - Third Party P,90064074,TORRINGTON HOMES," 2,448.78 ",15/03/2018
Delivery Units,Adults and Communities,Other Agencies - Third Party P,90064075,TORRINGTON HOMES,"2,448.78",15/03/2018
Delivery Units,Adults and Communities,Other Agencies - Third Party P,90064076,TORRINGTON HOMES," 2,448.78 ",15/03/2018
Delivery Units,Adults and Communities,Other Agencies - Third Party P,90064077,TORRINGTON HOMES," 2,448.78 ",15/03/2018
Delivery Units,Adults and Communities,Other Agencies - Third Party P,90065897,TORRINGTON HOMES,"2,249.45",23/03/2018
Delivery Units,Adults and Communities,Other Agencies - Third Party P,90063217,THE GRANGE," 2,496.00 ",12/03/2018
Delivery Units,Adults and Communities,Other Agencies - Third Party P,90063219,THE GRANGE," 2,300.28 ",12/03/2018
Delivery Units,Adults and Communities,Other Agencies - Third Party P,90067051,THE GRANGE," 2,260.00 ",27/03/2018
Delivery Units,Adults and Communities,Other Agencies - Third Party P,30178306,ELMHURST RESIDENTIAL HOME," 2,922.74 ",23/03/2018
Delivery Units,Adults and Communities,Other Agencies - Third Party P,30178309,ELMHURST RESIDENTIAL HOME," 1,392.86 ",23/03/2018
Delivery Units,Adults and Communities,Other Agencies - Third Party P,30178310,ELMHURST RESIDENTIAL HOME," 3,342.86 ",23/03/2018
Delivery Units,Adults and Communities,Other Agencies - Third Party P,30178312,ELMHURST RESIDENTIAL HOME," 3,633.67 ",23/03/2018
Delivery Units,Adults and Communities,Other Agencies - Third Party P,30178313,ELMHURST RESIDENTIAL HOME," 12,814.29 ",23/03/2018
Delivery Units,Adults and Communities,Other Agencies - Third Party P,30178314,ELMHURST RESIDENTIAL HOME,650.00,23/03/2018
Delivery Units,Adults and Communities,Other Agencies - Third Party P,30178316,ELMHURST RESIDENTIAL HOME, 185.71 ,23/03/2018
Delivery Units,Adults and Communities,Other Agencies - Third Party P,90062369,JEWISH CARE," 4,667.71 ",09/03/2018
Delivery Units,Adults and Communities,Other Agencies - Third Party P,90062371,JEWISH CARE,-172.52 ,09/03/2018
Delivery Units,Adults and Communities,Other Agencies - Third Party P,90062391,JEWISH CARE,"1,109.34",09/03/2018
Delivery Units,Adults and Communities,Other Agencies - Third Party P,90063313,JEWISH CARE," 1,347.06 ",13/03/2018
Delivery Units,Adults and Communities,Other Agencies - Third Party P,90063314,JEWISH CARE," 1,188.58 ",13/03/2018
Delivery Units,Adults and Communities,Other Agencies - Third Party P,90063320,JEWISH CARE,-237.72 ,13/03/2018
Delivery Units,Adults and Communities,Other Agencies - Third Party P,90064237,JEWISH CARE,"2,415.28",16/03/2018
Delivery Units,Adults and Communities,Other Agencies - Third Party P,90064238,JEWISH CARE,"2,218.68",16/03/2018
Delivery Units,Adults and Communities,Other Agencies - Third Party P,90064239,JEWISH CARE,"2,218.68",16/03/2018
Delivery Units,Adults and Communities,Other Agencies - Third Party P,90064240,JEWISH CARE," 2,218.68 ",16/03/2018
Delivery Units,Adults and Communities,Other Agencies - Third Party P,90064242,JEWISH CARE,"2,415.28",16/03/2018
Delivery Units,Adults and Communities,Other Agencies - Third Party P,90064243,JEWISH CARE," 2,415.28 ",16/03/2018
Delivery Units,Adults and Communities,Other Agencies - Third Party P,90064244,JEWISH CARE,"2,218.68",16/03/2018
Delivery Units,Adults and Communities,Other Agencies - Third Party P,90064245,JEWISH CARE," 2,218.68 ",16/03/2018
Delivery Units,Adults and Communities,Other Agencies - Third Party P,90064246,JEWISH CARE,"2,218.68",16/03/2018
Delivery Units,Adults and Communities,Other Agencies - Third Party P,90064247,JEWISH CARE," 2,218.68 ",16/03/2018
Delivery Units,Adults and Communities,Other Agencies - Third Party P,90064248,JEWISH CARE,"2,218.68",16/03/2018
Delivery Units,Adults and Communities,Other Agencies - Third Party P,90064249,JEWISH CARE,"2,415.28",16/03/2018
Delivery Units,Adults and Communities,Other Agencies - Third Party P,90064250,JEWISH CARE,"2,415.28",16/03/2018
Delivery Units,Adults and Communities,Other Agencies - Third Party P,90064252,JEWISH CARE,"2,218.68",16/03/2018
Delivery Units,Adults and Communities,Other Agencies - Third Party P,90064254,JEWISH CARE,"2,218.68",16/03/2018
Delivery Units,Adults and Communities,Other Agencies - Third Party P,90064255,JEWISH CARE," 2,218.68 ",16/03/2018
Delivery Units,Adults and Communities,Other Agencies - Third Party P,90064256,JEWISH CARE,"2,218.68",16/03/2018
Delivery Units,Adults and Communities,Other Agencies - Third Party P,90064257,JEWISH CARE," 2,415.28 ",16/03/2018
Delivery Units,Adults and Communities,Other Agencies - Third Party P,90064258,JEWISH CARE," 2,415.28 ",16/03/2018
Delivery Units,Adults and Communities,Other Agencies - Third Party P,90064259,JEWISH CARE," 2,415.28 ",16/03/2018
Delivery Units,Adults and Communities,Other Agencies - Third Party P,90064260,JEWISH CARE," 2,218.68 ",16/03/2018
Delivery Units,Adults and Communities,Other Agencies - Third Party P,90064261,JEWISH CARE," 2,415.28 ",16/03/2018
Delivery Units,Adults and Communities,Other Agencies - Third Party P,90064262,JEWISH CARE," 2,415.28 ",16/03/2018
Delivery Units,Adults and Communities,Other Agencies - Third Party P,90064263,JEWISH CARE,"2,415.28",16/03/2018
Delivery Units,Adults and Communities,Other Agencies - Third Party P,90064264,JEWISH CARE," 4,508.00 ",16/03/2018
Delivery Units,Adults and Communities,Other Agencies - Third Party P,90064265,JEWISH CARE," 2,218.68 ",16/03/2018
Delivery Units,Adults and Communities,Other Agencies - Third Party P,90064266,JEWISH CARE," 2,218.68 ",16/03/2018
Delivery Units,Adults and Communities,Other Agencies - Third Party P,90064267,JEWISH CARE," 2,218.68 ",16/03/2018
Delivery Units,Adults and Communities,Other Agencies - Third Party P,90064268,JEWISH CARE," 2,415.28 ",16/03/2018
Delivery Units,Adults and Communities,Other Agencies - Third Party P,90064269,JEWISH CARE," 2,415.28 ",16/03/2018
Delivery Units,Adults and Communities,Other Agencies - Third Party P,90064271,JEWISH CARE," 2,415.28 ",16/03/2018
Delivery Units,Adults and Communities,Other Agencies - Third Party P,90064273,JEWISH CARE," 2,102.00 ",16/03/2018
Delivery Units,Adults and Communities,Other Agencies - Third Party P,90064277,JEWISH CARE," 2,415.28 ",16/03/2018
Delivery Units,Adults and Communities,Other Agencies - Third Party P,90064281,JEWISH CARE," 2,415.28 ",16/03/2018
Delivery Units,Adults and Communities,Other Agencies - Third Party P,90064286,JEWISH CARE," 2,415.28 ",16/03/2018
Delivery Units,Adults and Communities,Other Agencies - Third Party P,90064287,JEWISH CARE," 2,415.28 ",16/03/2018
Delivery Units,Adults and Communities,Other Agencies - Third Party P,90064289,JEWISH CARE," 2,415.28 ",16/03/2018
Delivery Units,Adults and Communities,Other Agencies - Third Party P,90064290,JEWISH CARE,"2,415.28",16/03/2018
Delivery Units,Adults and Communities,Other Agencies - Third Party P,90064292,JEWISH CARE," 2,415.28 ",16/03/2018
Delivery Units,Adults and Communities,Other Agencies - Third Party P,90064293,JEWISH CARE,"2,415.28",16/03/2018
Delivery Units,Adults and Communities,Other Agencies - Third Party P,90064319,JEWISH CARE,"2,415.28",16/03/2018
Delivery Units,Adults and Communities,Other Agencies - Third Party P,90064320,JEWISH CARE," 2,415.28 ",16/03/2018
Delivery Units,Adults and Communities,Other Agencies - Third Party P,90064321,JEWISH CARE," 2,415.28 ",16/03/2018
Delivery Units,Adults and Communities,Other Agencies - Third Party P,90064322,JEWISH CARE," 2,415.28 ",16/03/2018
Delivery Units,Adults and Communities,Other Agencies - Third Party P,90064323,JEWISH CARE," 2,415.28 ",16/03/2018
Delivery Units,Adults and Communities,Other Agencies - Third Party P,90064325,JEWISH CARE,"2,415.28",16/03/2018
Delivery Units,Adults and Communities,Other Agencies - Third Party P,90064326,JEWISH CARE,"2,218.68",16/03/2018
Delivery Units,Adults and Communities,Other Agencies - Third Party P,90064327,JEWISH CARE," 2,415.28 ",16/03/2018
Delivery Units,Adults and Communities,Other Agencies - Third Party P,90064328,JEWISH CARE," 2,415.28 ",16/03/2018
Delivery Units,Adults and Communities,Other Agencies - Third Party P,90064330,JEWISH CARE," 2,415.28 ",16/03/2018
Delivery Units,Adults and Communities,Other Agencies - Third Party P,90064331,JEWISH CARE," 2,415.28 ",16/03/2018
Delivery Units,Adults and Communities,Other Agencies - Third Party P,90064332,JEWISH CARE," 2,218.68 ",16/03/2018
Delivery Units,Adults and Communities,Other Agencies - Third Party P,90064333,JEWISH CARE," 2,415.28 ",16/03/2018
Delivery Units,Adults and Communities,Other Agencies - Third Party P,90064334,JEWISH CARE," 2,415.28 ",16/03/2018
Delivery Units,Adults and Communities,Other Agencies - Third Party P,90064537,JEWISH CARE," 2,218.68 ",16/03/2018
Delivery Units,Adults and Communities,Other Agencies - Third Party P,90064538,JEWISH CARE," 2,415.28 ",16/03/2018
Delivery Units,Adults and Communities,Other Agencies - Third Party P,90064540,JEWISH CARE," 2,415.28 ",16/03/2018
Delivery Units,Adults and Communities,Other Agencies - Third Party P,90064541,JEWISH CARE," 2,218.68 ",16/03/2018
Delivery Units,Adults and Communities,Other Agencies - Third Party P,90064543,JEWISH CARE,"2,415.28",16/03/2018
Delivery Units,Adults and Communities,Other Agencies - Third Party P,90064544,JEWISH CARE," 2,415.28 ",16/03/2018
Delivery Units,Adults and Communities,Other Agencies - Third Party P,90063286,CLOVELLY HOUSE RESID. HOME LTD," 2,600.00 ",13/03/2018
Delivery Units,Adults and Communities,Other Agencies - Third Party P,90063288,CLOVELLY HOUSE RESID. HOME LTD,"2,600.00",13/03/2018
Delivery Units,Adults and Communities,Other Agencies - Third Party P,90063289,CLOVELLY HOUSE RESID. HOME LTD,"2,780.00",13/03/2018
Delivery Units,Adults and Communities,Other Agencies - Third Party P,90063290,CLOVELLY HOUSE RESID. HOME LTD," 2,780.00 ",13/03/2018
Delivery Units,Adults and Communities,Other Agencies - Third Party P,90063291,CLOVELLY HOUSE RESID. HOME LTD," 2,780.00 ",13/03/2018
Delivery Units,Adults and Communities,Other Agencies - Third Party P,90063294,CLOVELLY HOUSE RESID. HOME LTD," 2,211.80 ",13/03/2018
Delivery Units,Adults and Communities,Other Agencies - Third Party P,90063295,CLOVELLY HOUSE RESID. HOME LTD," 2,600.00 ",13/03/2018
Delivery Units,Adults and Communities,Other Agencies - Third Party P,90063296,CLOVELLY HOUSE RESID. HOME LTD,"2,211.80",13/03/2018
Delivery Units,Adults and Communities,Other Agencies - Third Party P,90066244,CLOVELLY HOUSE RESID. HOME LTD," 1,390.00 ",26/03/2018
Delivery Units,Adults and Communities,Other Agencies - Third Party P,90063877,VILLA SCALABRINI," 2,502.14 ",28/03/2018
Delivery Units,Adults and Communities,Other Agencies - Third Party P,90058854,CATHERINE LODGE,"3,441.43",01/03/2018
Delivery Units,Adults and Communities,Other Agencies - Third Party P,90063229,CATHERINE LODGE," 3,140.00 ",12/03/2018
Delivery Units,Adults and Communities,Other Agencies - Third Party P,90063261,CATHERINE LODGE,"2,211.80",15/03/2018
Delivery Units,Adults and Communities,Other Agencies - Third Party P,90064151,CATHERINE LODGE," 2,211.80 ",15/03/2018
Delivery Units,Adults and Communities,Other Agencies - Third Party P,90064152,CATHERINE LODGE," 2,211.80 ",15/03/2018
Delivery Units,Adults and Communities,Other Agencies - Third Party P,90064159,CATHERINE LODGE," 3,040.00 ",15/03/2018
